Workbook

Sheet Main
B10: 2018-12-19
B12: Sheet No. | C12: Template Name | D12: Summary
B13: 1 | C13: Future Intra | D13: For Intraday trading in F&O segment
B14: 2 | C14: Cash Intra | D14: For Intraday trading in cash market segment
B15: 3 | C15: Mid-cap Intra | D15: For Intraday trading in Mid-cap stocks
B16: 4 | C16: Bulk Deals | D16: Reveals Bulk Deals carried on NSE & BSE
B17: 5 | C17: Call Tracker

Sheet Future Intra
M5: Back to Main Page
A6: FOR INTRA DAY TRADING | L6: =Main!B10 -> 2018-12-19
A9: Sr.no | B9: Sector | C9: Scrip | D9: CLOSE RATE | E9: Pivot Point | F9: Supports | I9: Resistances
B10: Sector | D10: Point | E10: Point | F10: S1 | G10: S2 | H10: S3 | I10: R1 | J10: R2 | K10: R3 | L10: HIGH | M10: LOW | N10: OI | O10: % Change in OI
A11: 1 | B11: Index | C11: BANKNIFTY | D11: 27252.90 | E11: 27152.68 | F11: 27026.57 | G11: 26800.23 | H11: 26674.12 | I11: 27379.02 | J11: 27505.13 | K11: 27731.47 | L11: 27278.8 | M11: 26926.35 | N11: 1684440 | O11: 4.93%
A12: 2 | B12: Index | C12: NIFTY | D12: 10935.05 | E12: 10903.42 | F12: 10866.83 | G12: 10798.62 | H12: 10762.03 | I12: 10971.63 | J12: 11008.22 | K12: 11076.43 | L12: 10940 | M12: 10835.2 | N12: 23261325 | O12: 2.33%
A13: 3 | B13: Index | C13: NIFTYIT | D13: 14776.00 | E13: 14776.33 | F13: 14689.67 | G13: 14603.33 | H13: 14516.67 | I13: 14862.67 | J13: 14949.33 | K13: 15035.67 | L13: 14863 | M13: 14690 | N13: 16200 | O13: -1.82%
A14: 4 | B14: Index | C14: NIFTYMID50 | D14: 4609.95 | E14: 1536.65 | F14: 3073.30 | G14: 1536.65 | H14: 3073.30 | I14: 3073.30 | J14: 1536.65 | K14: 3073.30 | L14: 0 | M14: 0 | N14: 591690 | O14: 0.00%
A15: 5 | B15: Cement | C15: ACC | D15: 1507.20 | E15: 1505.27 | F15: 1497.03 | G15: 1486.87 | H15: 1478.63 | I15: 1515.43 | J15: 1523.67 | K15: 1533.83 | L15: 1513.5 | M15: 1495.1 | N15: 1414400 | O15: 6.96%
A16: 6 | B16: Others | C16: ADANIENT | D16: 158.85 | E16: 158.72 | F16: 156.73 | G16: 154.62 | H16: 152.63 | I16: 160.83 | J16: 162.82 | K16: 164.93 | L16: 160.7 | M16: 156.6 | N16: 46524000 | O16: -0.46%
A17: 7 | B17: Others | C17: ADANIPORTS | D17: 374.20 | E17: 371.68 | F17: 368.27 | G17: 362.33 | H17: 358.92 | I17: 377.62 | J17: 381.03 | K17: 386.97 | L17: 375.1 | M17: 365.75 | N17: 19375000 | O17: 0.78%
A18: 8 | B18: Power | C18: ADANIPOWER | D18: 53.35 | E18: 53.33 | F18: 52.17 | G18: 50.98 | H18: 49.82 | I18: 54.52 | J18: 55.68 | K18: 56.87 | L18: 54.5 | M18: 52.15 | N18: 172480000 | O18: -0.19%
A19: 9 | B19: Pharma | C19: AJANTPHARM | D19: 1116.85 | E19: 1106.37 | F19: 1091.53 | G19: 1066.22 | H19: 1051.38 | I19: 1131.68 | J19: 1146.52 | K19: 1171.83 | L19: 1121.2 | M19: 1081.05 | N19: 565500 | O19: -7.60%
A20: 10 | B20: Banking | C20: ALBK | D20: 46.65 | E20: 46.52 | F20: 45.53 | G20: 44.42 | H20: 43.43 | I20: 47.63 | J20: 48.62 | K20: 49.73 | L20: 47.5 | M20: 45.4 | N20: 17963000 | O20: 6.21%
A21: 11 | B21: Automobile | C21: AMARAJABAT | D21: 736.80 | E21: 739.27 | F21: 729.53 | G21: 722.27 | H21: 712.53 | I21: 746.53 | J21: 756.27 | K21: 763.53 | L21: 749 | M21: 732 | N21: 1239700 | O21: 4.12%
A22: 12 | B22: Cement | C22: AMBUJACEM | D22: 220.75 | E22: 220.22 | F22: 218.93 | G22: 217.12 | H22: 215.83 | I22: 222.03 | J22: 223.32 | K22: 225.13 | L22: 221.5 | M22: 218.4 | N22: 17425000 | O22: -0.43%
A23: 13 | B23: Others | C23: APOLLOHOSP | D23: 1229.80 | E23: 1221.30 | F23: 1210.70 | G23: 1191.60 | H23: 1181.00 | I23: 1240.40 | J23: 1251.00 | K23: 1270.10 | L23: 1231.9 | M23: 1202.2 | N23: 1011500 | O23: -0.39%
A24: 14 | B24: Automobile | C24: APOLLOTYRE | D24: 236.30 | E24: 237.45 | F24: 232.50 | G24: 228.70 | H24: 223.75 | I24: 241.25 | J24: 246.20 | K24: 250.00 | L24: 242.4 | M24: 233.65 | N24: 9789000 | O24: 9.57%
A25: 15 | B25: Textile | C25: ARVIND | D25: 98.55 | E25: 98.80 | F25: 97.25 | G25: 95.95 | H25: 94.40 | I25: 100.10 | J25: 101.65 | K25: 102.95 | L25: 100.35 | M25: 97.5 | N25: 7194000 | O25: 8.57%
A26: 16 | B26: Automobile | C26: ASHOKLEY | D26: 105.10 | E26: 105.13 | F26: 104.17 | G26: 103.23 | H26: 102.27 | I26: 106.07 | J26: 107.03 | K26: 107.97 | L26: 106.1 | M26: 104.2 | N26: 62284000 | O26: 1.59%
A27: 17 | B27: FMCG | C27: ASIANPAINT | D27: 1359.35 | E27: 1351.78 | F27: 1340.27 | G27: 1321.18 | H27: 1309.67 | I27: 1370.87 | J27: 1382.38 | K27: 1401.47 | L27: 1363.3 | M27: 1332.7 | N27: 4825800 | O27: 2.20%
A28: 18 | B28: Pharma | C28: AUROPHARMA | D28: 737.50 | E28: 738.90 | F28: 729.80 | G28: 722.10 | H28: 713.00 | I28: 746.60 | J28: 755.70 | K28: 763.40 | L28: 748 | M28: 731.2 | N28: 21703000 | O28: 0.84%
A29: 19 | B29: Banking | C29: AXISBANK | D29: 621.80 | E29: 620.40 | F29: 616.90 | G29: 612.00 | H29: 608.50 | I29: 625.30 | J29: 628.80 | K29: 633.70 | L29: 623.9 | M29: 615.5 | N29: 37620000 | O29: -0.03%
A30: 20 | B30: Automobile | C30: BAJAJ-AUTO | D30: 2851.05 | E30: 2854.43 | F30: 2825.77 | G30: 2800.48 | H30: 2771.82 | I30: 2879.72 | J30: 2908.38 | K30: 2933.67 | L30: 2883.1 | M30: 2829.15 | N30: 2234250 | O30: 0.46%
A31: 21 | B31: Others | C31: BAJAJFINSV | D31: 6177.35 | E31: 6154.88 | F31: 6119.77 | G31: 6062.18 | H31: 6027.07 | I31: 6212.47 | J31: 6247.58 | K31: 6305.17 | L31: 6190 | M31: 6097.3 | N31: 619875 | O31: -0.44%
A32: 22 | B32: Finance | C32: BAJFINANCE | D32: 2537.90 | E32: 2511.62 | F32: 2480.03 | G32: 2422.17 | H32: 2390.58 | I32: 2569.48 | J32: 2601.07 | K32: 2658.93 | L32: 2543.2 | M32: 2453.75 | N32: 6507000 | O32: 1.21%
A33: 23 | B33: Others | C33: BALKRISIND | D33: 931.75 | E33: 934.23 | F33: 924.22 | G33: 916.68 | H33: 906.67 | I33: 941.77 | J33: 951.78 | K33: 959.32 | L33: 944.25 | M33: 926.7 | N33: 2420800 | O33: 5.69%
A34: 24 | B34: Banking | C34: BANKBARODA | D34: 112.55 | E34: 112.25 | F34: 110.25 | G34: 107.95 | H34: 105.95 | I34: 114.55 | J34: 116.55 | K34: 118.85 | L34: 114.25 | M34: 109.95 | N34: 65572000 | O34: 6.42%
A35: 25 | B35: Banking | C35: BANKINDIA | D35: 91.75 | E35: 90.75 | F35: 89.05 | G35: 86.35 | H35: 84.65 | I35: 93.45 | J35: 95.15 | K35: 97.85 | L35: 92.45 | M35: 88.05 | N35: 25944000 | O35: 8.48%
A36: 26 | B36: FMCG | C36: BATAINDIA | D36: 1100.45 | E36: 1096.40 | F36: 1087.80 | G36: 1075.15 | H36: 1066.55 | I36: 1109.05 | J36: 1117.65 | K36: 1130.30 | L36: 1105 | M36: 1083.75 | N36: 2140050 | O36: 3.95%
A37: 27 | B37: Capital_Goods | C37: BEL | D37: 84.75 | E37: 84.27 | F37: 83.58 | G37: 82.42 | H37: 81.73 | I37: 85.43 | J37: 86.12 | K37: 87.28 | L37: 84.95 | M37: 83.1 | N37: 42317850 | O37: 2.15%
A38: 28 | B38: Infrastructure | C38: BEML | D38: 855.65 | E38: 852.73 | F38: 842.12 | G38: 828.58 | H38: 817.97 | I38: 866.27 | J38: 876.88 | K38: 890.42 | L38: 863.35 | M38: 839.2 | N38: 1597000 | O38: -9.93%
A39: 29 | B39: Others | C39: BERGEPAINT | D39: 328.40 | E39: 325.60 | F39: 322.20 | G39: 316.00 | H39: 312.60 | I39: 331.80 | J39: 335.20 | K39: 341.40 | L39: 329 | M39: 319.4 | N39: 3049200 | O39: 27.74%
A40: 30 | B40: Finance | C40: BHARATFIN | D40: 1038.90 | E40: 1032.90 | F40: 1024.30 | G40: 1009.70 | H40: 1001.10 | I40: 1047.50 | J40: 1056.10 | K40: 1070.70 | L40: 1041.5 | M40: 1018.3 | N40: 5259500 | O40: -0.51%
A41: 31 | B41: Automobile | C41: BHARATFORG | D41: 522.85 | E41: 522.52 | F41: 517.33 | G41: 511.82 | H41: 506.63 | I41: 528.03 | J41: 533.22 | K41: 538.73 | L41: 527.7 | M41: 517 | N41: 10593600 | O41: 1.31%
A42: 32 | B42: Telecom | C42: BHARTIARTL | D42: 318.05 | E42: 316.95 | F42: 313.10 | G42: 308.15 | H42: 304.30 | I42: 321.90 | J42: 325.75 | K42: 330.70 | L42: 320.8 | M42: 312 | N42: 39916000 | O42: 0.34%
A43: 33 | B43: Capital_Goods | C43: BHEL | D43: 70.20 | E43: 69.50 | F43: 68.50 | G43: 66.80 | H43: 65.80 | I43: 71.20 | J43: 72.20 | K43: 73.90 | L43: 70.5 | M43: 67.8 | N43: 60052500 | O43: 4.60%
A44: 34 | B44: Pharma | C44: BIOCON | D44: 641.05 | E44: 639.23 | F44: 635.52 | G44: 629.98 | H44: 626.27 | I44: 644.77 | J44: 648.48 | K44: 654.02 | L44: 642.95 | M44: 633.7 | N44: 5742000 | O44: -0.03%
A45: 35 | B45: Automobile | C45: BOSCHLTD | D45: 19845.50 | E45: 19727.47 | F45: 19588.03 | G45: 19330.57 | H45: 19191.13 | I45: 19984.93 | J45: 20124.37 | K45: 20381.83 | L45: 19866.9 | M45: 19470 | N45: 155430 | O45: 3.54%
A46: 36 | B46: Oil_Gas | C46: BPCL | D46: 353.45 | E46: 352.65 | F46: 348.40 | G46: 343.35 | H46: 339.10 | I46: 357.70 | J46: 361.95 | K46: 367.00 | L46: 356.9 | M46: 347.6 | N46: 15147000 | O46: 4.26%
A47: 37 | B47: FMCG | C47: BRITANNIA | D47: 3174.00 | E47: 3165.42 | F47: 3143.83 | G47: 3113.67 | H47: 3092.08 | I47: 3195.58 | J47: 3217.17 | K47: 3247.33 | L47: 3187 | M47: 3135.25 | N47: 2864600 | O47: -0.35%
A48: 38 | B48: Pharma | C48: CADILAHC | D48: 346.05 | E48: 345.38 | F48: 342.27 | G48: 338.48 | H48: 335.37 | I48: 349.17 | J48: 352.28 | K48: 356.07 | L48: 348.5 | M48: 341.6 | N48: 9009600 | O48: 5.75%
A49: 39 | B49: Banking | C49: CANBK | D49: 269.95 | E49: 268.80 | F49: 265.30 | G49: 260.65 | H49: 257.15 | I49: 273.45 | J49: 276.95 | K49: 281.60 | L49: 272.3 | M49: 264.15 | N49: 12500000 | O49: 2.86%
A50: 40 | B50: Others | C50: CANFINHOME | D50: 279.55 | E50: 278.17 | F50: 274.48 | G50: 269.42 | H50: 265.73 | I50: 283.23 | J50: 286.92 | K50: 291.98 | L50: 281.85 | M50: 273.1 | N50: 4769550 | O50: 2.60%
A51: 41 | B51: Finance | C51: CAPF | D51: 568.30 | E51: 558.87 | F51: 547.18 | G51: 526.07 | H51: 514.38 | I51: 579.98 | J51: 591.67 | K51: 612.78 | L51: 570.55 | M51: 537.75 | N51: 6338900 | O51: 0.21%
A52: 42 | B52: Oil_Gas | C52: CASTROLIND | D52: 149.05 | E52: 148.17 | F52: 146.93 | G52: 144.82 | H52: 143.58 | I52: 150.28 | J52: 151.52 | K52: 153.63 | L52: 149.4 | M52: 146.05 | N52: 6977200 | O52: 1.00%
A53: 43 | B53: Automobile | C53: CEATLTD | D53: 1335.35 | E53: 1333.42 | F53: 1318.43 | G53: 1301.52 | H53: 1286.53 | I53: 1350.33 | J53: 1365.32 | K53: 1382.23 | L53: 1348.4 | M53: 1316.5 | N53: 845050 | O53: 8.37%
A54: 44 | B54: Textile | C54: CENTURYTEX | D54: 935.80 | E54: 932.50 | F54: 925.35 | G54: 914.90 | H54: 907.75 | I54: 942.95 | J54: 950.10 | K54: 960.55 | L54: 939.65 | M54: 922.05 | N54: 4390900 | O54: 0.32%
A55: 45 | B55: Power | C55: CESC | D55: 690.70 | E55: 694.32 | F55: 683.38 | G55: 676.07 | H55: 665.13 | I55: 701.63 | J55: 712.57 | K55: 719.88 | L55: 705.25 | M55: 687 | N55: 1327700 | O55: 9.23%
A56: 46 | B56: Power | C56: CGPOWER | D56: 40.55 | E56: 40.32 | F56: 39.93 | G56: 39.32 | H56: 38.93 | I56: 40.93 | J56: 41.32 | K56: 41.93 | L56: 40.7 | M56: 39.7 | N56: 44832000 | O56: 1.00%
A57: 47 | B57: Others | C57: CHENNPETRO | D57: 289.85 | E57: 286.17 | F57: 280.43 | G57: 271.02 | H57: 265.28 | I57: 295.58 | J57: 301.32 | K57: 310.73 | L57: 291.9 | M57: 276.75 | N57: 1008600 | O57: 23.97%
A58: 48 | B58: Others | C58: CHOLAFIN | D58: 1226.05 | E58: 1225.22 | F58: 1216.43 | G58: 1206.82 | H58: 1198.03 | I58: 1234.83 | J58: 1243.62 | K58: 1253.23 | L58: 1234 | M58: 1215.6 | N58: 1094000 | O58: 8.37%
A59: 49 | B59: Pharma | C59: CIPLA | D59: 524.95 | E59: 525.13 | F59: 521.67 | G59: 518.38 | H59: 514.92 | I59: 528.42 | J59: 531.88 | K59: 535.17 | L59: 528.6 | M59: 521.85 | N59: 7742000 | O59: -3.43%
A60: 50 | B60: Others | C60: COALINDIA | D60: 252.20 | E60: 251.83 | F60: 249.72 | G60: 247.23 | H60: 245.12 | I60: 254.32 | J60: 256.43 | K60: 258.92 | L60: 253.95 | M60: 249.35 | N60: 37360400 | O60: -6.33%
A61: 51 | B61: FMCG | C61: COLPAL | D61: 1313.10 | E61: 1307.20 | F61: 1297.85 | G61: 1282.60 | H61: 1273.25 | I61: 1322.45 | J61: 1331.80 | K61: 1347.05 | L61: 1316.55 | M61: 1291.95 | N61: 1645700 | O61: 3.61%
A62: 52 | B62: Others | C62: CONCOR | D62: 661.55 | E62: 659.48 | F62: 653.27 | G62: 644.98 | H62: 638.77 | I62: 667.77 | J62: 673.98 | K62: 682.27 | L62: 665.7 | M62: 651.2 | N62: 3726250 | O62: 0.78%
A63: 53 | B63: Capital_Goods | C63: CUMMINSIND | D63: 822.70 | E63: 826.63 | F63: 812.37 | G63: 802.03 | H63: 787.77 | I63: 836.97 | J63: 851.23 | K63: 861.57 | L63: 840.9 | M63: 816.3 | N63: 2130800 | O63: 10.37%
A64: 54 | B64: FMCG | C64: DABUR | D64: 444.70 | E64: 443.45 | F64: 440.25 | G64: 435.80 | H64: 432.60 | I64: 447.90 | J64: 451.10 | K64: 455.55 | L64: 446.65 | M64: 439 | N64: 11250000 | O64: 1.50%
A65: 55 | B65: Banking | C65: DCBBANK | D65: 160.75 | E65: 160.02 | F65: 158.58 | G65: 156.42 | H65: 154.98 | I65: 162.18 | J65: 163.62 | K65: 165.78 | L65: 161.45 | M65: 157.85 | N65: 4009500 | O65: 0.79%
A66: 56 | B66: Finance | C66: DHFL | D66: 214.25 | E66: 215.18 | F66: 211.82 | G66: 209.38 | H66: 206.02 | I66: 217.62 | J66: 220.98 | K66: 223.42 | L66: 218.55 | M66: 212.75 | N66: 25224000 | O66: 2.05%
A67: 57 | B67: Media | C67: DISHTV | D67: 36.80 | E67: 37.00 | F67: 36.25 | G67: 35.70 | H67: 34.95 | I67: 37.55 | J67: 38.30 | K67: 38.85 | L67: 37.75 | M67: 36.45 | N67: 61624000 | O67: 2.78%
A68: 58 | B68: Pharma | C68: DIVISLAB | D68: 1499.85 | E68: 1494.30 | F68: 1482.85 | G68: 1465.85 | H68: 1454.40 | I68: 1511.30 | J68: 1522.75 | K68: 1539.75 | L68: 1505.75 | M68: 1477.3 | N68: 3568000 | O68: -2.03%
A69: 59 | B69: Realty | C69: DLF | D69: 178.80 | E69: 179.07 | F69: 176.43 | G69: 174.07 | H69: 171.43 | I69: 181.43 | J69: 184.07 | K69: 186.43 | L69: 181.7 | M69: 176.7 | N69: 25063000 | O69: -0.15%
A70: 60 | B70: Pharma | C70: DRREDDY | D70: 2644.45 | E70: 2627.30 | F70: 2605.55 | G70: 2566.65 | H70: 2544.90 | I70: 2666.20 | J70: 2687.95 | K70: 2726.85 | L70: 2649.05 | M70: 2588.4 | N70: 3690750 | O70: -4.32%
A71: 61 | B71: Automobile | C71: EICHERMOT | D71: 23926.35 | E71: 23770.38 | F71: 23575.97 | G71: 23225.58 | H71: 23031.17 | I71: 24120.77 | J71: 24315.18 | K71: 24665.57 | L71: 23964.8 | M71: 23420 | N71: 254050 | O71: -0.20%
A72: 62 | B72: Infrastructure | C72: ENGINERSIN | D72: 117.40 | E72: 117.67 | F72: 116.43 | G72: 115.47 | H72: 114.23 | I72: 118.63 | J72: 119.87 | K72: 120.83 | L72: 118.9 | M72: 116.7 | N72: 6838900 | O72: 3.51%
A73: 63 | B73: Finance | C73: EQUITAS | D73: 117.45 | E73: 117.18 | F73: 115.52 | G73: 113.58 | H73: 111.92 | I73: 119.12 | J73: 120.78 | K73: 122.72 | L73: 118.85 | M73: 115.25 | N73: 9244000 | O73: 2.30%
A74: 64 | B74: Automobile | C74: ESCORTS | D74: 675.45 | E74: 673.90 | F74: 668.65 | G74: 661.85 | H74: 656.60 | I74: 680.70 | J74: 685.95 | K74: 692.75 | L74: 679.15 | M74: 667.1 | N74: 4637600 | O74: -1.75%
A75: 65 | B75: Automobile | C75: EXIDEIND | D75: 260.00 | E75: 259.20 | F75: 256.40 | G75: 252.80 | H75: 250.00 | I75: 262.80 | J75: 265.60 | K75: 269.20 | L75: 262 | M75: 255.6 | N75: 5408000 | O75: 0.48%
A76: 66 | B76: Banking | C76: FEDERALBNK | D76: 92.55 | E76: 92.68 | F76: 91.27 | G76: 89.98 | H76: 88.57 | I76: 93.97 | J76: 95.38 | K76: 96.67 | L76: 94.1 | M76: 91.4 | N76: 45736500 | O76: -3.04%
A77: 67 | B77: Oil_Gas | C77: GAIL | D77: 355.40 | E77: 354.85 | F77: 351.75 | G77: 348.10 | H77: 345.00 | I77: 358.50 | J77: 361.60 | K77: 365.25 | L77: 357.95 | M77: 351.2 | N77: 18997041 | O77: 0.64%
A78: 68 | B78: Pharma | C78: GLENMARK | D78: 688.20 | E78: 687.88 | F78: 682.82 | G78: 677.43 | H78: 672.37 | I78: 693.27 | J78: 698.33 | K78: 703.72 | L78: 692.95 | M78: 682.5 | N78: 4024000 | O78: 2.37%
A79: 69 | B79: Infrastructure | C79: GMRINFRA | D79: 15.80 | E79: 15.80 | F79: 15.65 | G79: 15.50 | H79: 15.35 | I79: 15.95 | J79: 16.10 | K79: 16.25 | L79: 15.95 | M79: 15.65 | N79: 180495000 | O79: 1.39%
A80: 70 | B80: Others | C80: GODFRYPHLP | D80: 912.30 | E80: 909.07 | F80: 903.13 | G80: 893.97 | H80: 888.03 | I80: 918.23 | J80: 924.17 | K80: 933.33 | L80: 915 | M80: 899.9 | N80: 494200 | O80: 7.62%
A81: 71 | B81: FMCG | C81: GODREJCP | D81: 839.85 | E81: 828.45 | F81: 813.90 | G81: 787.95 | H81: 773.40 | I81: 854.40 | J81: 868.95 | K81: 894.90 | L81: 843 | M81: 802.5 | N81: 4801200 | O81: 0.78%
A82: 72 | B82: FMCG | C82: GODREJIND | D82: 542.10 | E82: 540.58 | F82: 537.17 | G82: 532.23 | H82: 528.82 | I82: 545.52 | J82: 548.93 | K82: 553.87 | L82: 544 | M82: 535.65 | N82: 2268000 | O82: 2.58%
A83: 73 | B83: Cement | C83: GRASIM | D83: 855.85 | E83: 850.13 | F83: 841.82 | G83: 827.78 | H83: 819.47 | I83: 864.17 | J83: 872.48 | K83: 886.52 | L83: 858.45 | M83: 836.1 | N83: 8465250 | O83: -1.16%
A84: 74 | B84: Others | C84: GSFC | D84: 111.40 | E84: 110.88 | F84: 109.57 | G84: 107.73 | H84: 106.42 | I84: 112.72 | J84: 114.03 | K84: 115.87 | L84: 112.2 | M84: 109.05 | N84: 15983400 | O84: 1.21%
A85: 75 | B85: Others | C85: HAVELLS | D85: 704.25 | E85: 702.38 | F85: 698.12 | G85: 691.98 | H85: 687.72 | I85: 708.52 | J85: 712.78 | K85: 718.92 | L85: 706.65 | M85: 696.25 | N85: 5102000 | O85: 3.09%
A86: 76 | B86: Technology | C86: HCLTECH | D86: 985.90 | E86: 979.02 | F86: 968.88 | G86: 951.87 | H86: 941.73 | I86: 996.03 | J86: 1006.17 | K86: 1023.18 | L86: 989.15 | M86: 962 | N86: 9647400 | O86: -2.51%
A87: 77 | B87: Finance | C87: HDFC | D87: 1955.95 | E87: 1951.17 | F87: 1941.63 | G87: 1927.32 | H87: 1917.78 | I87: 1965.48 | J87: 1975.02 | K87: 1989.33 | L87: 1960.7 | M87: 1936.85 | N87: 25582500 | O87: -1.36%
A88: 78 | B88: Banking | C88: HDFCBANK | D88: 2142.05 | E88: 2132.60 | F88: 2120.20 | G88: 2098.35 | H88: 2085.95 | I88: 2154.45 | J88: 2166.85 | K88: 2188.70 | L88: 2145 | M88: 2110.75 | N88: 12115250 | O88: 2.26%
A89: 79 | B89: Automobile | C89: HEROMOTOCO | D89: 3309.75 | E89: 3296.58 | F89: 3264.17 | G89: 3218.58 | H89: 3186.17 | I89: 3342.17 | J89: 3374.58 | K89: 3420.17 | L89: 3329 | M89: 3251 | N89: 1316200 | O89: -1.35%
A90: 80 | B90: Technology | C90: HEXAWARE | D90: 335.50 | E90: 335.17 | F90: 329.43 | G90: 323.37 | H90: 317.63 | I90: 341.23 | J90: 346.97 | K90: 353.03 | L90: 340.9 | M90: 329.1 | N90: 3139500 | O90: -2.01%
A91: 81 | B91: Metals | C91: HINDALCO | D91: 226.35 | E91: 225.67 | F91: 223.93 | G91: 221.52 | H91: 219.78 | I91: 228.08 | J91: 229.82 | K91: 232.23 | L91: 227.4 | M91: 223.25 | N91: 30320500 | O91: -1.31%
A92: 82 | B92: Oil_Gas | C92: HINDPETRO | D92: 232.15 | E92: 231.10 | F92: 229.50 | G92: 226.85 | H92: 225.25 | I92: 233.75 | J92: 235.35 | K92: 238.00 | L92: 232.7 | M92: 228.45 | N92: 21691950 | O92: 3.09%
A93: 83 | B93: FMCG | C93: HINDUNILVR | D93: 1848.15 | E93: 1847.80 | F93: 1840.10 | G93: 1832.05 | H93: 1824.35 | I93: 1855.85 | J93: 1863.55 | K93: 1871.60 | L93: 1855.5 | M93: 1839.75 | N93: 10309800 | O93: -2.12%
A94: 84 | B94: Metals | C94: HINDZINC | D94: 278.75 | E94: 276.60 | F94: 273.40 | G94: 268.05 | H94: 264.85 | I94: 281.95 | J94: 285.15 | K94: 290.50 | L94: 279.8 | M94: 271.25 | N94: 5798400 | O94: 8.05%
A95: 85 | B95: Finance | C95: IBULHSGFIN | D95: 778.70 | E95: 778.65 | F95: 770.65 | G95: 762.60 | H95: 754.60 | I95: 786.70 | J95: 794.70 | K95: 802.75 | L95: 786.65 | M95: 770.6 | N95: 20807500 | O95: -0.10%
A96: 86 | B96: Banking | C96: ICICIBANK | D96: 362.50 | E96: 360.32 | F96: 357.63 | G96: 352.77 | H96: 350.08 | I96: 365.18 | J96: 367.87 | K96: 372.73 | L96: 363 | M96: 355.45 | N96: 82728250 | O96: 1.84%
A97: 87 | B97: Others | C97: ICICIPRULI | D97: 316.35 | E97: 319.45 | F97: 311.90 | G97: 307.45 | H97: 299.90 | I97: 323.90 | J97: 331.45 | K97: 335.90 | L97: 327 | M97: 315 | N97: 3973100 | O97: 7.53%
A98: 88 | B98: Banking | C98: IDBI | D98: 61.80 | E98: 61.57 | F98: 61.18 | G98: 60.57 | H98: 60.18 | I98: 62.18 | J98: 62.57 | K98: 63.18 | L98: 61.95 | M98: 60.95 | N98: 37520000 | O98: -2.44%
A99: 89 | B99: Telecom | C99: IDEA | D99: 37.40 | E99: 37.02 | F99: 36.43 | G99: 35.47 | H99: 34.88 | I99: 37.98 | J99: 38.57 | K99: 39.53 | L99: 37.6 | M99: 36.05 | N99: 144089000 | O99: -1.17%
A100: 90 | B100: Finance | C100: IDFC | D100: 41.20 | E100: 40.73 | F100: 40.07 | G100: 38.93 | H100: 38.27 | I100: 41.87 | J100: 42.53 | K100: 43.67 | L100: 41.4 | M100: 39.6 | N100: 108966000 | O100: 1.75%
A101: 91 | B101: Banking | C101: IDFCBANK | D101: 41.25 | E101: 40.57 | F101: 39.78 | G101: 38.32 | H101: 37.53 | I101: 42.03 | J101: 42.82 | K101: 44.28 | L101: 41.35 | M101: 39.1 | N101: 144470000 | O101: 4.15%
A102: 92 | B102: Finance | C102: IFCI | D102: 14.30 | E102: 14.13 | F102: 13.82 | G102: 13.33 | H102: 13.02 | I102: 14.62 | J102: 14.93 | K102: 15.42 | L102: 14.45 | M102: 13.65 | N102: 49155000 | O102: 2.16%
A103: 93 | B103: Oil_Gas | C103: IGL | D103: 260.65 | E103: 261.12 | F103: 258.23 | G103: 255.82 | H103: 252.93 | I103: 263.53 | J103: 266.42 | K103: 268.83 | L103: 264 | M103: 258.7 | N103: 6107750 | O103: -2.07%
A104: 94 | B104: Cement | C104: INDIACEM | D104: 94.45 | E104: 93.78 | F104: 92.77 | G104: 91.08 | H104: 90.07 | I104: 95.47 | J104: 96.48 | K104: 98.17 | L104: 94.8 | M104: 92.1 | N104: 19388000 | O104: 1.56%
A105: 95 | B105: Banking | C105: INDIANB | D105: 244.35 | E105: 241.87 | F105: 238.58 | G105: 232.82 | H105: 229.53 | I105: 247.63 | J105: 250.92 | K105: 256.68 | L105: 245.15 | M105: 236.1 | N105: 4230000 | O105: 6.33%
A106: 96 | B106: Others | C106: INDIGO | D106: 1113.80 | E106: 1102.27 | F106: 1077.53 | G106: 1041.27 | H106: 1016.53 | I106: 1138.53 | J106: 1163.27 | K106: 1199.53 | L106: 1127 | M106: 1066 | N106: 3043200 | O106: 8.17%
A107: 97 | B107: Banking | C107: INDUSINDBK | D107: 1644.70 | E107: 1635.97 | F107: 1622.28 | G107: 1599.87 | H107: 1586.18 | I107: 1658.38 | J107: 1672.07 | K107: 1694.48 | L107: 1649.65 | M107: 1613.55 | N107: 5291700 | O107: -1.79%
A108: 98 | B108: Technology | C108: INFIBEAM | D108: 49.20 | E108: 49.40 | F108: 47.90 | G108: 46.60 | H108: 45.10 | I108: 50.70 | J108: 52.20 | K108: 53.50 | L108: 50.9 | M108: 48.1 | N108: 14644000 | O108: -0.30%
A109: 99 | B109: Telecom | C109: INFRATEL | D109: 255.80 | E109: 255.80 | F109: 253.40 | G109: 251.00 | H109: 248.60 | I109: 258.20 | J109: 260.60 | K109: 263.00 | L109: 258.2 | M109: 253.4 | N109: 9135500 | O109: -0.42%
A110: 100 | B110: Technology | C110: INFY | D110: 678.30 | E110: 680.58 | F110: 674.17 | G110: 670.03 | H110: 663.62 | I110: 684.72 | J110: 691.13 | K110: 695.27 | L110: 687 | M110: 676.45 | N110: 42070800 | O110: 1.63%
A111: 101 | B111: Oil_Gas | C111: IOC | D111: 137.35 | E111: 136.87 | F111: 135.83 | G111: 134.32 | H111: 133.28 | I111: 138.38 | J111: 139.42 | K111: 140.93 | L111: 137.9 | M111: 135.35 | N111: 83438000 | O111: -3.87%
A112: 102 | B112: Infrastructure | C112: IRB | D112: 154.85 | E112: 153.92 | F112: 151.93 | G112: 149.02 | H112: 147.03 | I112: 156.83 | J112: 158.82 | K112: 161.73 | L112: 155.9 | M112: 151 | N112: 7994700 | O112: 0.93%
A113: 103 | B113: FMCG | C113: ITC | D113: 279.10 | E113: 279.35 | F113: 277.55 | G113: 276.00 | H113: 274.20 | I113: 280.90 | J113: 282.70 | K113: 284.25 | L113: 281.15 | M113: 277.8 | N113: 78864000 | O113: 0.73%
A114: 104 | B114: Others | C114: JETAIRWAYS | D114: 231.70 | E114: 230.80 | F114: 219.65 | G114: 207.60 | H114: 196.45 | I114: 242.85 | J114: 254.00 | K114: 266.05 | L114: 241.95 | M114: 218.75 | N114: 6108000 | O114: -0.41%
A115: 105 | B115: Metals | C115: JINDALSTEL | D115: 165.15 | E115: 164.33 | F115: 162.77 | G115: 160.38 | H115: 158.82 | I115: 166.72 | J115: 168.28 | K115: 170.67 | L115: 165.9 | M115: 161.95 | N115: 26408250 | O115: 1.17%
A116: 106 | B116: Others | C116: JISLJALEQS | D116: 65.85 | E116: 65.78 | F116: 64.92 | G116: 63.98 | H116: 63.12 | I116: 66.72 | J116: 67.58 | K116: 68.52 | L116: 66.65 | M116: 64.85 | N116: 35217000 | O116: 2.09%
A117: 107 | B117: Realty | C117: JPASSOCIAT | D117: 7.15 | E117: 7.20 | F117: 7.05 | G117: 6.95 | H117: 6.80 | I117: 7.30 | J117: 7.45 | K117: 7.55 | L117: 7.35 | M117: 7.1 | N117: 114472000 | O117: -1.34%
A118: 108 | B118: Metals | C118: JSWSTEEL | D118: 306.55 | E118: 304.47 | F118: 301.33 | G118: 296.12 | H118: 292.98 | I118: 309.68 | J118: 312.82 | K118: 318.03 | L118: 307.6 | M118: 299.25 | N118: 49780500 | O118: 0.41%
A119: 109 | B119: Others | C119: JUBLFOOD | D119: 1291.55 | E119: 1285.85 | F119: 1272.70 | G119: 1253.85 | H119: 1240.70 | I119: 1304.70 | J119: 1317.85 | K119: 1336.70 | L119: 1299 | M119: 1267 | N119: 2234000 | O119: -1.82%
A120: 110 | B120: Others | C120: JUSTDIAL | D120: 495.00 | E120: 494.37 | F120: 487.63 | G120: 480.27 | H120: 473.53 | I120: 501.73 | J120: 508.47 | K120: 515.83 | L120: 501.1 | M120: 487 | N120: 2476600 | O120: 4.06%
A121: 111 | B121: Others | C121: KAJARIACER | D121: 461.75 | E121: 458.75 | F121: 451.25 | G121: 440.75 | H121: 433.25 | I121: 469.25 | J121: 476.75 | K121: 487.25 | L121: 466.25 | M121: 448.25 | N121: 2099600 | O121: -3.19%
A122: 112 | B122: Banking | C122: KOTAKBANK | D122: 1242.05 | E122: 1234.70 | F122: 1225.25 | G122: 1208.45 | H122: 1199.00 | I122: 1251.50 | J122: 1260.95 | K122: 1277.75 | L122: 1244.15 | M122: 1217.9 | N122: 12287200 | O122: -0.27%
A123: 113 | B123: Technology | C123: KPIT | D123: 218.00 | E123: 217.20 | F123: 215.70 | G123: 213.40 | H123: 211.90 | I123: 219.50 | J123: 221.00 | K123: 223.30 | L123: 218.7 | M123: 214.9 | N123: 5998500 | O123: -1.62%
A124: 114 | B124: Others | C124: KSCL | D124: 572.05 | E124: 568.82 | F124: 562.63 | G124: 553.22 | H124: 547.03 | I124: 578.23 | J124: 584.42 | K124: 593.83 | L124: 575 | M124: 559.4 | N124: 1357500 | O124: 0.56%
A125: 115 | B125: Banking | C125: KTKBANK | D125: 110.50 | E125: 109.65 | F125: 108.55 | G125: 106.60 | H125: 105.50 | I125: 111.60 | J125: 112.70 | K125: 114.65 | L125: 110.75 | M125: 107.7 | N125: 15228300 | O125: 2.66%
A126: 116 | B126: Finance | C126: L&TFH | D126: 147.30 | E126: 147.85 | F126: 145.40 | G126: 143.50 | H126: 141.05 | I126: 149.75 | J126: 152.20 | K126: 154.10 | L126: 150.3 | M126: 145.95 | N126: 18603000 | O126: 1.60%
A127: 117 | B127: Finance | C127: LICHSGFIN | D127: 465.55 | E127: 463.82 | F127: 460.83 | G127: 456.12 | H127: 453.13 | I127: 468.53 | J127: 471.52 | K127: 476.23 | L127: 466.8 | M127: 459.1 | N127: 8309400 | O127: -1.47%
A128: 118 | B128: Capital_Goods | C128: LT | D128: 1432.15 | E128: 1425.05 | F128: 1415.20 | G128: 1398.25 | H128: 1388.40 | I128: 1442.00 | J128: 1451.85 | K128: 1468.80 | L128: 1434.9 | M128: 1408.1 | N128: 10026000 | O128: 1.62%
A129: 119 | B129: Pharma | C129: LUPIN | D129: 847.75 | E129: 846.15 | F129: 841.60 | G129: 835.45 | H129: 830.90 | I129: 852.30 | J129: 856.85 | K129: 863.00 | L129: 850.7 | M129: 840 | N129: 8458100 | O129: 1.16%
A130: 120 | B130: Automobile | C130: M&M | D130: 771.55 | E130: 766.05 | F130: 759.40 | G130: 747.25 | H130: 740.60 | I130: 778.20 | J130: 784.85 | K130: 797.00 | L130: 772.7 | M130: 753.9 | N130: 13602000 | O130: -1.00%
A131: 121 | B131: Finance | C131: M&MFIN | D131: 461.95 | E131: 458.67 | F131: 453.43 | G131: 444.92 | H131: 439.68 | I131: 467.18 | J131: 472.42 | K131: 480.93 | L131: 463.9 | M131: 450.15 | N131: 11492500 | O131: 0.77%
A132: 122 | B132: Others | C132: MANAPPURAM | D132: 89.15 | E132: 88.50 | F132: 87.35 | G132: 85.55 | H132: 84.40 | I132: 90.30 | J132: 91.45 | K132: 93.25 | L132: 89.65 | M132: 86.7 | N132: 12138000 | O132: 1.61%
A133: 123 | B133: FMCG | C133: MARICO | D133: 382.50 | E133: 380.67 | F133: 377.43 | G133: 372.37 | H133: 369.13 | I133: 385.73 | J133: 388.97 | K133: 394.03 | L133: 383.9 | M133: 375.6 | N133: 9180600 | O133: 0.37%
A134: 124 | B134: Automobile | C134: MARUTI | D134: 7786.70 | E134: 7752.88 | F134: 7705.82 | G134: 7624.93 | H134: 7577.87 | I134: 7833.77 | J134: 7880.83 | K134: 7961.72 | L134: 7799.95 | M134: 7672 | N134: 2073675 | O134: 1.43%
A135: 125 | B135: FMCG | C135: MCDOWELL-N | D135: 647.15 | E135: 642.35 | F135: 634.05 | G135: 620.95 | H135: 612.65 | I135: 655.45 | J135: 663.75 | K135: 676.85 | L135: 650.65 | M135: 629.25 | N135: 10806250 | O135: 5.22%
A136: 126 | B136: Others | C136: MCX | D136: 743.60 | E136: 738.42 | F136: 728.83 | G136: 714.07 | H136: 704.48 | I136: 753.18 | J136: 762.77 | K136: 777.53 | L136: 748 | M136: 723.65 | N136: 2525600 | O136: 5.87%
A137: 127 | B137: Finance | C137: MFSL | D137: 442.20 | E137: 444.95 | F137: 437.25 | G137: 432.30 | H137: 424.60 | I137: 449.90 | J137: 457.60 | K137: 462.55 | L137: 452.65 | M137: 440 | N137: 2299200 | O137: 2.90%
A138: 128 | B138: Others | C138: MGL | D138: 890.00 | E138: 894.82 | F138: 882.18 | G138: 874.37 | H138: 861.73 | I138: 902.63 | J138: 915.27 | K138: 923.08 | L138: 907.45 | M138: 887 | N138: 1011000 | O138: 0.42%
A139: 129 | B139: Technology | C139: MINDTREE | D139: 848.50 | E139: 852.33 | F139: 839.62 | G139: 830.73 | H139: 818.02 | I139: 861.22 | J139: 873.93 | K139: 882.82 | L139: 865.05 | M139: 843.45 | N139: 2371200 | O139: 9.66%
A140: 130 | B140: Automobile | C140: MOTHERSUMI | D140: 172.60 | E140: 170.33 | F140: 167.07 | G140: 161.53 | H140: 158.27 | I140: 175.87 | J140: 179.13 | K140: 184.67 | L140: 173.6 | M140: 164.8 | N140: 25743450 | O140: -1.91%
A141: 131 | B141: Automobile | C141: MRF | D141: 67855.80 | E141: 67492.27 | F141: 66763.53 | G141: 65671.27 | H141: 64942.53 | I141: 68584.53 | J141: 69313.27 | K141: 70405.53 | L141: 68221 | M141: 66400 | N141: 26690 | O141: 1.95%
A142: 132 | B142: Others | C142: MRPL | D142: 73.55 | E142: 73.20 | F142: 72.30 | G142: 71.05 | H142: 70.15 | I142: 74.45 | J142: 75.35 | K142: 76.60 | L142: 74.1 | M142: 71.95 | N142: 4992500 | O142: 14.02%
A143: 133 | B143: Finance | C143: MUTHOOTFIN | D143: 484.05 | E143: 481.42 | F143: 476.63 | G143: 469.22 | H143: 464.43 | I143: 488.83 | J143: 493.62 | K143: 501.03 | L143: 486.2 | M143: 474 | N143: 3562500 | O143: 3.08%
A144: 134 | B144: Others | C144: NATIONALUM | D144: 65.00 | E144: 64.92 | F144: 64.53 | G144: 64.07 | H144: 63.68 | I144: 65.38 | J144: 65.77 | K144: 66.23 | L144: 65.3 | M144: 64.45 | N144: 26640000 | O144: 3.13%
A145: 135 | B145: Others | C145: NBCC | D145: 53.70 | E145: 53.50 | F145: 52.90 | G145: 52.10 | H145: 51.50 | I145: 54.30 | J145: 54.90 | K145: 55.70 | L145: 54.1 | M145: 52.7 | N145: 38068000 | O145: -0.02%
A146: 136 | B146: Infrastructure | C146: NCC | D146: 84.30 | E146: 84.35 | F146: 83.20 | G146: 82.10 | H146: 80.95 | I146: 85.45 | J146: 86.60 | K146: 87.70 | L146: 85.5 | M146: 83.25 | N146: 49640000 | O146: -1.41%
A147: 137 | B147: Others | C147: NESTLEIND | D147: 11117.15 | E147: 11149.30 | F147: 11008.60 | G147: 10900.05 | H147: 10759.35 | I147: 11257.85 | J147: 11398.55 | K147: 11507.10 | L147: 11290 | M147: 11040.75 | N147: 273900 | O147: -0.47%
A148: 138 | B148: Power | C148: NHPC | D148: 26.30 | E148: 26.27 | F148: 26.18 | G148: 26.07 | H148: 25.98 | I148: 26.38 | J148: 26.47 | K148: 26.58 | L148: 26.35 | M148: 26.15 | N148: 21492000 | O148: 8.30%
A149: 139 | B149: Technology | C149: NIITTECH | D149: 1130.45 | E149: 1137.43 | F149: 1119.87 | G149: 1109.28 | H149: 1091.72 | I149: 1148.02 | J149: 1165.58 | K149: 1176.17 | L149: 1155 | M149: 1126.85 | N149: 1903500 | O149: 0.91%
A150: 140 | B150: Metals | C150: NMDC | D150: 95.80 | E150: 95.30 | F150: 94.50 | G150: 93.20 | H150: 92.40 | I150: 96.60 | J150: 97.40 | K150: 98.70 | L150: 96.1 | M150: 94 | N150: 21528000 | O150: 5.00%
A151: 141 | B151: Power | C151: NTPC | D151: 147.90 | E151: 147.15 | F151: 145.85 | G151: 143.80 | H151: 142.50 | I151: 149.20 | J151: 150.50 | K151: 152.55 | L151: 148.45 | M151: 145.1 | N151: 62348000 | O151: -5.85%
A152: 142 | B152: Technology | C152: OFSS | D152: 3653.30 | E152: 3616.80 | F152: 3571.60 | G152: 3489.90 | H152: 3444.70 | I152: 3698.50 | J152: 3743.70 | K152: 3825.40 | L152: 3662 | M152: 3535.1 | N152: 171300 | O152: 0.00%
A153: 143 | B153: Oil_Gas | C153: OIL | D153: 179.15 | E153: 178.82 | F153: 177.93 | G153: 176.72 | H153: 175.83 | I153: 180.03 | J153: 180.92 | K153: 182.13 | L153: 179.7 | M153: 177.6 | N153: 12178617 | O153: -2.64%
A154: 144 | B154: Oil_Gas | C154: ONGC | D154: 147.90 | E154: 147.75 | F154: 146.70 | G154: 145.50 | H154: 144.45 | I154: 148.95 | J154: 150.00 | K154: 151.20 | L154: 148.8 | M154: 146.55 | N154: 72922500 | O154: -2.16%
A155: 145 | B155: Banking | C155: ORIENTBANK | D155: 92.25 | E155: 91.72 | F155: 89.23 | G155: 86.22 | H155: 83.73 | I155: 94.73 | J155: 97.22 | K155: 100.23 | L155: 94.2 | M155: 88.7 | N155: 12780000 | O155: 0.69%
A156: 146 | B156: Textile | C156: PAGEIND | D156: 24521.25 | E156: 24551.75 | F156: 24213.50 | G156: 23905.75 | H156: 23567.50 | I156: 24859.50 | J156: 25197.75 | K156: 25505.50 | L156: 24890 | M156: 24244 | N156: 144525 | O156: -0.91%
A157: 147 | B157: Others | C157: PCJEWELLER | D157: 86.15 | E157: 85.22 | F157: 81.63 | G157: 77.12 | H157: 73.53 | I157: 89.73 | J157: 93.32 | K157: 97.83 | L157: 88.8 | M157: 80.7 | N157: 8477500 | O157: 3.92%
A158: 148 | B158: Pharma | C158: PEL | D158: 2188.00 | E158: 2174.60 | F158: 2153.40 | G158: 2118.80 | H158: 2097.60 | I158: 2209.20 | J158: 2230.40 | K158: 2265.00 | L158: 2195.8 | M158: 2140 | N158: 3031174 | O158: -0.03%
A159: 149 | B159: Oil_Gas | C159: PETRONET | D159: 224.35 | E159: 225.03 | F159: 222.57 | G159: 220.78 | H159: 218.32 | I159: 226.82 | J159: 229.28 | K159: 231.07 | L159: 227.5 | M159: 223.25 | N159: 12873000 | O159: -4.67%
A160: 150 | B160: Finance | C160: PFC | D160: 96.25 | E160: 94.87 | F160: 92.98 | G160: 89.72 | H160: 87.83 | I160: 98.13 | J160: 100.02 | K160: 103.28 | L160: 96.75 | M160: 91.6 | N160: 46158400 | O160: 4.67%
A161: 151 | B161: FMCG | C161: PIDILITIND | D161: 1172.55 | E161: 1177.18 | F161: 1164.37 | G161: 1156.18 | H161: 1143.37 | I161: 1185.37 | J161: 1198.18 | K161: 1206.37 | L161: 1190 | M161: 1169 | N161: 3214500 | O161: 0.58%
A162: 152 | B162: Banking | C162: PNB | D162: 74.60 | E162: 74.40 | F162: 72.65 | G162: 70.70 | H162: 68.95 | I162: 76.35 | J162: 78.10 | K162: 80.05 | L162: 76.15 | M162: 72.45 | N162: 112173000 | O162: 6.19%
A163: 153 | B163: Power | C163: POWERGRID | D163: 196.60 | E163: 194.00 | F163: 190.80 | G163: 185.00 | H163: 181.80 | I163: 199.80 | J163: 203.00 | K163: 208.80 | L163: 197.2 | M163: 188.2 | N163: 41408000 | O163: 1.97%
A164: 154 | B164: Power | C164: PTC | D164: 88.45 | E164: 88.77 | F164: 87.03 | G164: 85.62 | H164: 83.88 | I164: 90.18 | J164: 91.92 | K164: 93.33 | L164: 90.5 | M164: 87.35 | N164: 6728000 | O164: 5.92%
A165: 155 | B165: Others | C165: PVR | D165: 1560.65 | E165: 1558.25 | F165: 1550.40 | G165: 1540.15 | H165: 1532.30 | I165: 1568.50 | J165: 1576.35 | K165: 1586.60 | L165: 1566.1 | M165: 1548 | N165: 1341600 | O165: 4.29%
A166: 156 | B166: Cement | C166: RAMCOCEM | D166: 644.40 | E166: 642.93 | F166: 636.97 | G166: 629.53 | H166: 623.57 | I166: 650.37 | J166: 656.33 | K166: 663.77 | L166: 648.9 | M166: 635.5 | N166: 614400 | O166: 0.39%
A167: 157 | B167: Others | C167: RAYMOND | D167: 854.30 | E167: 855.48 | F167: 846.12 | G167: 837.93 | H167: 828.57 | I167: 863.67 | J167: 873.03 | K167: 881.22 | L167: 864.85 | M167: 847.3 | N167: 3876800 | O167: -0.72%
A168: 158 | B168: Banking | C168: RBLBANK | D168: 579.90 | E168: 577.95 | F168: 573.40 | G168: 566.90 | H168: 562.35 | I168: 584.45 | J168: 589.00 | K168: 595.50 | L168: 582.5 | M168: 571.45 | N168: 7732800 | O168: 2.33%
A169: 159 | B169: Telecom | C169: RCOM | D169: 15.80 | E169: 15.78 | F169: 15.52 | G169: 15.23 | H169: 14.97 | I169: 16.07 | J169: 16.33 | K169: 16.62 | L169: 16.05 | M169: 15.5 | N169: 89516000 | O169: 3.94%
A170: 160 | B170: Power | C170: RECLTD | D170: 108.30 | E170: 106.42 | F170: 104.08 | G170: 99.87 | H170: 97.53 | I170: 110.63 | J170: 112.97 | K170: 117.18 | L170: 108.75 | M170: 102.2 | N170: 50598000 | O170: -1.71%
A171: 161 | B171: Finance | C171: RELCAPITAL | D171: 220.65 | E171: 220.00 | F171: 217.55 | G171: 214.45 | H171: 212.00 | I171: 223.10 | J171: 225.55 | K171: 228.65 | L171: 222.45 | M171: 216.9 | N171: 13065000 | O171: -4.44%
A172: 162 | B172: Oil_Gas | C172: RELIANCE | D172: 1139.70 | E172: 1134.77 | F172: 1127.08 | G172: 1114.47 | H172: 1106.78 | I172: 1147.38 | J172: 1155.07 | K172: 1167.68 | L172: 1142.45 | M172: 1122.15 | N172: 46873500 | O172: 0.12%
A173: 163 | B173: Power | C173: RELINFRA | D173: 296.40 | E173: 293.82 | F173: 289.88 | G173: 283.37 | H173: 279.43 | I173: 300.33 | J173: 304.27 | K173: 310.78 | L173: 297.75 | M173: 287.3 | N173: 11163100 | O173: -2.91%
A174: 164 | B174: Others | C174: REPCOHOME | D174: 354.05 | E174: 352.02 | F174: 348.53 | G174: 343.02 | H174: 339.53 | I174: 357.53 | J174: 361.02 | K174: 366.53 | L174: 355.5 | M174: 346.5 | N174: 1653600 | O174: -1.14%
A175: 165 | B175: Power | C175: RPOWER | D175: 28.25 | E175: 28.20 | F175: 28.00 | G175: 27.75 | H175: 27.55 | I175: 28.45 | J175: 28.65 | K175: 28.90 | L175: 28.4 | M175: 27.95 | N175: 47445000 | O175: 2.90%
A176: 166 | B176: Metals | C176: SAIL | D176: 53.30 | E176: 52.95 | F176: 52.45 | G176: 51.60 | H176: 51.10 | I176: 53.80 | J176: 54.30 | K176: 55.15 | L176: 53.45 | M176: 52.1 | N176: 89016000 | O176: 2.06%
A177: 167 | B177: Banking | C177: SBIN | D177: 293.60 | E177: 291.83 | F177: 289.02 | G177: 284.43 | H177: 281.62 | I177: 296.42 | J177: 299.23 | K177: 303.82 | L177: 294.65 | M177: 287.25 | N177: 83277000 | O177: 2.07%
A178: 168 | B178: Cement | C178: SHREECEM | D178: 17093.10 | E178: 17021.40 | F178: 16844.85 | G178: 16596.60 | H178: 16420.05 | I178: 17269.65 | J178: 17446.20 | K178: 17694.45 | L178: 17197.95 | M178: 16773.15 | N178: 103000 | O178: 3.05%
A179: 169 | B179: Capital_Goods | C179: SIEMENS | D179: 984.15 | E179: 977.92 | F179: 969.73 | G179: 955.32 | H179: 947.13 | I179: 992.33 | J179: 1000.52 | K179: 1014.93 | L179: 986.1 | M179: 963.5 | N179: 2151550 | O179: -2.26%
A180: 170 | B180: Banking | C180: SOUTHBANK | D180: 15.40 | E180: 15.38 | F180: 15.27 | G180: 15.13 | H180: 15.02 | I180: 15.52 | J180: 15.63 | K180: 15.77 | L180: 15.5 | M180: 15.25 | N180: 130509258 | O180: 0.10%
A181: 171 | B181: Others | C181: SREINFRA | D181: 34.15 | E181: 33.77 | F181: 33.18 | G181: 32.22 | H181: 31.63 | I181: 34.73 | J181: 35.32 | K181: 36.28 | L181: 34.35 | M181: 32.8 | N181: 13000000 | O181: 3.19%
A182: 172 | B182: Textile | C182: SRF | D182: 2225.60 | E182: 2215.85 | F182: 2199.60 | G182: 2173.60 | H182: 2157.35 | I182: 2241.85 | J182: 2258.10 | K182: 2284.10 | L182: 2232.1 | M182: 2189.85 | N182: 608500 | O182: 1.08%
A183: 173 | B183: Finance | C183: SRTRANSFIN | D183: 1204.70 | E183: 1200.40 | F183: 1188.85 | G183: 1173.00 | H183: 1161.45 | I183: 1216.25 | J183: 1227.80 | K183: 1243.65 | L183: 1211.95 | M183: 1184.55 | N183: 3733200 | O183: -0.84%
A184: 174 | B184: Pharma | C184: STAR | D184: 473.85 | E184: 471.28 | F184: 466.57 | G184: 459.28 | H184: 454.57 | I184: 478.57 | J184: 483.28 | K184: 490.57 | L184: 476 | M184: 464 | N184: 3942000 | O184: 0.12%
A185: 175 | B185: Pharma | C185: SUNPHARMA | D185: 434.35 | E185: 430.02 | F185: 424.43 | G185: 414.52 | H185: 408.93 | I185: 439.93 | J185: 445.52 | K185: 455.43 | L185: 435.6 | M185: 420.1 | N185: 58403400 | O185: -1.28%
A186: 176 | B186: Media | C186: SUNTV | D186: 591.40 | E186: 585.30 | F186: 577.75 | G186: 564.10 | H186: 556.55 | I186: 598.95 | J186: 606.50 | K186: 620.15 | L186: 592.85 | M186: 571.65 | N186: 7278000 | O186: -3.81%
A187: 177 | B187: Power | C187: SUZLON | D187: 5.40 | E187: 5.38 | F187: 5.27 | G187: 5.13 | H187: 5.02 | I187: 5.52 | J187: 5.63 | K187: 5.77 | L187: 5.5 | M187: 5.25 | N187: 302315000 | O187: 0.39%
A188: 178 | B188: Banking | C188: SYNDIBANK | D188: 35.60 | E188: 35.12 | F188: 34.48 | G188: 33.37 | H188: 32.73 | I188: 36.23 | J188: 36.87 | K188: 37.98 | L188: 35.75 | M188: 34 | N188: 26706000 | O188: 5.31%
A189: 179 | B189: Fertilisers | C189: TATACHEM | D189: 718.15 | E189: 715.75 | F189: 705.00 | G189: 691.85 | H189: 681.10 | I189: 728.90 | J189: 739.65 | K189: 752.80 | L189: 726.5 | M189: 702.6 | N189: 2750250 | O189: 4.77%
A190: 180 | B190: Telecom | C190: TATACOMM | D190: 533.80 | E190: 532.15 | F190: 528.85 | G190: 523.90 | H190: 520.60 | I190: 537.10 | J190: 540.40 | K190: 545.35 | L190: 535.45 | M190: 527.2 | N190: 2547000 | O190: 0.33%
A191: 181 | B191: Technology | C191: TATAELXSI | D191: 1020.25 | E191: 1020.32 | F191: 1010.18 | G191: 1000.12 | H191: 989.98 | I191: 1030.38 | J191: 1040.52 | K191: 1050.58 | L191: 1030.45 | M191: 1010.25 | N191: 1447200 | O191: 3.67%
A192: 182 | B192: FMCG | C192: TATAGLOBAL | D192: 210.35 | E192: 211.02 | F192: 208.48 | G192: 206.62 | H192: 204.08 | I192: 212.88 | J192: 215.42 | K192: 217.28 | L192: 213.55 | M192: 209.15 | N192: 12519000 | O192: 1.87%
A193: 183 | B193: Automobile | C193: TATAMOTORS | D193: 175.10 | E193: 175.35 | F193: 172.90 | G193: 170.70 | H193: 168.25 | I193: 177.55 | J193: 180.00 | K193: 182.20 | L193: 177.8 | M193: 173.15 | N193: 62457000 | O193: -1.71%
A194: 184 | B194: Automobile | C194: TATAMTRDVR | D194: 96.25 | E194: 96.12 | F194: 94.88 | G194: 93.52 | H194: 92.28 | I194: 97.48 | J194: 98.72 | K194: 100.08 | L194: 97.35 | M194: 94.75 | N194: 27545600 | O194: 0.41%
A195: 185 | B195: Power | C195: TATAPOWER | D195: 79.05 | E195: 78.72 | F195: 78.13 | G195: 77.22 | H195: 76.63 | I195: 79.63 | J195: 80.22 | K195: 81.13 | L195: 79.3 | M195: 77.8 | N195: 46926000 | O195: 3.27%
A196: 186 | B196: Metals | C196: TATASTEEL | D196: 528.70 | E196: 526.33 | F196: 522.97 | G196: 517.23 | H196: 513.87 | I196: 532.07 | J196: 535.43 | K196: 541.17 | L196: 529.7 | M196: 520.6 | N196: 33228398 | O196: -0.77%
A197: 187 | B197: Technology | C197: TCS | D197: 1991.35 | E197: 1992.05 | F197: 1979.30 | G197: 1967.25 | H197: 1954.50 | I197: 2004.10 | J197: 2016.85 | K197: 2028.90 | L197: 2004.8 | M197: 1980 | N197: 11371500 | O197: -1.03%
A198: 188 | B198: Technology | C198: TECHM | D198: 711.80 | E198: 711.55 | F198: 705.50 | G198: 699.20 | H198: 693.15 | I198: 717.85 | J198: 723.90 | K198: 730.20 | L198: 717.6 | M198: 705.25 | N198: 12760800 | O198: 0.51%
A199: 189 | B199: FMCG | C199: TITAN | D199: 935.95 | E199: 936.80 | F199: 932.60 | G199: 929.25 | H199: 925.05 | I199: 940.15 | J199: 944.35 | K199: 947.70 | L199: 941 | M199: 933.45 | N199: 14008500 | O199: 0.38%
A200: 190 | B200: Pharma | C200: TORNTPHARM | D200: 1733.90 | E200: 1743.27 | F200: 1715.43 | G200: 1696.97 | H200: 1669.13 | I200: 1761.73 | J200: 1789.57 | K200: 1808.03 | L200: 1771.1 | M200: 1724.8 | N200: 368000 | O200: -3.41%
A201: 191 | B201: Power | C201: TORNTPOWER | D201: 256.85 | E201: 258.28 | F201: 253.92 | G201: 250.98 | H201: 246.62 | I201: 261.22 | J201: 265.58 | K201: 268.52 | L201: 262.65 | M201: 255.35 | N201: 2181000 | O201: 2.39%
A202: 192 | B202: Media | C202: TV18BRDCST | D202: 36.05 | E202: 35.82 | F202: 35.48 | G202: 34.92 | H202: 34.58 | I202: 36.38 | J202: 36.72 | K202: 37.28 | L202: 36.15 | M202: 35.25 | N202: 50424500 | O202: 1.95%
A203: 193 | B203: Automobile | C203: TVSMOTOR | D203: 577.25 | E203: 576.03 | F203: 573.22 | G203: 569.18 | H203: 566.37 | I203: 580.07 | J203: 582.88 | K203: 586.92 | L203: 578.85 | M203: 572 | N203: 7424000 | O203: -1.08%
A204: 194 | B204: FMCG | C204: UBL | D204: 1373.40 | E204: 1350.13 | F204: 1321.27 | G204: 1269.13 | H204: 1240.27 | I204: 1402.27 | J204: 1431.13 | K204: 1483.27 | L204: 1379 | M204: 1298 | N204: 2266600 | O204: 3.25%
A205: 195 | B205: Finance | C205: UJJIVAN | D205: 251.25 | E205: 247.75 | F205: 240.00 | G205: 228.75 | H205: 221.00 | I205: 259.00 | J205: 266.75 | K205: 278.00 | L205: 255.5 | M205: 236.5 | N205: 4008000 | O205: 15.07%
A206: 196 | B206: Cement | C206: ULTRACEMCO | D206: 4022.35 | E206: 4010.53 | F206: 3993.07 | G206: 3963.78 | H206: 3946.32 | I206: 4039.82 | J206: 4057.28 | K206: 4086.57 | L206: 4028 | M206: 3981.25 | N206: 2056200 | O206: -0.48%
... 24 more rows

Sheet Cash Intra
M5: Back to Main Page
A6: FOR INTRA DAY TRADING | K6: =Main!B10 -> 2018-12-19
A8: Sr.no | B8: Scrip | C8: CLOSE RATE | D8: Pivot Point | E8: Supports | H8: Resistances
C9: Point | E9: S1 | F9: S2 | G9: S3 | H9: R1 | I9: R2 | J9: R3 | K9: HIGH | L9: LOW | M9: Total Trade Quanity in Lakhs
A10: 1 | B10: Nifty 50 | C10: 10908.7 | D10: 10881.07 | E10: 10846.73 | F10: 10784.77 | G10: 10750.43 | H10: 10943.03 | I10: 10977.37 | J10: 11039.33 | K10: 10915.4 | L10: 10819.1
A11: 2 | B11: Nifty Bank | C11: 27174.7 | D11: 27075.18 | E11: 26940.32 | F11: 26705.93 | G11: 26571.07 | H11: 27309.57 | I11: 27444.43 | J11: 27678.82 | K11: 27210.05 | L11: 26840.8
A12: 3 | B12: Nifty CPSE | C12: 2063.1 | D12: 2056.17 | E12: 2046.93 | F12: 2030.77 | G12: 2021.53 | H12: 2072.33 | I12: 2081.57 | J12: 2097.73 | K12: 2065.4 | L12: 2040
A13: 4 | B13: Nifty Infra | C13: 3135.6 | D13: 3121.50 | E13: 3103.20 | F13: 3070.80 | G13: 3052.50 | H13: 3153.90 | I13: 3172.20 | J13: 3204.60 | K13: 3139.8 | L13: 3089.1
A14: 5 | B14: Nifty IT | C14: 14730.9 | D14: 14734.18 | E14: 14658.82 | F14: 14586.73 | G14: 14511.37 | H14: 14806.27 | I14: 14881.63 | J14: 14953.72 | K14: 14809.55 | L14: 14662.1
A15: 6 | B15: Nifty PSE | C15: 3352.5 | D15: 3341.18 | E15: 3325.82 | F15: 3299.13 | G15: 3283.77 | H15: 3367.87 | I15: 3383.23 | J15: 3409.92 | K15: 3356.55 | L15: 3314.5
A16: 7 | B16: Nifty Midcap 50 | C16: 4846.95 | D16: 4835.18 | E16: 4818.17 | F16: 4789.38 | G16: 4772.37 | H16: 4863.97 | I16: 4880.98 | J16: 4909.77 | K16: 4852.2 | L16: 4806.4
A17: 8 | B17: ABB | C17: 1333.95 | D17: 1351.35 | E17: 1303.75 | F17: 1273.55 | G17: 1225.95 | H17: 1381.55 | I17: 1429.15 | J17: 1459.35 | K17: 1398.95 | L17: 1321.15 | M17: 5.46938
A18: 9 | B18: ACC | C18: 1501.25 | D18: 1500.53 | E18: 1491.07 | F18: 1480.88 | G18: 1471.42 | H18: 1510.72 | I18: 1520.18 | J18: 1530.37 | K18: 1510 | L18: 1490.35 | M18: 3.60523
A19: 10 | B19: AIAENG | C19: 1638.5 | D19: 1628.17 | E19: 1616.33 | F19: 1594.17 | G19: 1582.33 | H19: 1650.33 | I19: 1662.17 | J19: 1684.33 | K19: 1640 | L19: 1606 | M19: 0.28199
A20: 11 | B20: AUBANK | C20: 640.4 | D20: 642.33 | E20: 631.77 | F20: 623.13 | G20: 612.57 | H20: 650.97 | I20: 661.53 | J20: 670.17 | K20: 652.9 | L20: 633.7 | M20: 4.6825
A21: 12 | B21: ADANIENT | C21: 158.05 | D21: 158.00 | E21: 156.25 | F21: 154.45 | G21: 152.70 | H21: 159.80 | I21: 161.55 | J21: 163.35 | K21: 159.75 | L21: 156.2 | M21: 16.89582
A22: 13 | B22: ADANIPORTS | C22: 372.9 | D22: 370.75 | E22: 367.15 | F22: 361.40 | G22: 357.80 | H22: 376.50 | I22: 380.10 | J22: 385.85 | K22: 374.35 | L22: 365 | M22: 26.87027
A23: 14 | B23: ADANIPOWER | C23: 52.8 | D23: 52.62 | E23: 52.03 | F23: 51.27 | G23: 50.68 | H23: 53.38 | I23: 53.97 | J23: 54.73 | K23: 53.2 | L23: 51.85 | M23: 69.14284
A24: 15 | B24: ABFRL | C24: 202.5 | D24: 202.08 | E24: 199.42 | F24: 196.33 | G24: 193.67 | H24: 205.17 | I24: 207.83 | J24: 210.92 | K24: 204.75 | L24: 199 | M24: 11.95739
A25: 16 | B25: AJANTPHARM | C25: 1117.9 | D25: 1106.63 | E25: 1091.27 | F25: 1064.63 | G25: 1049.27 | H25: 1133.27 | I25: 1148.63 | J25: 1175.27 | K25: 1122 | L25: 1080 | M25: 4.18309
A26: 17 | B26: ALKEM | C26: 1873 | D26: 1876.33 | E26: 1862.67 | F26: 1852.33 | G26: 1838.67 | H26: 1886.67 | I26: 1900.33 | J26: 1910.67 | K26: 1890 | L26: 1866 | M26: 0.3446
A27: 18 | B27: AMARAJABAT | C27: 734.15 | D27: 737.58 | E27: 727.17 | F27: 720.18 | G27: 709.77 | H27: 744.57 | I27: 754.98 | J27: 761.97 | K27: 748 | L27: 730.6 | M27: 3.3022
A28: 19 | B28: AMBUJACEM | C28: 219.65 | D28: 219.53 | E28: 218.12 | F28: 216.58 | G28: 215.17 | H28: 221.07 | I28: 222.48 | J28: 224.02 | K28: 220.95 | L28: 218 | M28: 15.65567
A29: 20 | B29: APOLLOHOSP | C29: 1226.1 | D29: 1218.03 | E29: 1208.07 | F29: 1190.03 | G29: 1180.07 | H29: 1236.07 | I29: 1246.03 | J29: 1264.07 | K29: 1228 | L29: 1200 | M29: 4.54828
A30: 21 | B30: APOLLOTYRE | C30: 235.55 | D30: 237.02 | E30: 231.73 | F30: 227.92 | G30: 222.63 | H30: 240.83 | I30: 246.12 | J30: 249.93 | K30: 242.3 | L30: 233.2 | M30: 41.3685
A31: 22 | B31: ARVIND | C31: 98.25 | D31: 98.60 | E31: 97.15 | F31: 96.05 | G31: 94.60 | H31: 99.70 | I31: 101.15 | J31: 102.25 | K31: 100.05 | L31: 97.5 | M31: 42.57935
A32: 23 | B32: ASHOKLEY | C32: 104.8 | D32: 104.87 | E32: 103.93 | F32: 103.07 | G32: 102.13 | H32: 105.73 | I32: 106.67 | J32: 107.53 | K32: 105.8 | L32: 104 | M32: 109.04597
A33: 24 | B33: ASIANPAINT | C33: 1355.7 | D33: 1348.08 | E33: 1335.17 | F33: 1314.63 | G33: 1301.72 | H33: 1368.62 | I33: 1381.53 | J33: 1402.07 | K33: 1361 | L33: 1327.55 | M33: 15.81385
A34: 25 | B34: AUROPHARMA | C34: 735.7 | D34: 735.53 | E34: 729.57 | F34: 723.43 | G34: 717.47 | H34: 741.67 | I34: 747.63 | J34: 753.77 | K34: 741.5 | L34: 729.4 | M34: 20.89344
A35: 26 | B35: DMART | C35: 1668.15 | D35: 1656.55 | E35: 1628.10 | F35: 1588.05 | G35: 1559.60 | H35: 1696.60 | I35: 1725.05 | J35: 1765.10 | K35: 1685 | L35: 1616.5 | M35: 8.86105
A36: 27 | B36: AXISBANK | C36: 619.4 | D36: 618.35 | E36: 614.90 | F36: 610.40 | G36: 606.95 | H36: 622.85 | I36: 626.30 | J36: 630.80 | K36: 621.8 | L36: 613.85 | M36: 84.92688
A37: 28 | B37: BAJAJ-AUTO | C37: 2840.9 | D37: 2845.58 | E37: 2817.37 | F37: 2793.83 | G37: 2765.62 | H37: 2869.12 | I37: 2897.33 | J37: 2920.87 | K37: 2873.8 | L37: 2822.05 | M37: 4.43162
A38: 29 | B38: BAJFINANCE | C38: 2532.2 | D38: 2505.67 | E38: 2473.13 | F38: 2414.07 | G38: 2381.53 | H38: 2564.73 | I38: 2597.27 | J38: 2656.33 | K38: 2538.2 | L38: 2446.6 | M38: 16.53107
A39: 30 | B39: BAJAJFINSV | C39: 6152.65 | D39: 6131.45 | E39: 6097.90 | F39: 6043.15 | G39: 6009.60 | H39: 6186.20 | I39: 6219.75 | J39: 6274.50 | K39: 6165 | L39: 6076.7 | M39: 1.51411
A40: 31 | B40: BALKRISIND | C40: 927.55 | D40: 930.62 | E40: 920.03 | F40: 912.52 | G40: 901.93 | H40: 938.13 | I40: 948.72 | J40: 956.23 | K40: 941.2 | L40: 923.1 | M40: 5.07105
A41: 32 | B41: BANKBARODA | C41: 112.45 | D41: 112.12 | E41: 110.33 | F41: 108.22 | G41: 106.43 | H41: 114.23 | I41: 116.02 | J41: 118.13 | K41: 113.9 | L41: 110 | M41: 109.15321
A42: 33 | B42: BANKINDIA | C42: 91.45 | D42: 90.42 | E42: 88.73 | F42: 86.02 | G42: 84.33 | H42: 93.13 | I42: 94.82 | J42: 97.53 | K42: 92.1 | L42: 87.7 | M42: 138.1177
A43: 34 | B43: BATAINDIA | C43: 1098.15 | D43: 1094.37 | E43: 1086.03 | F43: 1073.92 | G43: 1065.58 | H43: 1106.48 | I43: 1114.82 | J43: 1126.93 | K43: 1102.7 | L43: 1082.25 | M43: 6.38077
A44: 35 | B44: BERGEPAINT | C44: 328.5 | D44: 326.12 | E44: 322.63 | F44: 316.77 | G44: 313.28 | H44: 331.98 | I44: 335.47 | J44: 341.33 | K44: 329.6 | L44: 320.25 | M44: 16.2017
A45: 36 | B45: BEL | C45: 84.35 | D45: 83.93 | E45: 83.27 | F45: 82.18 | G45: 81.52 | H45: 85.02 | I45: 85.68 | J45: 86.77 | K45: 84.6 | L45: 82.85 | M45: 89.60701
A46: 37 | B46: BHARATFIN | C46: 1035.4 | D46: 1030.18 | E46: 1021.47 | F46: 1007.53 | G46: 998.82 | H46: 1044.12 | I46: 1052.83 | J46: 1066.77 | K46: 1038.9 | L46: 1016.25 | M46: 5.28633
A47: 38 | B47: BHARATFORG | C47: 522 | D47: 521.03 | E47: 516.22 | F47: 510.43 | G47: 505.62 | H47: 526.82 | I47: 531.63 | J47: 537.42 | K47: 525.85 | L47: 515.25 | M47: 12.71134
A48: 39 | B48: BHEL | C48: 69.9 | D48: 69.12 | E48: 68.08 | F48: 66.27 | G48: 65.23 | H48: 70.93 | I48: 71.97 | J48: 73.78 | K48: 70.15 | L48: 67.3 | M48: 170.7272
A49: 40 | B49: BPCL | C49: 353.25 | D49: 353.18 | E49: 348.77 | F49: 344.28 | G49: 339.87 | H49: 357.67 | I49: 362.08 | J49: 366.57 | K49: 357.6 | L49: 348.7 | M49: 44.93815
A50: 41 | B50: BHARTIARTL | C50: 317.8 | D50: 316.70 | E50: 312.70 | F50: 307.60 | G50: 303.60 | H50: 321.80 | I50: 325.80 | J50: 330.90 | K50: 320.7 | L50: 311.6 | M50: 56.53153
A51: 42 | B51: INFRATEL | C51: 254.6 | D51: 254.87 | E51: 252.43 | F51: 250.27 | G51: 247.83 | H51: 257.03 | I51: 259.47 | J51: 261.63 | K51: 257.3 | L51: 252.7 | M51: 11.71801
A52: 43 | B52: BIOCON | C52: 638.85 | D52: 637.88 | E52: 634.77 | F52: 630.68 | G52: 627.57 | H52: 641.97 | I52: 645.08 | J52: 649.17 | K52: 641 | L52: 633.8 | M52: 10.18473
A53: 44 | B53: BOSCHLTD | C53: 19861.55 | D53: 19748.20 | E53: 19616.40 | F53: 19371.25 | G53: 19239.45 | H53: 19993.35 | I53: 20125.15 | J53: 20370.30 | K53: 19880 | L53: 19503.05 | M53: 0.31179
A54: 45 | B54: BRITANNIA | C54: 3168.7 | D54: 3160.57 | E54: 3138.13 | F54: 3107.57 | G54: 3085.13 | H54: 3191.13 | I54: 3213.57 | J54: 3244.13 | K54: 3183 | L54: 3130 | M54: 2.30834
A55: 46 | B55: CRISIL | C55: 1599.45 | D55: 1597.08 | E55: 1586.17 | F55: 1572.88 | G55: 1561.97 | H55: 1610.37 | I55: 1621.28 | J55: 1634.57 | K55: 1608 | L55: 1583.8 | M55: 0.03813
A56: 47 | B56: CADILAHC | C56: 345.25 | D56: 344.88 | E56: 341.82 | F56: 338.38 | G56: 335.32 | H56: 348.32 | I56: 351.38 | J56: 354.82 | K56: 347.95 | L56: 341.45 | M56: 13.76167
A57: 48 | B57: CANBK | C57: 269.15 | D57: 267.98 | E57: 264.62 | F57: 260.08 | G57: 256.72 | H57: 272.52 | I57: 275.88 | J57: 280.42 | K57: 271.35 | L57: 263.45 | M57: 55.51983
A58: 49 | B58: CASTROLIND | C58: 148.35 | D58: 147.72 | E58: 146.53 | F58: 144.72 | G58: 143.53 | H58: 149.53 | I58: 150.72 | J58: 152.53 | K58: 148.9 | L58: 145.9 | M58: 6.01173
A59: 50 | B59: CENTRALBK | C59: 31.4 | D59: 31.13 | E59: 30.82 | F59: 30.23 | G59: 29.92 | H59: 31.72 | I59: 32.03 | J59: 32.62 | K59: 31.45 | L59: 30.55 | M59: 4.43577
A60: 51 | B60: CENTURYTEX | C60: 932.35 | D60: 930.12 | E60: 922.53 | F60: 912.72 | G60: 905.13 | H60: 939.93 | I60: 947.52 | J60: 957.33 | K60: 937.7 | L60: 920.3 | M60: 3.30193
A61: 52 | B61: CHOLAFIN | C61: 1219.85 | D61: 1219.28 | E61: 1210.02 | F61: 1200.18 | G61: 1190.92 | H61: 1229.12 | I61: 1238.38 | J61: 1248.22 | K61: 1228.55 | L61: 1209.45 | M61: 3.11331
A62: 53 | B62: CIPLA | C62: 522.9 | D62: 523.32 | E62: 519.63 | F62: 516.37 | G62: 512.68 | H62: 526.58 | I62: 530.27 | J62: 533.53 | K62: 527 | L62: 520.05 | M62: 16.2824
A63: 54 | B63: COALINDIA | C63: 251.85 | D63: 251.58 | E63: 249.32 | F63: 246.78 | G63: 244.52 | H63: 254.12 | I63: 256.38 | J63: 258.92 | K63: 253.85 | L63: 249.05 | M63: 64.77964
A64: 55 | B64: COLPAL | C64: 1310.8 | D64: 1305.35 | E64: 1295.70 | F64: 1280.60 | G64: 1270.95 | H64: 1320.45 | I64: 1330.10 | J64: 1345.20 | K64: 1315 | L64: 1290.25 | M64: 5.36529
A65: 56 | B65: CONCOR | C65: 660.4 | D65: 658.47 | E65: 652.43 | F65: 644.47 | G65: 638.43 | H65: 666.43 | I65: 672.47 | J65: 680.43 | K65: 664.5 | L65: 650.5 | M65: 7.1117
A66: 57 | B66: COROMANDEL | C66: 446.05 | D66: 445.12 | E66: 441.93 | F66: 437.82 | G66: 434.63 | H66: 449.23 | I66: 452.42 | J66: 456.53 | K66: 448.3 | L66: 441 | M66: 2.04203
A67: 58 | B67: CROMPTON | C67: 228.7 | D67: 227.00 | E67: 224.00 | F67: 219.30 | G67: 216.30 | H67: 231.70 | I67: 234.70 | J67: 239.40 | K67: 230 | L67: 222.3 | M67: 2.60133
A68: 59 | B68: CUMMINSIND | C68: 818.75 | D68: 823.93 | E68: 808.52 | F68: 798.28 | G68: 782.87 | H68: 834.17 | I68: 849.58 | J68: 859.82 | K68: 839.35 | L68: 813.7 | M68: 11.34739
A69: 60 | B69: DLF | C69: 178.05 | D69: 178.42 | E69: 175.88 | F69: 173.72 | G69: 171.18 | H69: 180.58 | I69: 183.12 | J69: 185.28 | K69: 180.95 | L69: 176.25 | M69: 37.86975
A70: 61 | B70: DABUR | C70: 442.9 | D70: 441.95 | E70: 438.95 | F70: 435.00 | G70: 432.00 | H70: 445.90 | I70: 448.90 | J70: 452.85 | K70: 444.95 | L70: 438 | M70: 21.09797
A71: 62 | B71: DHFL | C71: 214.05 | D71: 215.40 | E71: 212.00 | F71: 209.95 | G71: 206.55 | H71: 217.45 | I71: 220.85 | J71: 222.90 | K71: 218.8 | L71: 213.35 | M71: 45.81599
A72: 63 | B72: DISHTV | C72: 36.75 | D72: 36.97 | E72: 36.28 | F72: 35.82 | G72: 35.13 | H72: 37.43 | I72: 38.12 | J72: 38.58 | K72: 37.65 | L72: 36.5 | M72: 31.11908
A73: 64 | B73: DIVISLAB | C73: 1496.4 | D73: 1491.25 | E73: 1481.05 | F73: 1465.70 | G73: 1455.50 | H73: 1506.60 | I73: 1516.80 | J73: 1532.15 | K73: 1501.45 | L73: 1475.9 | M73: 5.45698
A74: 65 | B74: LALPATHLAB | C74: 951.8 | D74: 954.90 | E74: 941.90 | F74: 932.00 | G74: 919.00 | H74: 964.80 | I74: 977.80 | J74: 987.70 | K74: 967.9 | L74: 945 | M74: 0.20886
A75: 66 | B75: DRREDDY | C75: 2639.3 | D75: 2622.15 | E75: 2599.30 | F75: 2559.30 | G75: 2536.45 | H75: 2662.15 | I75: 2685.00 | J75: 2725.00 | K75: 2645 | L75: 2582.15 | M75: 7.39253
A76: 67 | B76: EDELWEISS | C76: 192.2 | D76: 190.93 | E76: 187.17 | F76: 182.13 | G76: 178.37 | H76: 195.97 | I76: 199.73 | J76: 204.77 | K76: 194.7 | L76: 185.9 | M76: 16.79407
A77: 68 | B77: EICHERMOT | C77: 23865.65 | D77: 23703.20 | E77: 23506.40 | F77: 23147.15 | G77: 22950.35 | H77: 24062.45 | I77: 24259.25 | J77: 24618.50 | K77: 23900 | L77: 23343.95 | M77: 0.61416
A78: 69 | B78: EMAMILTD | C78: 435.35 | D78: 436.30 | E78: 432.10 | F78: 428.85 | G78: 424.65 | H78: 439.55 | I78: 443.75 | J78: 447.00 | K78: 440.5 | L78: 433.05 | M78: 0.58478
A79: 70 | B79: ENDURANCE | C79: 1184.1 | D79: 1183.13 | E79: 1167.27 | F79: 1150.43 | G79: 1134.57 | H79: 1199.97 | I79: 1215.83 | J79: 1232.67 | K79: 1199 | L79: 1166.3 | M79: 0.08731
A80: 71 | B80: ENGINERSIN | C80: 117.05 | D80: 117.37 | E80: 116.23 | F80: 115.42 | G80: 114.28 | H80: 118.18 | I80: 119.32 | J80: 120.13 | K80: 118.5 | L80: 116.55 | M80: 7.04866
A81: 72 | B81: EXIDEIND | C81: 258.65 | D81: 258.43 | E81: 256.27 | F81: 253.88 | G81: 251.72 | H81: 260.82 | I81: 262.98 | J81: 265.37 | K81: 260.6 | L81: 256.05 | M81: 11.29964
A82: 73 | B82: FEDERALBNK | C82: 92.2 | D82: 92.43 | E82: 90.97 | F82: 89.73 | G82: 88.27 | H82: 93.67 | I82: 95.13 | J82: 96.37 | K82: 93.9 | L82: 91.2 | M82: 141.44108
A83: 74 | B83: GAIL | C83: 354.5 | D83: 353.80 | E83: 350.40 | F83: 346.30 | G83: 342.90 | H83: 357.90 | I83: 361.30 | J83: 365.40 | K83: 357.2 | L83: 349.7 | M83: 34.59455
A84: 75 | B84: GMRINFRA | C84: 15.7 | D84: 15.72 | E84: 15.58 | F84: 15.47 | G84: 15.33 | H84: 15.83 | I84: 15.97 | J84: 16.08 | K84: 15.85 | L84: 15.6 | M84: 62.28576
A85: 76 | B85: GSKCONS | C85: 7807.5 | D85: 7831.83 | E85: 7715.67 | F85: 7623.83 | G85: 7507.67 | H85: 7923.67 | I85: 8039.83 | J85: 8131.67 | K85: 7948 | L85: 7740 | M85: 0.38894
A86: 77 | B86: GLAXO | C86: 1421.8 | D86: 1414.52 | E86: 1400.08 | F86: 1378.37 | G86: 1363.93 | H86: 1436.23 | I86: 1450.67 | J86: 1472.38 | K86: 1428.95 | L86: 1392.8 | M86: 0.09555
A87: 78 | B87: GLENMARK | C87: 686.1 | D87: 686.37 | E87: 679.73 | F87: 673.37 | G87: 666.73 | H87: 692.73 | I87: 699.37 | J87: 705.73 | K87: 693 | L87: 680 | M87: 7.46278
A88: 79 | B88: GODREJCP | C88: 838.7 | D88: 835.55 | E88: 828.15 | F88: 817.60 | G88: 810.20 | H88: 846.10 | I88: 853.50 | J88: 864.05 | K88: 842.95 | L88: 825 | M88: 8.97798
A89: 80 | B89: GODREJIND | C89: 539.6 | D89: 538.78 | E89: 534.87 | F89: 530.13 | G89: 526.22 | H89: 543.52 | I89: 547.43 | J89: 552.17 | K89: 542.7 | L89: 534.05 | M89: 2.51686
A90: 81 | B90: GRUH | C90: 300 | D90: 299.95 | E90: 295.10 | F90: 290.20 | G90: 285.35 | H90: 304.85 | I90: 309.70 | J90: 314.60 | K90: 304.8 | L90: 295.05 | M90: 7.15267
A91: 82 | B91: GPPL | C91: 101.45 | D91: 101.50 | E91: 100.60 | F91: 99.75 | G91: 98.85 | H91: 102.35 | I91: 103.25 | J91: 104.10 | K91: 102.4 | L91: 100.65 | M91: 4.04399
A92: 83 | B92: GSPL | C92: 176.5 | D92: 177.00 | E92: 175.30 | F92: 174.10 | G92: 172.40 | H92: 178.20 | I92: 179.90 | J92: 181.10 | K92: 178.7 | L92: 175.8 | M92: 2.22938
A93: 84 | B93: HCLTECH | C93: 985.2 | D93: 977.80 | E93: 966.80 | F93: 948.40 | G93: 937.40 | H93: 996.20 | I93: 1007.20 | J93: 1025.60 | K93: 988.8 | L93: 959.4 | M93: 19.37251
A94: 85 | B94: HDFCBANK | C94: 2135.45 | D94: 2125.68 | E94: 2112.37 | F94: 2089.28 | G94: 2075.97 | H94: 2148.77 | I94: 2162.08 | J94: 2185.17 | K94: 2139 | L94: 2102.6 | M94: 18.53492
A95: 86 | B95: HAVELLS | C95: 701.95 | D95: 699.68 | E95: 695.52 | F95: 689.08 | G95: 684.92 | H95: 706.12 | I95: 710.28 | J95: 716.72 | K95: 703.85 | L95: 693.25 | M95: 10.72555
A96: 87 | B96: HEROMOTOCO | C96: 3298.05 | D96: 3287.57 | E96: 3250.48 | F96: 3202.92 | G96: 3165.83 | H96: 3335.13 | I96: 3372.22 | J96: 3419.78 | K96: 3324.65 | L96: 3240 | M96: 9.10514
A97: 88 | B97: HEXAWARE | C97: 335.65 | D97: 335.05 | E97: 329.10 | F97: 322.55 | G97: 316.60 | H97: 341.60 | I97: 347.55 | J97: 354.10 | K97: 341 | L97: 328.5 | M97: 20.30695
A98: 89 | B98: HINDALCO | C98: 225.25 | D98: 224.95 | E98: 222.90 | F98: 220.55 | G98: 218.50 | H98: 227.30 | I98: 229.35 | J98: 231.70 | K98: 227 | L98: 222.6 | M98: 59.15969
A99: 90 | B99: HINDPETRO | C99: 231.35 | D99: 230.57 | E99: 228.88 | F99: 226.42 | G99: 224.73 | H99: 233.03 | I99: 234.72 | J99: 237.18 | K99: 232.25 | L99: 228.1 | M99: 66.60517
A100: 91 | B100: HINDUNILVR | C100: 1840.75 | D100: 1840.88 | E100: 1832.87 | F100: 1824.98 | G100: 1816.97 | H100: 1848.77 | I100: 1856.78 | J100: 1864.67 | K100: 1848.9 | L100: 1833 | M100: 15.21255
A101: 92 | B101: HINDZINC | C101: 277.8 | D101: 275.93 | E101: 272.87 | F101: 267.93 | G101: 264.87 | H101: 280.87 | I101: 283.93 | J101: 288.87 | K101: 279 | L101: 271 | M101: 11.08324
A102: 93 | B102: HUDCO | C102: 43.4 | D102: 43.25 | E102: 42.85 | F102: 42.30 | G102: 41.90 | H102: 43.80 | I102: 44.20 | J102: 44.75 | K102: 43.65 | L102: 42.7 | M102: 6.32748
A103: 94 | B103: HDFC | C103: 1952 | D103: 1947.47 | E103: 1937.03 | F103: 1922.07 | G103: 1911.63 | H103: 1962.43 | I103: 1972.87 | J103: 1987.83 | K103: 1957.9 | L103: 1932.5 | M103: 21.21103
A104: 95 | B104: ITC | C104: 278.15 | D104: 278.58 | E104: 276.57 | F104: 274.98 | G104: 272.97 | H104: 280.17 | I104: 282.18 | J104: 283.77 | K104: 280.6 | L104: 277 | M104: 88.32786
A105: 96 | B105: ICICIBANK | C105: 362.25 | D105: 359.92 | E105: 356.93 | F105: 351.62 | G105: 348.63 | H105: 365.23 | I105: 368.22 | J105: 373.53 | K105: 362.9 | L105: 354.6 | M105: 154.05953
A106: 97 | B106: ICICIPRULI | C106: 314.95 | D106: 317.53 | E106: 311.62 | F106: 308.28 | G106: 302.37 | H106: 320.87 | I106: 326.78 | J106: 330.12 | K106: 323.45 | L106: 314.2 | M106: 9.96731
A107: 98 | B107: IDBI | C107: 61.8 | D107: 61.60 | E107: 61.25 | F107: 60.70 | G107: 60.35 | H107: 62.15 | I107: 62.50 | J107: 63.05 | K107: 61.95 | L107: 61.05 | M107: 29.36834
A108: 99 | B108: IDFCBANK | C108: 41.2 | D108: 40.52 | E108: 39.73 | F108: 38.27 | G108: 37.48 | H108: 41.98 | I108: 42.77 | J108: 44.23 | K108: 41.3 | L108: 39.05 | M108: 188.19636
A109: 100 | B109: IDFC | C109: 41.15 | D109: 40.67 | E109: 40.03 | F109: 38.92 | G109: 38.28 | H109: 41.78 | I109: 42.42 | J109: 43.53 | K109: 41.3 | L109: 39.55 | M109: 35.50502
A110: 101 | B110: IRB | C110: 154.2 | D110: 153.25 | E110: 151.50 | F110: 148.80 | G110: 147.05 | H110: 155.95 | I110: 157.70 | J110: 160.40 | K110: 155 | L110: 150.55 | M110: 10.2917
A111: 102 | B111: IDEA | C111: 37.3 | D111: 37.02 | E111: 36.33 | F111: 35.37 | G111: 34.68 | H111: 37.98 | I111: 38.67 | J111: 39.63 | K111: 37.7 | L111: 36.05 | M111: 159.76524
A112: 103 | B112: IBULHSGFIN | C112: 776.6 | D112: 776.73 | E112: 768.57 | F112: 760.53 | G112: 752.37 | H112: 784.77 | I112: 792.93 | J112: 800.97 | K112: 784.9 | L112: 768.7 | M112: 32.33478
A113: 104 | B113: INDIANB | C113: 243.3 | D113: 240.48 | E113: 236.97 | F113: 230.63 | G113: 227.12 | H113: 246.82 | I113: 250.33 | J113: 256.67 | K113: 244 | L113: 234.15 | M113: 18.07714
A114: 105 | B114: INDHOTEL | C114: 145 | D114: 147.00 | E114: 142.20 | F114: 139.40 | G114: 134.60 | H114: 149.80 | I114: 154.60 | J114: 157.40 | K114: 151.8 | L114: 144.2 | M114: 22.48666
A115: 106 | B115: IOC | C115: 144.75 | D115: 144.25 | E115: 143.50 | F115: 142.25 | G115: 141.50 | H115: 145.50 | I115: 146.25 | J115: 147.50 | K115: 145 | L115: 143 | M115: 200.50465
A116: 107 | B116: IGL | C116: 259.9 | D116: 260.62 | E116: 257.38 | F116: 254.87 | G116: 251.63 | H116: 263.13 | I116: 266.37 | J116: 268.88 | K116: 263.85 | L116: 258.1 | M116: 15.40405
A117: 108 | B117: INDUSINDBK | C117: 1639.55 | D117: 1630.97 | E117: 1617.58 | F117: 1595.62 | G117: 1582.23 | H117: 1652.93 | I117: 1666.32 | J117: 1688.28 | K117: 1644.35 | L117: 1609 | M117: 9.83139
A118: 109 | B118: NAUKRI | C118: 1569.9 | D118: 1600.63 | E118: 1524.27 | F118: 1478.63 | G118: 1402.27 | H118: 1646.27 | I118: 1722.63 | J118: 1768.27 | K118: 1677 | L118: 1555 | M118: 2.3999
A119: 110 | B119: INFY | C119: 676.6 | D119: 679.22 | E119: 671.93 | F119: 667.27 | G119: 659.98 | H119: 683.88 | I119: 691.17 | J119: 695.83 | K119: 686.5 | L119: 674.55 | M119: 80.21298
A120: 111 | B120: INDIGO | C120: 1108.5 | D120: 1098.17 | E120: 1072.33 | F120: 1036.17 | G120: 1010.33 | H120: 1134.33 | I120: 1160.17 | J120: 1196.33 | K120: 1124 | L120: 1062 | M120: 21.3808
A121: 112 | B121: IPCALAB | C121: 778.55 | D121: 785.17 | E121: 767.38 | F121: 756.22 | G121: 738.43 | H121: 796.33 | I121: 814.12 | J121: 825.28 | K121: 802.95 | L121: 774 | M121: 1.49781
A122: 113 | B122: JSWENERGY | C122: 72 | D122: 71.73 | E122: 70.12 | F122: 68.23 | G122: 66.62 | H122: 73.62 | I122: 75.23 | J122: 77.12 | K122: 73.35 | L122: 69.85 | M122: 14.97766
A123: 114 | B123: JSWSTEEL | C123: 305.45 | D123: 303.42 | E123: 300.13 | F123: 294.82 | G123: 291.53 | H123: 308.73 | I123: 312.02 | J123: 317.33 | K123: 306.7 | L123: 298.1 | M123: 66.38364
A124: 115 | B124: JINDALSTEL | C124: 164.9 | D124: 164.15 | E124: 162.75 | F124: 160.60 | G124: 159.20 | H124: 166.30 | I124: 167.70 | J124: 169.85 | K124: 165.55 | L124: 162 | M124: 72.17556
A125: 116 | B125: JUBLFOOD | C125: 1289.4 | D125: 1282.53 | E125: 1270.07 | F125: 1250.73 | G125: 1238.27 | H125: 1301.87 | I125: 1314.33 | J125: 1333.67 | K125: 1295 | L125: 1263.2 | M125: 16.77757
A126: 117 | B126: JUBILANT | C126: 722.85 | D126: 725.18 | E126: 715.87 | F126: 708.88 | G126: 699.57 | H126: 732.17 | I126: 741.48 | J126: 748.47 | K126: 734.5 | L126: 718.2 | M126: 2.31766
A127: 118 | B127: KARURVYSYA | C127: 84.55 | D127: 83.98 | E127: 83.17 | F127: 81.78 | G127: 80.97 | H127: 85.37 | I127: 86.18 | J127: 87.57 | K127: 84.8 | L127: 82.6 | M127: 10.35937
A128: 119 | B128: KOTAKBANK | C128: 1237.1 | D128: 1230.25 | E128: 1220.85 | F128: 1204.60 | G128: 1195.20 | H128: 1246.50 | I128: 1255.90 | J128: 1272.15 | K128: 1239.65 | L128: 1214 | M128: 36.78466
A129: 120 | B129: L&TFH | C129: 146.75 | D129: 147.42 | E129: 144.93 | F129: 143.12 | G129: 140.63 | H129: 149.23 | I129: 151.72 | J129: 153.53 | K129: 149.9 | L129: 145.6 | M129: 36.69223
A130: 121 | B130: LICHSGFIN | C130: 464.65 | D130: 463.32 | E130: 460.08 | F130: 455.52 | G130: 452.28 | H130: 467.88 | I130: 471.12 | J130: 475.68 | K130: 466.55 | L130: 458.75 | M130: 8.62373
A131: 122 | B131: LT | C131: 1428.5 | D131: 1421.17 | E131: 1412.33 | F131: 1396.17 | G131: 1387.33 | H131: 1437.33 | I131: 1446.17 | J131: 1462.33 | K131: 1430 | L131: 1405 | M131: 15.68498
A132: 123 | B132: LUPIN | C132: 845 | D132: 843.43 | E132: 838.37 | F132: 831.73 | G132: 826.67 | H132: 850.07 | I132: 855.13 | J132: 861.77 | K132: 848.5 | L132: 836.8 | M132: 8.92197
A133: 124 | B133: MRF | C133: 67561.5 | D133: 67220.17 | E133: 66441.38 | F133: 65321.27 | G133: 64542.48 | H133: 68340.28 | I133: 69119.07 | J133: 70239.18 | K133: 67998.95 | L133: 66100.05 | M133: 0.04752
A134: 125 | B134: MGL | C134: 888.4 | D134: 893.73 | E134: 879.97 | F134: 871.53 | G134: 857.77 | H134: 902.17 | I134: 915.93 | J134: 924.37 | K134: 907.5 | L134: 885.3 | M134: 5.57597
A135: 126 | B135: M&MFIN | C135: 460.9 | D135: 457.45 | E135: 451.95 | F135: 443.00 | G135: 437.50 | H135: 466.40 | I135: 471.90 | J135: 480.85 | K135: 462.95 | L135: 448.5 | M135: 14.15258
A136: 127 | B136: M&M | C136: 770.95 | D136: 765.12 | E136: 758.23 | F136: 745.52 | G136: 738.63 | H136: 777.83 | I136: 784.72 | J136: 797.43 | K136: 772 | L136: 752.4 | M136: 36.00834
A137: 128 | B137: MANAPPURAM | C137: 88.8 | D137: 88.12 | E137: 86.93 | F137: 85.07 | G137: 83.88 | H137: 89.98 | I137: 91.17 | J137: 93.03 | K137: 89.3 | L137: 86.25 | M137: 15.80569
A138: 129 | B138: MRPL | C138: 73.15 | D138: 72.93 | E138: 71.92 | F138: 70.68 | G138: 69.67 | H138: 74.17 | I138: 75.18 | J138: 76.42 | K138: 73.95 | L138: 71.7 | M138: 11.36699
A139: 130 | B139: MARICO | C139: 382.1 | D139: 380.20 | E139: 376.45 | F139: 370.80 | G139: 367.05 | H139: 385.85 | I139: 389.60 | J139: 395.25 | K139: 383.95 | L139: 374.55 | M139: 13.58797
A140: 131 | B140: MARUTI | C140: 7772.35 | D140: 7737.45 | E140: 7689.90 | F140: 7607.45 | G140: 7559.90 | H140: 7819.90 | I140: 7867.45 | J140: 7949.90 | K140: 7785 | L140: 7655 | M140: 6.58919
A141: 132 | B141: MFSL | C141: 440.95 | D141: 444.00 | E141: 436.05 | F141: 431.15 | G141: 423.20 | H141: 448.90 | I141: 456.85 | J141: 461.75 | K141: 451.95 | L141: 439.1 | M141: 5.71406
A142: 133 | B142: MINDTREE | C142: 846.6 | D142: 851.75 | E142: 836.45 | F142: 826.30 | G142: 811.00 | H142: 861.90 | I142: 877.20 | J142: 887.35 | K142: 867.05 | L142: 841.6 | M142: 16.34661
A143: 134 | B143: MOTHERSUMI | C143: 172.65 | D143: 170.57 | E143: 167.13 | F143: 161.62 | G143: 158.18 | H143: 176.08 | I143: 179.52 | J143: 185.03 | K143: 174 | L143: 165.05 | M143: 66.38532
A144: 135 | B144: MPHASIS | C144: 1005.1 | D144: 998.50 | E144: 977.60 | F144: 950.10 | G144: 929.20 | H144: 1026.00 | I144: 1046.90 | J144: 1074.40 | K144: 1019.4 | L144: 971 | M144: 2.64548
A145: 136 | B145: MUTHOOTFIN | C145: 483.8 | D145: 480.78 | E145: 476.02 | F145: 468.23 | G145: 463.47 | H145: 488.57 | I145: 493.33 | J145: 501.12 | K145: 485.55 | L145: 473 | M145: 9.715
A146: 137 | B146: NATCOPHARM | C146: 705.75 | D146: 705.10 | E146: 702.20 | F146: 698.65 | G146: 695.75 | H146: 708.65 | I146: 711.55 | J146: 715.10 | K146: 708 | L146: 701.55 | M146: 0.96968
A147: 138 | B147: NBCC | C147: 53.4 | D147: 53.23 | E147: 52.67 | F147: 51.93 | G147: 51.37 | H147: 53.97 | I147: 54.53 | J147: 55.27 | K147: 53.8 | L147: 52.5 | M147: 49.96702
A148: 139 | B148: NHPC | C148: 26.15 | D148: 26.13 | E148: 26.02 | F148: 25.88 | G148: 25.77 | H148: 26.27 | I148: 26.38 | J148: 26.52 | K148: 26.25 | L148: 26 | M148: 40.59159
A149: 140 | B149: NMDC | C149: 95.5 | D149: 95.08 | E149: 94.22 | F149: 92.93 | G149: 92.07 | H149: 96.37 | I149: 97.23 | J149: 98.52 | K149: 95.95 | L149: 93.8 | M149: 16.11197
A150: 141 | B150: NTPC | C150: 147.7 | D150: 147.12 | E150: 145.83 | F150: 143.97 | G150: 142.68 | H150: 148.98 | I150: 150.27 | J150: 152.13 | K150: 148.4 | L150: 145.25 | M150: 108.64175
A151: 142 | B151: NATIONALUM | C151: 64.75 | D151: 64.68 | E151: 64.22 | F151: 63.68 | G151: 63.22 | H151: 65.22 | I151: 65.68 | J151: 66.22 | K151: 65.15 | L151: 64.15 | M151: 28.86685
A152: 143 | B152: OBEROIRLTY | C152: 483.45 | D152: 483.87 | E152: 475.73 | F152: 468.02 | G152: 459.88 | H152: 491.58 | I152: 499.72 | J152: 507.43 | K152: 492 | L152: 476.15 | M152: 8.12837
A153: 144 | B153: ONGC | C153: 147.6 | D153: 147.62 | E153: 146.28 | F153: 144.97 | G153: 143.63 | H153: 148.93 | I153: 150.27 | J153: 151.58 | K153: 148.95 | L153: 146.3 | M153: 104.74177
A154: 145 | B154: OIL | C154: 178.8 | D154: 178.58 | E154: 177.27 | F154: 175.73 | G154: 174.42 | H154: 180.12 | I154: 181.43 | J154: 182.97 | K154: 179.9 | L154: 177.05 | M154: 18.40136
A155: 146 | B155: OFSS | C155: 3644.65 | D155: 3620.58 | E155: 3584.17 | F155: 3523.68 | G155: 3487.27 | H155: 3681.07 | I155: 3717.48 | J155: 3777.97 | K155: 3657 | L155: 3560.1 | M155: 0.1958
A156: 147 | B156: PCJEWELLER | C156: 85.95 | D156: 85.18 | E156: 81.77 | F156: 77.58 | G156: 74.17 | H156: 89.37 | I156: 92.78 | J156: 96.97 | K156: 88.6 | L156: 81 | M156: 457.95181
A157: 148 | B157: PIIND | C157: 812.2 | D157: 812.57 | E157: 806.23 | F157: 800.27 | G157: 793.93 | H157: 818.53 | I157: 824.87 | J157: 830.83 | K157: 818.9 | L157: 806.6 | M157: 0.86169
A158: 149 | B158: PNBHOUSING | C158: 946.4 | D158: 959.22 | E158: 928.43 | F158: 910.47 | G158: 879.68 | H158: 977.18 | I158: 1007.97 | J158: 1025.93 | K158: 990 | L158: 941.25 | M158: 2.85614
A159: 150 | B159: PAGEIND | C159: 24443.05 | D159: 24477.10 | E159: 24155.20 | F159: 23867.35 | G159: 23545.45 | H159: 24764.95 | I159: 25086.85 | J159: 25374.70 | K159: 24799 | L159: 24189.25 | M159: 0.31789
A160: 151 | B160: PETRONET | C160: 224.2 | D160: 224.90 | E160: 222.30 | F160: 220.40 | G160: 217.80 | H160: 226.80 | I160: 229.40 | J160: 231.30 | K160: 227.5 | L160: 223 | M160: 48.07492
A161: 152 | B161: PIDILITIND | C161: 1168.2 | D161: 1174.35 | E161: 1158.90 | F161: 1149.60 | G161: 1134.15 | H161: 1183.65 | I161: 1199.10 | J161: 1208.40 | K161: 1189.8 | L161: 1165.05 | M161: 4.42226
A162: 153 | B162: PEL | C162: 2179.15 | D162: 2166.93 | E162: 2143.42 | F162: 2107.68 | G162: 2084.17 | H162: 2202.67 | I162: 2226.18 | J162: 2261.92 | K162: 2190.45 | L162: 2131.2 | M162: 2.45424
A163: 154 | B163: PFC | C163: 96.55 | D163: 95.03 | E163: 92.87 | F163: 89.18 | G163: 87.02 | H163: 98.72 | I163: 100.88 | J163: 104.57 | K163: 97.2 | L163: 91.35 | M163: 233.8837
A164: 155 | B164: POWERGRID | C164: 196.35 | D164: 194.75 | E164: 192.50 | F164: 188.65 | G164: 186.40 | H164: 198.60 | I164: 200.85 | J164: 204.70 | K164: 197 | L164: 190.9 | M164: 87.22897
A165: 156 | B165: PRESTIGE | C165: 206.5 | D165: 207.40 | E165: 203.80 | F165: 201.10 | G165: 197.50 | H165: 210.10 | I165: 213.70 | J165: 216.40 | K165: 211 | L165: 204.7 | M165: 0.84395
A166: 157 | B166: PGHH | C166: 9897.65 | D166: 9897.22 | E166: 9822.43 | F166: 9747.22 | G166: 9672.43 | H166: 9972.43 | I166: 10047.22 | J166: 10122.43 | K166: 9972 | L166: 9822 | M166: 0.03226
A167: 158 | B167: PNB | C167: 74.25 | D167: 74.07 | E167: 72.33 | F167: 70.42 | G167: 68.68 | H167: 75.98 | I167: 77.72 | J167: 79.63 | K167: 75.8 | L167: 72.15 | M167: 334.86536
A168: 159 | B168: RBLBANK | C168: 577.55 | D168: 575.95 | E168: 571.70 | F168: 565.85 | G168: 561.60 | H168: 581.80 | I168: 586.05 | J168: 591.90 | K168: 580.2 | L168: 570.1 | M168: 10.28557
A169: 160 | B169: RAJESHEXPO | C169: 569.35 | D169: 569.57 | E169: 567.78 | F169: 566.22 | G169: 564.43 | H169: 571.13 | I169: 572.92 | J169: 574.48 | K169: 571.35 | L169: 568 | M169: 2.06101
A170: 161 | B170: RELCAPITAL | C170: 219.5 | D170: 219.00 | E170: 216.75 | F170: 214.00 | G170: 211.75 | H170: 221.75 | I170: 224.00 | J170: 226.75 | K170: 221.25 | L170: 216.25 | M170: 47.81599
A171: 162 | B171: RCOM | C171: 15.75 | D171: 15.77 | E171: 15.48 | F171: 15.22 | G171: 14.93 | H171: 16.03 | I171: 16.32 | J171: 16.58 | K171: 16.05 | L171: 15.5 | M171: 701.67746
A172: 163 | B172: RELIANCE | C172: 1136.4 | D172: 1131.97 | E172: 1124.93 | F172: 1113.47 | G172: 1106.43 | H172: 1143.43 | I172: 1150.47 | J172: 1161.93 | K172: 1139 | L172: 1120.5 | M172: 58.70928
A173: 164 | B173: RELINFRA | C173: 295.15 | D173: 292.63 | E173: 288.62 | F173: 282.08 | G173: 278.07 | H173: 299.17 | I173: 303.18 | J173: 309.72 | K173: 296.65 | L173: 286.1 | M173: 45.88109
A174: 165 | B174: RPOWER | C174: 28.1 | D174: 28.12 | E174: 27.88 | F174: 27.67 | G174: 27.43 | H174: 28.33 | I174: 28.57 | J174: 28.78 | K174: 28.35 | L174: 27.9 | M174: 95.0306
A175: 166 | B175: RECLTD | C175: 107.8 | D175: 106.52 | E175: 104.78 | F175: 101.77 | G175: 100.03 | H175: 109.53 | I175: 111.27 | J175: 114.28 | K175: 108.25 | L175: 103.5 | M175: 115.02082
A176: 167 | B176: SRF | C176: 2220.35 | D176: 2211.98 | E176: 2193.97 | F176: 2167.58 | G176: 2149.57 | H176: 2238.37 | I176: 2256.38 | J176: 2282.77 | K176: 2230 | L176: 2185.6 | M176: 2.40106
A177: 168 | B177: SHREECEM | C177: 17030.05 | D177: 16987.83 | E177: 16801.67 | F177: 16573.28 | G177: 16387.12 | H177: 17216.22 | I177: 17402.38 | J177: 17630.77 | K177: 17174 | L177: 16759.45 | M177: 0.08998
A178: 169 | B178: SRTRANSFIN | C178: 1200.15 | D178: 1196.08 | E178: 1184.17 | F178: 1168.18 | G178: 1156.27 | H178: 1212.07 | I178: 1223.98 | J178: 1239.97 | K178: 1208 | L178: 1180.1 | M178: 7.27443
A179: 170 | B179: SIEMENS | C179: 982 | D179: 975.20 | E179: 965.85 | F179: 949.70 | G179: 940.35 | H179: 991.35 | I179: 1000.70 | J179: 1016.85 | K179: 984.55 | L179: 959.05 | M179: 4.85884
A180: 171 | B180: SBIN | C180: 292.75 | D180: 291.25 | E180: 288.50 | F180: 284.25 | G180: 281.50 | H180: 295.50 | I180: 298.25 | J180: 302.50 | K180: 294 | L180: 287 | M180: 136.06582
A181: 172 | B181: SAIL | C181: 53.15 | D181: 52.82 | E181: 52.23 | F181: 51.32 | G181: 50.73 | H181: 53.73 | I181: 54.32 | J181: 55.23 | K181: 53.4 | L181: 51.9 | M181: 91.17715
A182: 173 | B182: SPARC | C182: 209.7 | D182: 210.88 | E182: 206.37 | F182: 203.03 | G182: 198.52 | H182: 214.22 | I182: 218.73 | J182: 222.07 | K182: 215.4 | L182: 207.55 | M182: 4.1763
A183: 174 | B183: SUNPHARMA | C183: 433.45 | D183: 429.07 | E183: 423.23 | F183: 413.02 | G183: 407.18 | H183: 439.28 | I183: 445.12 | J183: 455.33 | K183: 434.9 | L183: 418.85 | M183: 144.02058
A184: 175 | B184: SUNTV | C184: 588.85 | D184: 583.08 | E184: 575.77 | F184: 562.68 | G184: 555.37 | H184: 596.17 | I184: 603.48 | J184: 616.57 | K184: 590.4 | L184: 570 | M184: 20.31643
A185: 176 | B185: SUZLON | C185: 5.35 | D185: 5.37 | E185: 5.23 | F185: 5.12 | G185: 4.98 | H185: 5.48 | I185: 5.62 | J185: 5.73 | K185: 5.5 | L185: 5.25 | M185: 175.08132
A186: 177 | B186: SYNDIBANK | C186: 35.4 | D186: 34.97 | E186: 34.33 | F186: 33.27 | G186: 32.63 | H186: 36.03 | I186: 36.67 | J186: 37.73 | K186: 35.6 | L186: 33.9 | M186: 56.62945
A187: 178 | B187: SYNGENE | C187: 567.9 | D187: 565.67 | E187: 562.23 | F187: 556.57 | G187: 553.13 | H187: 571.33 | I187: 574.77 | J187: 580.43 | K187: 569.1 | L187: 560 | M187: 0.39072
A188: 179 | B188: TV18BRDCST | C188: 35.9 | D188: 35.72 | E188: 35.33 | F188: 34.77 | G188: 34.38 | H188: 36.28 | I188: 36.67 | J188: 37.23 | K188: 36.1 | L188: 35.15 | M188: 21.85425
A189: 180 | B189: TVSMOTOR | C189: 574.5 | D189: 571.87 | E189: 567.73 | F189: 560.97 | G189: 556.83 | H189: 578.63 | I189: 582.77 | J189: 589.53 | K189: 576 | L189: 565.1 | M189: 10.64867
A190: 181 | B190: TATACHEM | C190: 715.45 | D190: 714.05 | E190: 703.55 | F190: 691.65 | G190: 681.15 | H190: 725.95 | I190: 736.45 | J190: 748.35 | K190: 724.55 | L190: 702.15 | M190: 10.74991
A191: 182 | B191: TATACOMM | C191: 532.2 | D191: 530.67 | E191: 526.83 | F191: 521.47 | G191: 517.63 | H191: 536.03 | I191: 539.87 | J191: 545.23 | K191: 534.5 | L191: 525.3 | M191: 0.92765
A192: 183 | B192: TCS | C192: 1987.85 | D192: 1988.75 | E192: 1975.50 | F192: 1963.15 | G192: 1949.90 | H192: 2001.10 | I192: 2014.35 | J192: 2026.70 | K192: 2002 | L192: 1976.4 | M192: 17.68742
A193: 184 | B193: TATAGLOBAL | C193: 210.1 | D193: 210.85 | E193: 208.20 | F193: 206.30 | G193: 203.65 | H193: 212.75 | I193: 215.40 | J193: 217.30 | K193: 213.5 | L193: 208.95 | M193: 13.95195
A194: 185 | B194: TATAMTRDVR | C194: 96.1 | D194: 95.93 | E194: 94.67 | F194: 93.23 | G194: 91.97 | H194: 97.37 | I194: 98.63 | J194: 100.07 | K194: 97.2 | L194: 94.5 | M194: 26.66726
A195: 186 | B195: TATAMOTORS | C195: 174.75 | D195: 175.15 | E195: 172.70 | F195: 170.65 | G195: 168.20 | H195: 177.20 | I195: 179.65 | J195: 181.70 | K195: 177.6 | L195: 173.1 | M195: 180.15933
A196: 187 | B196: TATAPOWER | C196: 78.65 | D196: 78.35 | E196: 77.75 | F196: 76.85 | G196: 76.25 | H196: 79.25 | I196: 79.85 | J196: 80.75 | K196: 78.95 | L196: 77.45 | M196: 39.15779
A197: 188 | B197: TATASTEEL | C197: 527 | D197: 525.00 | E197: 521.60 | F197: 516.20 | G197: 512.80 | H197: 530.40 | I197: 533.80 | J197: 539.20 | K197: 528.4 | L197: 519.6 | M197: 56.73527
A198: 189 | B198: TECHM | C198: 709 | D198: 709.92 | E198: 703.28 | F198: 697.57 | G198: 690.93 | H198: 715.63 | I198: 722.27 | J198: 727.98 | K198: 716.55 | L198: 704.2 | M198: 19.05592
A199: 190 | B199: RAMCOCEM | C199: 642.65 | D199: 641.65 | E199: 635.30 | F199: 627.95 | G199: 621.60 | H199: 649.00 | I199: 655.35 | J199: 662.70 | K199: 648 | L199: 634.3 | M199: 1.78256
A200: 191 | B200: TITAN | C200: 933 | D200: 934.18 | E200: 929.62 | F200: 926.23 | G200: 921.67 | H200: 937.57 | I200: 942.13 | J200: 945.52 | K200: 938.75 | L200: 930.8 | M200: 22.22788
A201: 192 | B201: TORNTPHARM | C201: 1726.8 | D201: 1738.95 | E201: 1705.90 | F201: 1685.00 | G201: 1651.95 | H201: 1759.85 | I201: 1792.90 | J201: 1813.80 | K201: 1772 | L201: 1718.05 | M201: 2.58598
A202: 193 | B202: TORNTPOWER | C202: 255.95 | D202: 257.88 | E202: 253.27 | F202: 250.58 | G202: 245.97 | H202: 260.57 | I202: 265.18 | J202: 267.87 | K202: 262.5 | L202: 255.2 | M202: 11.18284
A203: 194 | B203: UPL | C203: 743.65 | D203: 752.92 | E203: 731.73 | F203: 719.82 | G203: 698.63 | H203: 764.83 | I203: 786.02 | J203: 797.93 | K203: 774.1 | L203: 741 | M203: 20.06619
A204: 195 | B204: ULTRACEMCO | C204: 4008.15 | D204: 4001.08 | E204: 3985.07 | F204: 3961.98 | G204: 3945.97 | H204: 4024.17 | I204: 4040.18 | J204: 4063.27 | K204: 4017.1 | L204: 3978 | M204: 1.9649
A205: 196 | B205: UNIONBANK | C205: 80.45 | D205: 79.77 | E205: 77.93 | F205: 75.42 | G205: 73.58 | H205: 82.28 | I205: 84.12 | J205: 86.63 | K205: 81.6 | L205: 77.25 | M205: 132.89659
... 29 more rows

Sheet MidCap Intra
L5: Back To Main Page
A6: FOR INTRA DAY TRADING | K6: =Main!B10 -> 2018-12-19
A9: Sr.no | B9: Scrip | C9: CLOSE RATE | D9: Pivot Point | E9: Supports | H9: Resistances
C10: Point | E10: S1 | F10: S2 | G10: S3 | H10: R1 | I10: R2 | J10: R3 | K10: HIGH | L10: LOW | M10: Total Trade Quanity in Lakhs
A11: 1 | B11: 3MINDIA | C11: 22845.1 | D11: 22932.03 | E11: 22464.07 | F11: 22083.03 | G11: 21615.07 | H11: 23313.07 | I11: 23781.03 | J11: 24162.07 | K11: 23400 | L11: 22551 | M11: 0.01932
A12: 2 | B12: 8KMILES | C12: 164.9 | D12: 159.67 | E12: 154.43 | F12: 143.97 | G12: 138.73 | H12: 170.13 | I12: 175.37 | J12: 185.83 | K12: 164.9 | L12: 149.2 | M12: 17.52645
A13: 3 | B13: AARTIIND | C13: 1442.7 | D13: 1436.23 | E13: 1427.47 | F13: 1412.23 | G13: 1403.47 | H13: 1451.47 | I13: 1460.23 | J13: 1475.47 | K13: 1445 | L13: 1421 | M13: 0.31277
A14: 4 | B14: ABAN | C14: 73.75 | D14: 73.68 | E14: 73.07 | F14: 72.38 | G14: 71.77 | H14: 74.37 | I14: 74.98 | J14: 75.67 | K14: 74.3 | L14: 73 | M14: 3.59235
A15: 5 | B15: ABB | C15: 1333.95 | D15: 1351.35 | E15: 1303.75 | F15: 1273.55 | G15: 1225.95 | H15: 1381.55 | I15: 1429.15 | J15: 1459.35 | K15: 1398.95 | L15: 1321.15 | M15: 5.46938
A16: 6 | B16: ABCAPITAL | C16: 100.55 | D16: 100.30 | E16: 98.90 | F16: 97.25 | G16: 95.85 | H16: 101.95 | I16: 103.35 | J16: 105.00 | K16: 101.7 | L16: 98.65 | M16: 28.09829
A17: 7 | B17: ABFRL | C17: 202.5 | D17: 202.08 | E17: 199.42 | F17: 196.33 | G17: 193.67 | H17: 205.17 | I17: 207.83 | J17: 210.92 | K17: 204.75 | L17: 199 | M17: 11.95739
A18: 8 | B18: ACC | C18: 1501.25 | D18: 1500.53 | E18: 1491.07 | F18: 1480.88 | G18: 1471.42 | H18: 1510.72 | I18: 1520.18 | J18: 1530.37 | K18: 1510 | L18: 1490.35 | M18: 3.60523
A19: 9 | B19: ADANIPORTS | C19: 372.9 | D19: 370.75 | E19: 367.15 | F19: 361.40 | G19: 357.80 | H19: 376.50 | I19: 380.10 | J19: 385.85 | K19: 374.35 | L19: 365 | M19: 26.87027
A20: 10 | B20: ADANIPOWER | C20: 52.8 | D20: 52.62 | E20: 52.03 | F20: 51.27 | G20: 50.68 | H20: 53.38 | I20: 53.97 | J20: 54.73 | K20: 53.2 | L20: 51.85 | M20: 69.14284
A21: 11 | B21: ADANITRANS | C21: 218 | D21: 218.52 | E21: 213.78 | F21: 209.57 | G21: 204.83 | H21: 222.73 | I21: 227.47 | J21: 231.68 | K21: 223.25 | L21: 214.3 | M21: 4.45988
A22: 12 | B22: ADVENZYMES | C22: 177.8 | D22: 177.50 | E22: 176.30 | F22: 174.80 | G22: 173.60 | H22: 179.00 | I22: 180.20 | J22: 181.70 | K22: 178.7 | L22: 176 | M22: 0.1652
A23: 13 | B23: AEGISCHEM | C23: 190.3 | D23: 191.63 | E23: 188.77 | F23: 187.23 | G23: 184.37 | H23: 193.17 | I23: 196.03 | J23: 197.57 | K23: 194.5 | L23: 190.1 | M23: 0.78172
A24: 14 | B24: AIAENG | C24: 1638.5 | D24: 1628.17 | E24: 1616.33 | F24: 1594.17 | G24: 1582.33 | H24: 1650.33 | I24: 1662.17 | J24: 1684.33 | K24: 1640 | L24: 1606 | M24: 0.28199
A25: 15 | B25: AJANTPHARM | C25: 1117.9 | D25: 1106.63 | E25: 1091.27 | F25: 1064.63 | G25: 1049.27 | H25: 1133.27 | I25: 1148.63 | J25: 1175.27 | K25: 1122 | L25: 1080 | M25: 4.18309
A26: 16 | B26: AKZOINDIA | C26: 1591.85 | D26: 1589.77 | E26: 1582.08 | F26: 1572.32 | G26: 1564.63 | H26: 1599.53 | I26: 1607.22 | J26: 1616.98 | K26: 1597.45 | L26: 1580 | M26: 0.01569
A27: 17 | B27: ALBK | C27: 46.4 | D27: 46.30 | E27: 45.30 | F27: 44.20 | G27: 43.20 | H27: 47.40 | I27: 48.40 | J27: 49.50 | K27: 47.3 | L27: 45.2 | M27: 45.35097
A28: 18 | B28: ALKEM | C28: 1873 | D28: 1876.33 | E28: 1862.67 | F28: 1852.33 | G28: 1838.67 | H28: 1886.67 | I28: 1900.33 | J28: 1910.67 | K28: 1890 | L28: 1866 | M28: 0.3446
A29: 19 | B29: ALLCARGO | C29: 107.5 | D29: 107.08 | E29: 106.37 | F29: 105.23 | G29: 104.52 | H29: 108.22 | I29: 108.93 | J29: 110.07 | K29: 107.8 | L29: 105.95 | M29: 0.48895
A30: 20 | B30: AMARAJABAT | C30: 734.15 | D30: 737.58 | E30: 727.17 | F30: 720.18 | G30: 709.77 | H30: 744.57 | I30: 754.98 | J30: 761.97 | K30: 748 | L30: 730.6 | M30: 3.3022
A31: 21 | B31: AMBUJACEM | C31: 219.65 | D31: 219.53 | E31: 218.12 | F31: 216.58 | G31: 215.17 | H31: 221.07 | I31: 222.48 | J31: 224.02 | K31: 220.95 | L31: 218 | M31: 15.65567
A32: 22 | B32: ANDHRABANK | C32: 28.55 | D32: 28.63 | E32: 28.07 | F32: 27.58 | G32: 27.02 | H32: 29.12 | I32: 29.68 | J32: 30.17 | K32: 29.2 | L32: 28.15 | M32: 10.39168
A33: 23 | B33: APLAPOLLO | C33: 1225.25 | D33: 1237.10 | E33: 1204.20 | F33: 1183.15 | G33: 1150.25 | H33: 1258.15 | I33: 1291.05 | J33: 1312.10 | K33: 1270 | L33: 1216.05 | M33: 0.10796
A34: 24 | B34: APLLTD | C34: 599.15 | D34: 602.58 | E34: 593.12 | F34: 587.08 | G34: 577.62 | H34: 608.62 | I34: 618.08 | J34: 624.12 | K34: 612.05 | L34: 596.55 | M34: 0.13621
A35: 25 | B35: APOLLOHOSP | C35: 1226.1 | D35: 1218.03 | E35: 1208.07 | F35: 1190.03 | G35: 1180.07 | H35: 1236.07 | I35: 1246.03 | J35: 1264.07 | K35: 1228 | L35: 1200 | M35: 4.54828
A36: 26 | B36: APOLLOTYRE | C36: 235.55 | D36: 237.02 | E36: 231.73 | F36: 227.92 | G36: 222.63 | H36: 240.83 | I36: 246.12 | J36: 249.93 | K36: 242.3 | L36: 233.2 | M36: 41.3685
A37: 27 | B37: ARVIND | C37: 98.25 | D37: 98.60 | E37: 97.15 | F37: 96.05 | G37: 94.60 | H37: 99.70 | I37: 101.15 | J37: 102.25 | K37: 100.05 | L37: 97.5 | M37: 42.57935
A38: 28 | B38: ASAHIINDIA | C38: 250.2 | D38: 250.58 | E38: 247.17 | F38: 244.13 | G38: 240.72 | H38: 253.62 | I38: 257.03 | J38: 260.07 | K38: 254 | L38: 247.55 | M38: 0.33398
A39: 29 | B39: ASHOKA | C39: 131.6 | D39: 133.45 | E39: 128.95 | F39: 126.30 | G39: 121.80 | H39: 136.10 | I39: 140.60 | J39: 143.25 | K39: 137.95 | L39: 130.8 | M39: 10.29211
A40: 30 | B40: ASHOKLEY | C40: 104.8 | D40: 104.87 | E40: 103.93 | F40: 103.07 | G40: 102.13 | H40: 105.73 | I40: 106.67 | J40: 107.53 | K40: 105.8 | L40: 104 | M40: 109.04597
A41: 31 | B41: ASIANPAINT | C41: 1355.7 | D41: 1348.08 | E41: 1335.17 | F41: 1314.63 | G41: 1301.72 | H41: 1368.62 | I41: 1381.53 | J41: 1402.07 | K41: 1361 | L41: 1327.55 | M41: 15.81385
A42: 32 | B42: ASTRAL | C42: 1067.45 | D42: 1061.50 | E42: 1053.00 | F42: 1038.55 | G42: 1030.05 | H42: 1075.95 | I42: 1084.45 | J42: 1098.90 | K42: 1070 | L42: 1047.05 | M42: 0.17889
A43: 33 | B43: ATUL | C43: 3399.4 | D43: 3395.68 | E43: 3376.37 | F43: 3353.33 | G43: 3334.02 | H43: 3418.72 | I43: 3438.03 | J43: 3461.07 | K43: 3415 | L43: 3372.65 | M43: 0.0547
A44: 34 | B44: AUBANK | C44: 640.4 | D44: 642.33 | E44: 631.77 | F44: 623.13 | G44: 612.57 | H44: 650.97 | I44: 661.53 | J44: 670.17 | K44: 652.9 | L44: 633.7 | M44: 4.6825
A45: 35 | B45: AUROPHARMA | C45: 735.7 | D45: 735.53 | E45: 729.57 | F45: 723.43 | G45: 717.47 | H45: 741.67 | I45: 747.63 | J45: 753.77 | K45: 741.5 | L45: 729.4 | M45: 20.89344
A46: 36 | B46: AVANTIFEED | C46: 391.5 | D46: 390.43 | E46: 381.12 | F46: 370.73 | G46: 361.42 | H46: 400.82 | I46: 410.13 | J46: 420.52 | K46: 399.75 | L46: 380.05 | M46: 7.27358
A47: 37 | B47: AXISBANK | C47: 619.4 | D47: 618.35 | E47: 614.90 | F47: 610.40 | G47: 606.95 | H47: 622.85 | I47: 626.30 | J47: 630.80 | K47: 621.8 | L47: 613.85 | M47: 84.92688
A48: 38 | B48: BAJAJ-AUTO | C48: 2840.9 | D48: 2845.58 | E48: 2817.37 | F48: 2793.83 | G48: 2765.62 | H48: 2869.12 | I48: 2897.33 | J48: 2920.87 | K48: 2873.8 | L48: 2822.05 | M48: 4.43162
A49: 39 | B49: BAJAJCORP | C49: 362.7 | D49: 361.58 | E49: 360.17 | F49: 357.63 | G49: 356.22 | H49: 364.12 | I49: 365.53 | J49: 368.07 | K49: 363 | L49: 359.05 | M49: 0.07693
A50: 40 | B50: BAJAJELEC | C50: 509.8 | D50: 509.30 | E50: 502.65 | F50: 495.50 | G50: 488.85 | H50: 516.45 | I50: 523.10 | J50: 530.25 | K50: 515.95 | L50: 502.15 | M50: 1.3009
A51: 41 | B51: BAJAJFINSV | C51: 6152.65 | D51: 6131.45 | E51: 6097.90 | F51: 6043.15 | G51: 6009.60 | H51: 6186.20 | I51: 6219.75 | J51: 6274.50 | K51: 6165 | L51: 6076.7 | M51: 1.51411
A52: 42 | B52: BAJAJHIND | C52: 9 | D52: 9.03 | E52: 8.92 | F52: 8.83 | G52: 8.72 | H52: 9.12 | I52: 9.23 | J52: 9.32 | K52: 9.15 | L52: 8.95 | M52: 19.35172
A53: 43 | B53: BAJAJHLDNG | C53: 2919.9 | D53: 2926.95 | E53: 2903.95 | F53: 2888.00 | G53: 2865.00 | H53: 2942.90 | I53: 2965.90 | J53: 2981.85 | K53: 2949.95 | L53: 2911 | M53: 0.10883
A54: 44 | B54: BAJFINANCE | C54: 2532.2 | D54: 2505.67 | E54: 2473.13 | F54: 2414.07 | G54: 2381.53 | H54: 2564.73 | I54: 2597.27 | J54: 2656.33 | K54: 2538.2 | L54: 2446.6 | M54: 16.53107
A55: 45 | B55: BALKRISIND | C55: 927.55 | D55: 930.62 | E55: 920.03 | F55: 912.52 | G55: 901.93 | H55: 938.13 | I55: 948.72 | J55: 956.23 | K55: 941.2 | L55: 923.1 | M55: 5.07105
A56: 46 | B56: BALLARPUR | C56: 5.45 | D56: 5.42 | E56: 5.28 | F56: 5.12 | G56: 4.98 | H56: 5.58 | I56: 5.72 | J56: 5.88 | K56: 5.55 | L56: 5.25 | M56: 2.786
A57: 47 | B57: BALMLAWRIE | C57: 202.7 | D57: 203.80 | E57: 199.90 | F57: 197.10 | G57: 193.20 | H57: 206.60 | I57: 210.50 | J57: 213.30 | K57: 207.7 | L57: 201 | M57: 1.56673
A58: 48 | B58: BALRAMCHIN | C58: 103.2 | D58: 103.85 | E58: 101.95 | F58: 100.70 | G58: 98.80 | H58: 105.10 | I58: 107.00 | J58: 108.25 | K58: 105.75 | L58: 102.6 | M58: 10.82339
A59: 49 | B59: BANKBARODA | C59: 112.45 | D59: 112.12 | E59: 110.33 | F59: 108.22 | G59: 106.43 | H59: 114.23 | I59: 116.02 | J59: 118.13 | K59: 113.9 | L59: 110 | M59: 109.15321
A60: 50 | B60: BANKINDIA | C60: 91.45 | D60: 90.42 | E60: 88.73 | F60: 86.02 | G60: 84.33 | H60: 93.13 | I60: 94.82 | J60: 97.53 | K60: 92.1 | L60: 87.7 | M60: 138.1177
A61: 51 | B61: BASF | C61: 1589.2 | D61: 1583.08 | E61: 1561.17 | F61: 1533.13 | G61: 1511.22 | H61: 1611.12 | I61: 1633.03 | J61: 1661.07 | K61: 1605 | L61: 1555.05 | M61: 0.04919
A62: 52 | B62: BATAINDIA | C62: 1098.15 | D62: 1094.37 | E62: 1086.03 | F62: 1073.92 | G62: 1065.58 | H62: 1106.48 | I62: 1114.82 | J62: 1126.93 | K62: 1102.7 | L62: 1082.25 | M62: 6.38077
A63: 53 | B63: BBTC | C63: 1362.9 | D63: 1353.02 | E63: 1331.03 | F63: 1299.17 | G63: 1277.18 | H63: 1384.88 | I63: 1406.87 | J63: 1438.73 | K63: 1375 | L63: 1321.15 | M63: 0.87895
A64: 54 | B64: BEL | C64: 84.35 | D64: 83.93 | E64: 83.27 | F64: 82.18 | G64: 81.52 | H64: 85.02 | I64: 85.68 | J64: 86.77 | K64: 84.6 | L64: 82.85 | M64: 89.60701
A65: 55 | B65: BEML | C65: 855.55 | D65: 852.47 | E65: 840.93 | F65: 826.32 | G65: 814.78 | H65: 867.08 | I65: 878.62 | J65: 893.23 | K65: 864 | L65: 837.85 | M65: 54.1905
A66: 56 | B66: BERGEPAINT | C66: 328.5 | D66: 326.12 | E66: 322.63 | F66: 316.77 | G66: 313.28 | H66: 331.98 | I66: 335.47 | J66: 341.33 | K66: 329.6 | L66: 320.25 | M66: 16.2017
A67: 57 | B67: BFUTILITIE | C67: 213.7 | D67: 213.92 | E67: 210.33 | F67: 206.97 | G67: 203.38 | H67: 217.28 | I67: 220.87 | J67: 224.23 | K67: 217.5 | L67: 210.55 | M67: 4.761
A68: 58 | B68: BGRENERGY | C68: 62.15 | D68: 62.28 | E68: 61.07 | F68: 59.98 | G68: 58.77 | H68: 63.37 | I68: 64.58 | J68: 65.67 | K68: 63.5 | L68: 61.2 | M68: 1.17479
A69: 59 | B69: BHARATFIN | C69: 1035.4 | D69: 1030.18 | E69: 1021.47 | F69: 1007.53 | G69: 998.82 | H69: 1044.12 | I69: 1052.83 | J69: 1066.77 | K69: 1038.9 | L69: 1016.25 | M69: 5.28633
A70: 60 | B70: BHARATFORG | C70: 522 | D70: 521.03 | E70: 516.22 | F70: 510.43 | G70: 505.62 | H70: 526.82 | I70: 531.63 | J70: 537.42 | K70: 525.85 | L70: 515.25 | M70: 12.71134
A71: 61 | B71: BHARTIARTL | C71: 317.8 | D71: 316.70 | E71: 312.70 | F71: 307.60 | G71: 303.60 | H71: 321.80 | I71: 325.80 | J71: 330.90 | K71: 320.7 | L71: 311.6 | M71: 56.53153
A72: 62 | B72: BHEL | C72: 69.9 | D72: 69.12 | E72: 68.08 | F72: 66.27 | G72: 65.23 | H72: 70.93 | I72: 71.97 | J72: 73.78 | K72: 70.15 | L72: 67.3 | M72: 170.7272
A73: 63 | B73: BIOCON | C73: 638.85 | D73: 637.88 | E73: 634.77 | F73: 630.68 | G73: 627.57 | H73: 641.97 | I73: 645.08 | J73: 649.17 | K73: 641 | L73: 633.8 | M73: 10.18473
A74: 64 | B74: BIRLACORPN | C74: 598.9 | D74: 601.53 | E74: 593.37 | F74: 587.83 | G74: 579.67 | H74: 607.07 | I74: 615.23 | J74: 620.77 | K74: 609.7 | L74: 596 | M74: 0.19659
A75: 65 | B75: BLISSGVS | C75: 149.25 | D75: 149.60 | E75: 146.90 | F75: 144.55 | G75: 141.85 | H75: 151.95 | I75: 154.65 | J75: 157.00 | K75: 152.3 | L75: 147.25 | M75: 5.19716
A76: 66 | B76: BLUEDART | C76: 3046.2 | D76: 3040.38 | E76: 2980.77 | F76: 2915.33 | G76: 2855.72 | H76: 3105.82 | I76: 3165.43 | J76: 3230.87 | K76: 3100 | L76: 2974.95 | M76: 0.03001
A77: 67 | B77: BLUESTARCO | C77: 639.1 | D77: 640.95 | E77: 635.00 | F77: 630.90 | G77: 624.95 | H77: 645.05 | I77: 651.00 | J77: 655.10 | K77: 646.9 | L77: 636.85 | M77: 0.115
A78: 68 | B78: BOMDYEING | C78: 114.95 | D78: 113.63 | E78: 112.32 | F78: 109.68 | G78: 108.37 | H78: 116.27 | I78: 117.58 | J78: 120.22 | K78: 114.95 | L78: 111 | M78: 9.79649
A79: 69 | B79: BOSCHLTD | C79: 19861.55 | D79: 19748.20 | E79: 19616.40 | F79: 19371.25 | G79: 19239.45 | H79: 19993.35 | I79: 20125.15 | J79: 20370.30 | K79: 19880 | L79: 19503.05 | M79: 0.31179
A80: 70 | B80: BPCL | C80: 353.25 | D80: 353.18 | E80: 348.77 | F80: 344.28 | G80: 339.87 | H80: 357.67 | I80: 362.08 | J80: 366.57 | K80: 357.6 | L80: 348.7 | M80: 44.93815
A81: 71 | B81: BRFL | C81: 11.1 | D81: 11.00 | E81: 10.80 | F81: 10.50 | G81: 10.30 | H81: 11.30 | I81: 11.50 | J81: 11.80 | K81: 11.2 | L81: 10.7 | M81: 1.18514
A82: 72 | B82: BRIGADE | C82: 204.55 | D82: 204.30 | E82: 200.70 | F82: 196.85 | G82: 193.25 | H82: 208.15 | I82: 211.75 | J82: 215.60 | K82: 207.9 | L82: 200.45 | M82: 0.11881
A83: 73 | B83: BRITANNIA | C83: 3168.7 | D83: 3160.57 | E83: 3138.13 | F83: 3107.57 | G83: 3085.13 | H83: 3191.13 | I83: 3213.57 | J83: 3244.13 | K83: 3183 | L83: 3130 | M83: 2.30834
A84: 74 | B84: BSE | C84: 600.4 | D84: 600.45 | E84: 598.00 | F84: 595.60 | G84: 593.15 | H84: 602.85 | I84: 605.30 | J84: 607.70 | K84: 602.9 | L84: 598.05 | M84: 0.77971
A85: 75 | B85: CADILAHC | C85: 345.25 | D85: 344.88 | E85: 341.82 | F85: 338.38 | G85: 335.32 | H85: 348.32 | I85: 351.38 | J85: 354.82 | K85: 347.95 | L85: 341.45 | M85: 13.76167
A86: 77 | B86: CANBK | C86: 269.15 | D86: 267.98 | E86: 264.62 | F86: 260.08 | G86: 256.72 | H86: 272.52 | I86: 275.88 | J86: 280.42 | K86: 271.35 | L86: 263.45 | M86: 55.51983
A87: 78 | B87: CANFINHOME | C87: 278.05 | D87: 276.98 | E87: 272.97 | F87: 267.88 | G87: 263.87 | H87: 282.07 | I87: 286.08 | J87: 291.17 | K87: 281 | L87: 271.9 | M87: 9.65727
A88: 79 | B88: CAPF | C88: 567.95 | D88: 558.08 | E88: 546.27 | F88: 524.58 | G88: 512.77 | H88: 579.77 | I88: 591.58 | J88: 613.27 | K88: 569.9 | L88: 536.4 | M88: 25.18057
A89: 80 | B89: CAPLIPOINT | C89: 387.65 | D89: 389.02 | E89: 384.13 | F89: 380.62 | G89: 375.73 | H89: 392.53 | I89: 397.42 | J89: 400.93 | K89: 393.9 | L89: 385.5 | M89: 0.22313
A90: 81 | B90: CARBORUNIV | C90: 365.6 | D90: 361.90 | E90: 355.80 | F90: 346.00 | G90: 339.90 | H90: 371.70 | I90: 377.80 | J90: 387.60 | K90: 368 | L90: 352.1 | M90: 0.62748
A91: 82 | B91: CARERATING | C91: 986.6 | D91: 983.12 | E91: 972.48 | F91: 958.37 | G91: 947.73 | H91: 997.23 | I91: 1007.87 | J91: 1021.98 | K91: 993.75 | L91: 969 | M91: 0.32541
A92: 83 | B92: CASTROLIND | C92: 148.35 | D92: 147.72 | E92: 146.53 | F92: 144.72 | G92: 143.53 | H92: 149.53 | I92: 150.72 | J92: 152.53 | K92: 148.9 | L92: 145.9 | M92: 6.01173
A93: 84 | B93: CCL | C93: 276.35 | D93: 277.28 | E93: 274.57 | F93: 272.78 | G93: 270.07 | H93: 279.07 | I93: 281.78 | J93: 283.57 | K93: 280 | L93: 275.5 | M93: 0.14021
A94: 85 | B94: CDSL | C94: 218.25 | D94: 218.65 | E94: 216.30 | F94: 214.35 | G94: 212.00 | H94: 220.60 | I94: 222.95 | J94: 224.90 | K94: 221 | L94: 216.7 | M94: 6.4855
A95: 86 | B95: CEATLTD | C95: 1330.55 | D95: 1329.17 | E95: 1313.38 | F95: 1296.22 | G95: 1280.43 | H95: 1346.33 | I95: 1362.12 | J95: 1379.28 | K95: 1344.95 | L95: 1312 | M95: 7.75945
A96: 87 | B96: CENTRALBK | C96: 31.4 | D96: 31.13 | E96: 30.82 | F96: 30.23 | G96: 29.92 | H96: 31.72 | I96: 32.03 | J96: 32.62 | K96: 31.45 | L96: 30.55 | M96: 4.43577
A97: 88 | B97: CENTURYPLY | C97: 177.6 | D97: 178.75 | E97: 173.60 | F97: 169.60 | G97: 164.45 | H97: 182.75 | I97: 187.90 | J97: 191.90 | K97: 183.9 | L97: 174.75 | M97: 2.87362
A98: 89 | B98: CENTURYTEX | C98: 932.35 | D98: 930.12 | E98: 922.53 | F98: 912.72 | G98: 905.13 | H98: 939.93 | I98: 947.52 | J98: 957.33 | K98: 937.7 | L98: 920.3 | M98: 3.30193
A99: 90 | B99: CERA | C99: 2349.35 | D99: 2355.45 | E99: 2325.90 | F99: 2302.45 | G99: 2272.90 | H99: 2378.90 | I99: 2408.45 | J99: 2431.90 | K99: 2385 | L99: 2332 | M99: 0.03704
A100: 91 | B100: CGPOWER | C100: 40.35 | D100: 40.18 | E100: 39.82 | F100: 39.28 | G100: 38.92 | H100: 40.72 | I100: 41.08 | J100: 41.62 | K100: 40.55 | L100: 39.65 | M100: 24.14219
A101: 92 | B101: CHAMBLFERT | C101: 145.25 | D101: 145.20 | E101: 143.35 | F101: 141.45 | G101: 139.60 | H101: 147.10 | I101: 148.95 | J101: 150.85 | K101: 147.05 | L101: 143.3 | M101: 1.82295
A102: 93 | B102: CHENNPETRO | C102: 288.75 | D102: 285.10 | E102: 278.80 | F102: 268.85 | G102: 262.55 | H102: 295.05 | I102: 301.35 | J102: 311.30 | K102: 291.4 | L102: 275.15 | M102: 9.81878
A103: 94 | B103: CHOLAFIN | C103: 1219.85 | D103: 1219.28 | E103: 1210.02 | F103: 1200.18 | G103: 1190.92 | H103: 1229.12 | I103: 1238.38 | J103: 1248.22 | K103: 1228.55 | L103: 1209.45 | M103: 3.11331
A104: 95 | B104: CIPLA | C104: 522.9 | D104: 523.32 | E104: 519.63 | F104: 516.37 | G104: 512.68 | H104: 526.58 | I104: 530.27 | J104: 533.53 | K104: 527 | L104: 520.05 | M104: 16.2824
A105: 96 | B105: COALINDIA | C105: 251.85 | D105: 251.58 | E105: 249.32 | F105: 246.78 | G105: 244.52 | H105: 254.12 | I105: 256.38 | J105: 258.92 | K105: 253.85 | L105: 249.05 | M105: 64.77964
A106: 97 | B106: COCHINSHIP | C106: 384.6 | D106: 383.48 | E106: 380.07 | F106: 375.53 | G106: 372.12 | H106: 388.02 | I106: 391.43 | J106: 395.97 | K106: 386.9 | L106: 378.95 | M106: 1.55021
A107: 98 | B107: COFFEEDAY | C107: 270.05 | D107: 269.23 | E107: 264.67 | F107: 259.28 | G107: 254.72 | H107: 274.62 | I107: 279.18 | J107: 284.57 | K107: 273.8 | L107: 263.85 | M107: 1.74946
A108: 99 | B108: COLPAL | C108: 1310.8 | D108: 1305.35 | E108: 1295.70 | F108: 1280.60 | G108: 1270.95 | H108: 1320.45 | I108: 1330.10 | J108: 1345.20 | K108: 1315 | L108: 1290.25 | M108: 5.36529
A109: 100 | B109: CONCOR | C109: 660.4 | D109: 658.47 | E109: 652.43 | F109: 644.47 | G109: 638.43 | H109: 666.43 | I109: 672.47 | J109: 680.43 | K109: 664.5 | L109: 650.5 | M109: 7.1117
A110: 101 | B110: COROMANDEL | C110: 446.05 | D110: 445.12 | E110: 441.93 | F110: 437.82 | G110: 434.63 | H110: 449.23 | I110: 452.42 | J110: 456.53 | K110: 448.3 | L110: 441 | M110: 2.04203
A111: 102 | B111: COX&KINGS | C111: 159.65 | D111: 159.18 | E111: 155.97 | F111: 152.28 | G111: 149.07 | H111: 162.87 | I111: 166.08 | J111: 169.77 | K111: 162.4 | L111: 155.5 | M111: 1.30996
A112: 103 | B112: CRISIL | C112: 1599.45 | D112: 1597.08 | E112: 1586.17 | F112: 1572.88 | G112: 1561.97 | H112: 1610.37 | I112: 1621.28 | J112: 1634.57 | K112: 1608 | L112: 1583.8 | M112: 0.03813
A113: 104 | B113: CROMPTON | C113: 228.7 | D113: 227.00 | E113: 224.00 | F113: 219.30 | G113: 216.30 | H113: 231.70 | I113: 234.70 | J113: 239.40 | K113: 230 | L113: 222.3 | M113: 2.60133
A114: 105 | B114: CUB | C114: 178.7 | D114: 178.93 | E114: 176.87 | F114: 175.03 | G114: 172.97 | H114: 180.77 | I114: 182.83 | J114: 184.67 | K114: 181 | L114: 177.1 | M114: 5.8341
A115: 106 | B115: CUMMINSIND | C115: 818.75 | D115: 823.93 | E115: 808.52 | F115: 798.28 | G115: 782.87 | H115: 834.17 | I115: 849.58 | J115: 859.82 | K115: 839.35 | L115: 813.7 | M115: 11.34739
A116: 107 | B116: CYIENT | C116: 620.7 | D116: 623.17 | E116: 613.53 | F116: 606.37 | G116: 596.73 | H116: 630.33 | I116: 639.97 | J116: 647.13 | K116: 632.8 | L116: 616 | M116: 1.72798
A117: 108 | B117: DABUR | C117: 442.9 | D117: 441.95 | E117: 438.95 | F117: 435.00 | G117: 432.00 | H117: 445.90 | I117: 448.90 | J117: 452.85 | K117: 444.95 | L117: 438 | M117: 21.09797
A118: 109 | B118: DBCORP | C118: 174.15 | D118: 172.73 | E118: 169.47 | F118: 164.78 | G118: 161.52 | H118: 177.42 | I118: 180.68 | J118: 185.37 | K118: 176 | L118: 168.05 | M118: 1.01666
A119: 110 | B119: DBL | C119: 428.75 | D119: 429.22 | E119: 420.63 | F119: 412.52 | G119: 403.93 | H119: 437.33 | I119: 445.92 | J119: 454.03 | K119: 437.8 | L119: 421.1 | M119: 2.35447
A120: 111 | B120: DBREALTY | C120: 24.95 | D120: 24.95 | E120: 24.50 | F120: 24.05 | G120: 23.60 | H120: 25.40 | I120: 25.85 | J120: 26.30 | K120: 25.4 | L120: 24.5 | M120: 2.59061
A121: 112 | B121: DCAL | C121: 226.35 | D121: 227.28 | E121: 224.07 | F121: 221.78 | G121: 218.57 | H121: 229.57 | I121: 232.78 | J121: 235.07 | K121: 230.5 | L121: 225 | M121: 0.50578
A122: 113 | B122: DCBBANK | C122: 160 | D122: 159.42 | E122: 157.93 | F122: 155.87 | G122: 154.38 | H122: 161.48 | I122: 162.97 | J122: 165.03 | K122: 160.9 | L122: 157.35 | M122: 6.66753
A123: 114 | B123: DCMSHRIRAM | C123: 357.15 | D123: 356.42 | E123: 350.98 | F123: 344.82 | G123: 339.38 | H123: 362.58 | I123: 368.02 | J123: 374.18 | K123: 361.85 | L123: 350.25 | M123: 0.62964
A124: 115 | B124: DEEPAKFERT | C124: 150.4 | D124: 148.70 | E124: 145.70 | F124: 141.00 | G124: 138.00 | H124: 153.40 | I124: 156.40 | J124: 161.10 | K124: 151.7 | L124: 144 | M124: 4.23804
A125: 116 | B125: DELTACORP | C125: 257.05 | D125: 253.00 | E125: 247.15 | F125: 237.25 | G125: 231.40 | H125: 262.90 | I125: 268.75 | J125: 278.65 | K125: 258.85 | L125: 243.1 | M125: 29.8609
A126: 117 | B126: DEN | C126: 69.9 | D126: 69.88 | E126: 69.52 | F126: 69.13 | G126: 68.77 | H126: 70.27 | I126: 70.63 | J126: 71.02 | K126: 70.25 | L126: 69.5 | M126: 0.34682
A127: 118 | B127: DENABANK | C127: 16.45 | D127: 16.42 | E127: 16.23 | F127: 16.02 | G127: 15.83 | H127: 16.63 | I127: 16.82 | J127: 17.03 | K127: 16.6 | L127: 16.2 | M127: 6.78219
A128: 119 | B128: DHFL | C128: 214.05 | D128: 215.40 | E128: 212.00 | F128: 209.95 | G128: 206.55 | H128: 217.45 | I128: 220.85 | J128: 222.90 | K128: 218.8 | L128: 213.35 | M128: 45.81599
A129: 120 | B129: DISHTV | C129: 36.75 | D129: 36.97 | E129: 36.28 | F129: 35.82 | G129: 35.13 | H129: 37.43 | I129: 38.12 | J129: 38.58 | K129: 37.65 | L129: 36.5 | M129: 31.11908
A130: 121 | B130: DIVISLAB | C130: 1496.4 | D130: 1491.25 | E130: 1481.05 | F130: 1465.70 | G130: 1455.50 | H130: 1506.60 | I130: 1516.80 | J130: 1532.15 | K130: 1501.45 | L130: 1475.9 | M130: 5.45698
A131: 122 | B131: DIXON | C131: 2030.75 | D131: 2022.72 | E131: 1990.53 | F131: 1950.32 | G131: 1918.13 | H131: 2062.93 | I131: 2095.12 | J131: 2135.33 | K131: 2054.9 | L131: 1982.5 | M131: 0.18627
A132: 123 | B132: DLF | C132: 178.05 | D132: 178.42 | E132: 175.88 | F132: 173.72 | G132: 171.18 | H132: 180.58 | I132: 183.12 | J132: 185.28 | K132: 180.95 | L132: 176.25 | M132: 37.86975
A133: 124 | B133: DMART | C133: 1668.15 | D133: 1656.55 | E133: 1628.10 | F133: 1588.05 | G133: 1559.60 | H133: 1696.60 | I133: 1725.05 | J133: 1765.10 | K133: 1685 | L133: 1616.5 | M133: 8.86105
A134: 125 | B134: DREDGECORP | C134: 355.5 | D134: 357.12 | E134: 349.73 | F134: 343.97 | G134: 336.58 | H134: 362.88 | I134: 370.27 | J134: 376.03 | K134: 364.5 | L134: 351.35 | M134: 2.15151
A135: 126 | B135: DRREDDY | C135: 2639.3 | D135: 2622.15 | E135: 2599.30 | F135: 2559.30 | G135: 2536.45 | H135: 2662.15 | I135: 2685.00 | J135: 2725.00 | K135: 2645 | L135: 2582.15 | M135: 7.39253
A136: 127 | B136: ECLERX | C136: 1103.6 | D136: 1107.85 | E136: 1088.70 | F136: 1073.80 | G136: 1054.65 | H136: 1122.75 | I136: 1141.90 | J136: 1156.80 | K136: 1127 | L136: 1092.95 | M136: 0.09216
A137: 128 | B137: EDELWEISS | C137: 192.2 | D137: 190.93 | E137: 187.17 | F137: 182.13 | G137: 178.37 | H137: 195.97 | I137: 199.73 | J137: 204.77 | K137: 194.7 | L137: 185.9 | M137: 16.79407
A138: 129 | B138: EICHERMOT | C138: 23865.65 | D138: 23703.20 | E138: 23506.40 | F138: 23147.15 | G138: 22950.35 | H138: 24062.45 | I138: 24259.25 | J138: 24618.50 | K138: 23900 | L138: 23343.95 | M138: 0.61416
A139: 130 | B139: EIDPARRY | C139: 207.8 | D139: 207.60 | E139: 205.20 | F139: 202.60 | G139: 200.20 | H139: 210.20 | I139: 212.60 | J139: 215.20 | K139: 210 | L139: 205 | M139: 0.59342
A140: 131 | B140: EIHOTEL | C140: 195.15 | D140: 194.98 | E140: 192.47 | F140: 189.78 | G140: 187.27 | H140: 197.67 | I140: 200.18 | J140: 202.87 | K140: 197.5 | L140: 192.3 | M140: 3.11167
A141: 132 | B141: EMAMILTD | C141: 435.35 | D141: 436.30 | E141: 432.10 | F141: 428.85 | G141: 424.65 | H141: 439.55 | I141: 443.75 | J141: 447.00 | K141: 440.5 | L141: 433.05 | M141: 0.58478
A142: 133 | B142: ENDURANCE | C142: 1184.1 | D142: 1183.13 | E142: 1167.27 | F142: 1150.43 | G142: 1134.57 | H142: 1199.97 | I142: 1215.83 | J142: 1232.67 | K142: 1199 | L142: 1166.3 | M142: 0.08731
A143: 134 | B143: ENGINERSIN | C143: 117.05 | D143: 117.37 | E143: 116.23 | F143: 115.42 | G143: 114.28 | H143: 118.18 | I143: 119.32 | J143: 120.13 | K143: 118.5 | L143: 116.55 | M143: 7.04866
A144: 135 | B144: EQUITAS | C144: 116.95 | D144: 116.90 | E144: 115.20 | F144: 113.45 | G144: 111.75 | H144: 118.65 | I144: 120.35 | J144: 122.10 | K144: 118.6 | L144: 115.15 | M144: 27.32248
A145: 136 | B145: ERIS | C145: 676.45 | D145: 665.82 | E145: 650.63 | F145: 624.82 | G145: 609.63 | H145: 691.63 | I145: 706.82 | J145: 732.63 | K145: 681 | L145: 640 | M145: 0.33919
A146: 137 | B146: EROSMEDIA | C146: 89.85 | D146: 89.27 | E146: 87.08 | F146: 84.32 | G146: 82.13 | H146: 92.03 | I146: 94.22 | J146: 96.98 | K146: 91.45 | L146: 86.5 | M146: 2.39021
A147: 138 | B147: ESCORTS | C147: 673 | D147: 672.22 | E147: 666.83 | F147: 660.67 | G147: 655.28 | H147: 678.38 | I147: 683.77 | J147: 689.93 | K147: 677.6 | L147: 666.05 | M147: 10.39492
A148: 139 | B148: EVEREADY | C148: 189.3 | D148: 189.82 | E148: 188.13 | F148: 186.97 | G148: 185.28 | H148: 190.98 | I148: 192.67 | J148: 193.83 | K148: 191.5 | L148: 188.65 | M148: 0.47021
A149: 140 | B149: EXIDEIND | C149: 258.65 | D149: 258.43 | E149: 256.27 | F149: 253.88 | G149: 251.72 | H149: 260.82 | I149: 262.98 | J149: 265.37 | K149: 260.6 | L149: 256.05 | M149: 11.29964
A150: 141 | B150: FCONSUMER | C150: 48.45 | D150: 48.37 | E150: 47.73 | F150: 47.02 | G150: 46.38 | H150: 49.08 | I150: 49.72 | J150: 50.43 | K150: 49 | L150: 47.65 | M150: 14.26829
A151: 142 | B151: FEDERALBNK | C151: 92.2 | D151: 92.43 | E151: 90.97 | F151: 89.73 | G151: 88.27 | H151: 93.67 | I151: 95.13 | J151: 96.37 | K151: 93.9 | L151: 91.2 | M151: 141.44108
A152: 143 | B152: FINCABLES | C152: 449.3 | D152: 449.77 | E152: 446.53 | F152: 443.77 | G152: 440.53 | H152: 452.53 | I152: 455.77 | J152: 458.53 | K152: 453 | L152: 447 | M152: 0.18527
A153: 144 | B153: FINPIPE | C153: 530.05 | D153: 527.28 | E153: 520.77 | F153: 511.48 | G153: 504.97 | H153: 536.57 | I153: 543.08 | J153: 552.37 | K153: 533.8 | L153: 518 | M153: 0.12091
A154: 145 | B154: FLFL | C154: 399.2 | D154: 395.28 | E154: 388.92 | F154: 378.63 | G154: 372.27 | H154: 405.57 | I154: 411.93 | J154: 422.22 | K154: 401.65 | L154: 385 | M154: 0.47136
A155: 146 | B155: FSL | C155: 51.25 | D155: 51.20 | E155: 50.70 | F155: 50.15 | G155: 49.65 | H155: 51.75 | I155: 52.25 | J155: 52.80 | K155: 51.7 | L155: 50.65 | M155: 18.15375
A156: 147 | B156: GAIL | C156: 354.5 | D156: 353.80 | E156: 350.40 | F156: 346.30 | G156: 342.90 | H156: 357.90 | I156: 361.30 | J156: 365.40 | K156: 357.2 | L156: 349.7 | M156: 34.59455
A157: 148 | B157: GATI | C157: 82.9 | D157: 82.87 | E157: 81.88 | F157: 80.87 | G157: 79.88 | H157: 83.88 | I157: 84.87 | J157: 85.88 | K157: 83.85 | L157: 81.85 | M157: 3.29686
A158: 149 | B158: GDL | C158: 136.4 | D158: 136.93 | E158: 134.52 | F158: 132.63 | G158: 130.22 | H158: 138.82 | I158: 141.23 | J158: 143.12 | K158: 139.35 | L158: 135.05 | M158: 2.88854
A159: 150 | B159: GEPIL | C159: 814.55 | D159: 821.52 | E159: 803.08 | F159: 791.62 | G159: 773.18 | H159: 832.98 | I159: 851.42 | J159: 862.88 | K159: 839.95 | L159: 810.05 | M159: 0.12443
A160: 151 | B160: GESHIP | C160: 343.8 | D160: 344.75 | E160: 339.65 | F160: 335.50 | G160: 330.40 | H160: 348.90 | I160: 354.00 | J160: 358.15 | K160: 349.85 | L160: 340.6 | M160: 0.36316
A161: 152 | B161: GET&D | C161: 255.75 | D161: 256.03 | E161: 251.07 | F161: 246.38 | G161: 241.42 | H161: 260.72 | I161: 265.68 | J161: 270.37 | K161: 261 | L161: 251.35 | M161: 0.19348
A162: 153 | B162: GHCL | C162: 238.95 | D162: 239.40 | E162: 235.85 | F162: 232.75 | G162: 229.20 | H162: 242.50 | I162: 246.05 | J162: 249.15 | K162: 242.95 | L162: 236.3 | M162: 0.47758
A163: 154 | B163: GICRE | C163: 282.9 | D163: 282.47 | E163: 275.48 | F163: 268.07 | G163: 261.08 | H163: 289.88 | I163: 296.87 | J163: 304.28 | K163: 289.45 | L163: 275.05 | M163: 0.7575
A164: 155 | B164: GILLETTE | C164: 6486.3 | D164: 6485.08 | E164: 6456.22 | F164: 6426.13 | G164: 6397.27 | H164: 6515.17 | I164: 6544.03 | J164: 6574.12 | K164: 6513.95 | L164: 6455 | M164: 0.04595
A165: 156 | B165: GLAXO | C165: 1421.8 | D165: 1414.52 | E165: 1400.08 | F165: 1378.37 | G165: 1363.93 | H165: 1436.23 | I165: 1450.67 | J165: 1472.38 | K165: 1428.95 | L165: 1392.8 | M165: 0.09555
A166: 157 | B166: GLENMARK | C166: 686.1 | D166: 686.37 | E166: 679.73 | F166: 673.37 | G166: 666.73 | H166: 692.73 | I166: 699.37 | J166: 705.73 | K166: 693 | L166: 680 | M166: 7.46278
A167: 158 | B167: GMDCLTD | C167: 89.95 | D167: 89.30 | E167: 88.05 | F167: 86.15 | G167: 84.90 | H167: 91.20 | I167: 92.45 | J167: 94.35 | K167: 90.55 | L167: 87.4 | M167: 1.47571
A168: 159 | B168: GMRINFRA | C168: 15.7 | D168: 15.72 | E168: 15.58 | F168: 15.47 | G168: 15.33 | H168: 15.83 | I168: 15.97 | J168: 16.08 | K168: 15.85 | L168: 15.6 | M168: 62.28576
A169: 160 | B169: GNFC | C169: 365.9 | D169: 358.47 | E169: 347.43 | F169: 328.97 | G169: 317.93 | H169: 376.93 | I169: 387.97 | J169: 406.43 | K169: 369.5 | L169: 340 | M169: 14.22957
A170: 161 | B170: GODFRYPHLP | C170: 907.2 | D170: 904.78 | E170: 897.42 | F170: 887.63 | G170: 880.27 | H170: 914.57 | I170: 921.93 | J170: 931.72 | K170: 912.15 | L170: 895 | M170: 1.04555
A171: 162 | B171: GODREJAGRO | C171: 512.15 | D171: 511.68 | E171: 509.37 | F171: 506.58 | G171: 504.27 | H171: 514.47 | I171: 516.78 | J171: 519.57 | K171: 514 | L171: 508.9 | M171: 0.45351
A172: 163 | B172: GODREJCP | C172: 838.7 | D172: 835.55 | E172: 828.15 | F172: 817.60 | G172: 810.20 | H172: 846.10 | I172: 853.50 | J172: 864.05 | K172: 842.95 | L172: 825 | M172: 8.97798
A173: 164 | B173: GODREJIND | C173: 539.6 | D173: 538.78 | E173: 534.87 | F173: 530.13 | G173: 526.22 | H173: 543.52 | I173: 547.43 | J173: 552.17 | K173: 542.7 | L173: 534.05 | M173: 2.51686
A174: 165 | B174: GODREJPROP | C174: 675.85 | D174: 674.78 | E174: 666.07 | F174: 656.28 | G174: 647.57 | H174: 684.57 | I174: 693.28 | J174: 703.07 | K174: 683.5 | L174: 665 | M174: 2.08812
A175: 166 | B175: GPPL | C175: 101.45 | D175: 101.50 | E175: 100.60 | F175: 99.75 | G175: 98.85 | H175: 102.35 | I175: 103.25 | J175: 104.10 | K175: 102.4 | L175: 100.65 | M175: 4.04399
A176: 167 | B176: GRANULES | C176: 89.25 | D176: 88.98 | E176: 88.42 | F176: 87.58 | G176: 87.02 | H176: 89.82 | I176: 90.38 | J176: 91.22 | K176: 89.55 | L176: 88.15 | M176: 5.20598
A177: 168 | B177: GRAPHITE | C177: 853.9 | D177: 860.63 | E177: 842.27 | F177: 830.63 | G177: 812.27 | H177: 872.27 | I177: 890.63 | J177: 902.27 | K177: 879 | L177: 849 | M177: 8.3862
A178: 169 | B178: GRASIM | C178: 854.3 | D178: 848.18 | E178: 838.77 | F178: 823.23 | G178: 813.82 | H178: 863.72 | I178: 873.13 | J178: 888.67 | K178: 857.6 | L178: 832.65 | M178: 6.18217
A179: 170 | B179: GREAVESCOT | C179: 124 | D179: 124.68 | E179: 122.82 | F179: 121.63 | G179: 119.77 | H179: 125.87 | I179: 127.73 | J179: 128.92 | K179: 126.55 | L179: 123.5 | M179: 1.03251
A180: 171 | B180: GREENPLY | C180: 132.95 | D180: 133.08 | E180: 132.17 | F180: 131.38 | G180: 130.47 | H180: 133.87 | I180: 134.78 | J180: 135.57 | K180: 134 | L180: 132.3 | M180: 1.0663
A181: 172 | B181: GRUH | C181: 300 | D181: 299.95 | E181: 295.10 | F181: 290.20 | G181: 285.35 | H181: 304.85 | I181: 309.70 | J181: 314.60 | K181: 304.8 | L181: 295.05 | M181: 7.15267
A182: 173 | B182: GSFC | C182: 110.9 | D182: 110.47 | E182: 109.23 | F182: 107.57 | G182: 106.33 | H182: 112.13 | I182: 113.37 | J182: 115.03 | K182: 111.7 | L182: 108.8 | M182: 13.76287
A183: 174 | B183: GSKCONS | C183: 7807.5 | D183: 7831.83 | E183: 7715.67 | F183: 7623.83 | G183: 7507.67 | H183: 7923.67 | I183: 8039.83 | J183: 8131.67 | K183: 7948 | L183: 7740 | M183: 0.38894
A184: 175 | B184: GSPL | C184: 176.5 | D184: 177.00 | E184: 175.30 | F184: 174.10 | G184: 172.40 | H184: 178.20 | I184: 179.90 | J184: 181.10 | K184: 178.7 | L184: 175.8 | M184: 2.22938
A185: 176 | B185: GUJALKALI | C185: 549.3 | D185: 546.97 | E185: 539.93 | F185: 530.57 | G185: 523.53 | H185: 556.33 | I185: 563.37 | J185: 572.73 | K185: 554 | L185: 537.6 | M185: 0.88946
A186: 177 | B186: GUJFLUORO | C186: 916.95 | D186: 913.62 | E186: 907.28 | F186: 897.62 | G186: 891.28 | H186: 923.28 | I186: 929.62 | J186: 939.28 | K186: 919.95 | L186: 903.95 | M186: 0.15995
A187: 178 | B187: GUJGASLTD | C187: 679 | D187: 679.48 | E187: 669.17 | F187: 659.33 | G187: 649.02 | H187: 689.32 | I187: 699.63 | J187: 709.47 | K187: 689.8 | L187: 669.65 | M187: 0.1524
A188: 179 | B188: GULFOILLUB | C188: 777.25 | D188: 780.92 | E188: 772.43 | F188: 767.62 | G188: 759.13 | H188: 785.73 | I188: 794.22 | J188: 799.03 | K188: 789.4 | L188: 776.1 | M188: 0.09762
A189: 180 | B189: GVKPIL | C189: 7.5 | D189: 7.52 | E189: 7.33 | F189: 7.17 | G189: 6.98 | H189: 7.68 | I189: 7.87 | J189: 8.03 | K189: 7.7 | L189: 7.35 | M189: 11.59886
A190: 181 | B190: HATHWAY | C190: 31 | D190: 31.02 | E190: 30.88 | F190: 30.77 | G190: 30.63 | H190: 31.13 | I190: 31.27 | J190: 31.38 | K190: 31.15 | L190: 30.9 | M190: 2.27746
A191: 182 | B191: HATSUN | C191: 616.4 | D191: 618.82 | E191: 612.88 | F191: 609.37 | G191: 603.43 | H191: 622.33 | I191: 628.27 | J191: 631.78 | K191: 624.75 | L191: 615.3 | M191: 0.05239
A192: 183 | B192: HAVELLS | C192: 701.95 | D192: 699.68 | E192: 695.52 | F192: 689.08 | G192: 684.92 | H192: 706.12 | I192: 710.28 | J192: 716.72 | K192: 703.85 | L192: 693.25 | M192: 10.72555
A193: 184 | B193: HCC | C193: 11.4 | D193: 11.43 | E193: 11.32 | F193: 11.23 | G193: 11.12 | H193: 11.52 | I193: 11.63 | J193: 11.72 | K193: 11.55 | L193: 11.35 | M193: 24.31121
A194: 185 | B194: HCL-INSYS | C194: 25.15 | D194: 24.97 | E194: 24.53 | F194: 23.92 | G194: 23.48 | H194: 25.58 | I194: 26.02 | J194: 26.63 | K194: 25.4 | L194: 24.35 | M194: 7.11694
A195: 186 | B195: HCLTECH | C195: 985.2 | D195: 977.80 | E195: 966.80 | F195: 948.40 | G195: 937.40 | H195: 996.20 | I195: 1007.20 | J195: 1025.60 | K195: 988.8 | L195: 959.4 | M195: 19.37251
A196: 187 | B196: HDFC | C196: 1952 | D196: 1947.47 | E196: 1937.03 | F196: 1922.07 | G196: 1911.63 | H196: 1962.43 | I196: 1972.87 | J196: 1987.83 | K196: 1957.9 | L196: 1932.5 | M196: 21.21103
A197: 188 | B197: HDFCBANK | C197: 2135.45 | D197: 2125.68 | E197: 2112.37 | F197: 2089.28 | G197: 2075.97 | H197: 2148.77 | I197: 2162.08 | J197: 2185.17 | K197: 2139 | L197: 2102.6 | M197: 18.53492
A198: 189 | B198: HDIL | C198: 23.6 | D198: 23.60 | E198: 23.10 | F198: 22.60 | G198: 22.10 | H198: 24.10 | I198: 24.60 | J198: 25.10 | K198: 24.1 | L198: 23.1 | M198: 31.00477
A199: 190 | B199: HEG | C199: 3984.1 | D199: 3986.37 | E199: 3953.73 | F199: 3923.37 | G199: 3890.73 | H199: 4016.73 | I199: 4049.37 | J199: 4079.73 | K199: 4019 | L199: 3956 | M199: 1.23071
A200: 191 | B200: HEIDELBERG | C200: 159.05 | D200: 158.95 | E200: 157.05 | F200: 155.05 | G200: 153.15 | H200: 160.95 | I200: 162.85 | J200: 164.85 | K200: 160.85 | L200: 156.95 | M200: 0.60839
A201: 192 | B201: HERITGFOOD | C201: 500.85 | D201: 505.27 | E201: 495.58 | F201: 490.32 | G201: 480.63 | H201: 510.53 | I201: 520.22 | J201: 525.48 | K201: 514.95 | L201: 500 | M201: 0.26928
A202: 193 | B202: HEROMOTOCO | C202: 3298.05 | D202: 3287.57 | E202: 3250.48 | F202: 3202.92 | G202: 3165.83 | H202: 3335.13 | I202: 3372.22 | J202: 3419.78 | K202: 3324.65 | L202: 3240 | M202: 9.10514
A203: 194 | B203: HEXAWARE | C203: 335.65 | D203: 335.05 | E203: 329.10 | F203: 322.55 | G203: 316.60 | H203: 341.60 | I203: 347.55 | J203: 354.10 | K203: 341 | L203: 328.5 | M203: 20.30695
A204: 195 | B204: HFCL | C204: 21 | D204: 20.55 | E204: 19.85 | F204: 18.70 | G204: 18.00 | H204: 21.70 | I204: 22.40 | J204: 23.55 | K204: 21.25 | L204: 19.4 | M204: 63.12097
A205: 196 | B205: HIMATSEIDE | C205: 208.45 | D205: 209.00 | E205: 207.30 | F205: 206.15 | G205: 204.45 | H205: 210.15 | I205: 211.85 | J205: 213.00 | K205: 210.7 | L205: 207.85 | M205: 0.25377
A206: 197 | B206: HINDALCO | C206: 225.25 | D206: 224.95 | E206: 222.90 | F206: 220.55 | G206: 218.50 | H206: 227.30 | I206: 229.35 | J206: 231.70 | K206: 227 | L206: 222.6 | M206: 59.15969
... 304 more rows

Sheet Bulk Deals
E6: Back To Main Page
A7: Subject : | B7: BULK DEAL | D7: =Main!B10 -> 2018-12-19
A9: Date | B9: Scrip code | C9: Scrip Name | D9: Client Name | E9: Buy / Sell | F9: Quantity Traded | G9: Trade Price / Wt.Avg.trade price | H9: Exchange
A10: 2018-12-18 | B10: 535467 | C10: AIFL | D10: NISHITH VAISH | E10: BUY | F10: 157,303 | G10: 24.39 | H10: BSE
A11: 2018-12-18 | B11: 535467 | C11: AIFL | D11: NISHITH VAISH | E11: SELL | F11: 157,303 | G11: 24.5 | H11: BSE
A12: 2018-12-18 | B12: 538713 | C12: ATISHAY | D12: HEM CHAND JAIN | E12: BUY | F12: 76,500 | G12: 81 | H12: BSE
A13: 2018-12-18 | B13: 538713 | C13: ATISHAY | D13: PRATEEK JAIN | E13: SELL | F13: 60,000 | G13: 81 | H13: BSE
A14: 2018-12-18 | B14: 539770 | C14: DARJEELING | D14: SHASHIKANT CHINUBHAI KAPADIA | E14: BUY | F14: 15,297 | G14: 101.25 | H14: BSE
A15: 2018-12-18 | B15: 539770 | C15: DARJEELING | D15: SHASHIKANT CHINUBHAI KAPADIA | E15: SELL | F15: 10 | G15: 99.8 | H15: BSE
A16: 2018-12-18 | B16: 539770 | C16: DARJEELING | D16: KUNAL K SUCHDEV . | E16: SELL | F16: 16,000 | G16: 99.53 | H16: BSE
A17: 2018-12-18 | B17: 536709 | C17: INDRENEW | D17: ANURADHA THANGADA | E17: BUY | F17: 16,245 | G17: 18.35 | H17: BSE
A18: 2018-12-18 | B18: 532937 | C18: KUANTUM | D18: KAPEDOME ENTERPRISES LIMITED | E18: BUY | F18: 199,250 | G18: 519 | H18: BSE
A19: 2018-12-18 | B19: 532937 | C19: KUANTUM | D19: COMBINE OVERSEAS LTD | E19: SELL | F19: 199,250 | G19: 519 | H19: BSE
A20: 2018-12-18 | B20: 540401 | C20: MAXIMUS | D20: YOGESHKUMAR SHAH ANAND | E20: SELL | F20: 60,000 | G20: 50.75 | H20: BSE
A21: 2018-12-18 | B21: 540401 | C21: MAXIMUS | D21: YOGESHKUMAR BABULAL SHAH | E21: SELL | F21: 39,000 | G21: 50.75 | H21: BSE
A22: 2018-12-18 | B22: 540401 | C22: MAXIMUS | D22: NOPEA CAPITAL SERVICES PRIVATE LIMITED | E22: BUY | F22: 99,000 | G22: 50.75 | H22: BSE
A23: 2018-12-18 | B23: 526905 | C23: PADMAIND | D23: SHASHIKANT CHINUBHAI KAPADIA | E23: SELL | F23: 32,500 | G23: 107.1 | H23: BSE
A24: 2018-12-18 | B24: 540727 | C24: POOJA | D24: RIKHAV SECURITIES LIMITED | E24: BUY | F24: 33,000 | G24: 58 | H24: BSE
A25: 2018-12-18 | B25: 540727 | C25: POOJA | D25: TIRTH CORPORATION | E25: SELL | F25: 33,000 | G25: 58 | H25: BSE
A26: 2018-12-18 | B26: 512618 | C26: RLF | D26: PRADEEP KUMAR AGRAWAL | E26: SELL | F26: 50,000 | G26: 5.02 | H26: BSE
A27: 2018-12-18 | B27: 512618 | C27: RLF | D27: SAMEER KAPUR | E27: BUY | F27: 53,700 | G27: 5.02 | H27: BSE
A28: 2018-12-18 | B28: 534734 | C28: RMCHEM | D28: WEEKLINE INVESTMENT AND TRADING COMPANY LIMITED | E28: SELL | F28: 1,486,000 | G28: 1.53 | H28: BSE
A29: 2018-12-18 | B29: 532005 | C29: SAMINDUS | D29: ISHITA GAURAV MOHATTA | E29: BUY | F29: 533,161 | G29: 7.1 | H29: BSE
A30: 2018-12-18 | B30: 532005 | C30: SAMINDUS | D30: SHEETAL KRAFTS PRIVATE LIMITED | E30: SELL | F30: 157,000 | G30: 7.1 | H30: BSE
A31: 2018-12-18 | B31: 532005 | C31: SAMINDUS | D31: KRISHNA KRIPA HOLDINGS PRIVATE LIMITED | E31: SELL | F31: 376,161 | G31: 7.1 | H31: BSE
A32: 2018-12-18 | B32: 506906 | C32: SCBL | D32: PIYUSH SHARMA | E32: SELL | F32: 22,400 | G32: 9.64 | H32: BSE
A33: 2018-12-18 | B33: 506906 | C33: SCBL | D33: PIYUSH SHARMA | E33: BUY | F33: 60516 | G33: 9.98 | H33: BSE
A34: 2018-12-18 | B34: 539520 | C34: SHAILJA | D34: RAM SAGAR TIWARI | E34: SELL | F34: 40000 | G34: 12.13 | H34: BSE
A35: 2018-12-18 | B35: 539520 | C35: SHAILJA | D35: SHWETA ASTHANA | E35: SELL | F35: 41856 | G35: 12.06 | H35: BSE
A36: 2018-12-18 | B36: 539520 | C36: SHAILJA | D36: R2V BUSINESS SOLUTIONS PRIVATE LIMITED | E36: SELL | F36: 136543 | G36: 11.86 | H36: BSE
A37: 2018-12-18 | B37: 539520 | C37: SHAILJA | D37: PRATEEKGOLCHHA | E37: SELL | F37: 17000 | G37: 11.64 | H37: BSE
A38: 2018-12-18 | B38: 539520 | C38: SHAILJA | D38: NEERAJ KUMAR SINGH | E38: SELL | F38: 151120 | G38: 12.37 | H38: BSE
A39: 2018-12-18 | B39: 539520 | C39: SHAILJA | D39: NEERAJ KUMAR SINGH | E39: BUY | F39: 156699 | G39: 11.89 | H39: BSE
A40: 2018-12-18 | B40: 539520 | C40: SHAILJA | D40: NAVEEN GUPTA | E40: SELL | F40: 29392 | G40: 12.21 | H40: BSE
A41: 2018-12-18 | B41: 539520 | C41: SHAILJA | D41: NAVEEN GUPTA | E41: BUY | F41: 44382 | G41: 11.81 | H41: BSE
A42: 2018-12-18 | B42: 539520 | C42: SHAILJA | D42: LATHA SHIVAKUMAR | E42: SELL | F42: 45058 | G42: 11.78 | H42: BSE
A43: 2018-12-18 | B43: 539520 | C43: SHAILJA | D43: SHASHIKANT CHINUBHAI KAPADIA | E43: BUY | F43: 190000 | G43: 12.37 | H43: BSE
A44: 2018-12-18 | B44: 536738 | C44: STELLAR | D44: LADI MARKETING (P) LTD | E44: SELL | F44: 204,000 | G44: 4.72 | H44: BSE
A45: 2018-12-18 | B45: 8KMILES | C45: 8K Miles Soft Serv Ltd | D45: CHETAN RASIKLAL SHAH | E45: BUY | F45: 191,135 | G45: 157.72 | H45: NSE
A46: 2018-12-18 | B46: AIFL | C46: Ashapura Inti Fashion Ltd | D46: ARCADIA SHARE & STOCK BROKERS PRIVATE LIMITED | E46: BUY | F46: 171,003 | G46: 23.56 | H46: NSE
A47: 2018-12-18 | B47: AIFL | C47: Ashapura Inti Fashion Ltd | D47: ASHWIN STOCKS AND INVESTMENT PRIVATE LIMITED | E47: BUY | F47: 184,622 | G47: 24.39 | H47: NSE
A48: 2018-12-18 | B48: AIFL | C48: Ashapura Inti Fashion Ltd | D48: CHETAN RASIKLAL SHAH | E48: BUY | F48: 18 | G48: 24.12 | H48: NSE
A49: 2018-12-18 | B49: AIFL | C49: Ashapura Inti Fashion Ltd | D49: NAVY RAMAVAT (HUF) | E49: BUY | F49: 160,001 | G49: 24.55 | H49: NSE
A50: 2018-12-18 | B50: AIFL | C50: Ashapura Inti Fashion Ltd | D50: RAHUL DOSHI | E50: BUY | F50: 234,000 | G50: 24.39 | H50: NSE
A51: 2018-12-18 | B51: AIFL | C51: Ashapura Inti Fashion Ltd | D51: SWAPNIL MEHTA | E51: BUY | F51: 220,000 | G51: 23.28 | H51: NSE
A52: 2018-12-18 | B52: AIFL | C52: Ashapura Inti Fashion Ltd | D52: TRANSGLOBAL SECURITIES LTD. | E52: BUY | F52: 15,520 | G52: 23.55 | H52: NSE
A53: 2018-12-18 | B53: AIFL | C53: Ashapura Inti Fashion Ltd | D53: VIJIT TRADING | E53: BUY | F53: 118,985 | G53: 24.52 | H53: NSE
A54: 2018-12-18 | B54: BANG | C54: Bang Overseas Limited | D54: BHAVNABEN NAYANKUMAR SHARMA | E54: BUY | F54: 23,291 | G54: 60.46 | H54: NSE
A55: 2018-12-18 | B55: BEML | C55: BEML Limited | D55: ALPHAGREP SECURITIES PRIVATE LIMITED | E55: BUY | F55: 378,922 | G55: 854.87 | H55: NSE
A56: 2018-12-18 | B56: BEML | C56: BEML Limited | D56: GRAVITON RESEARCH CAPITAL LLP | E56: BUY | F56: 260,737 | G56: 855.25 | H56: NSE
A57: 2018-12-18 | B57: BEML | C57: BEML Limited | D57: TOWER RESEARCH CAPITAL MARKETS INDIA PRIVATE LIMITED | E57: BUY | F57: 211,230 | G57: 854.69 | H57: NSE
A58: 2018-12-18 | B58: DRSDILIP | C58: DRS Dilip Roadlines Ltd. | D58: ARYAMAN CAPITAL MARKETS LIMITED | E58: BUY | F58: 97,600 | G58: 75.5 | H58: NSE
A59: 2018-12-18 | B59: EKC | C59: Everest Kanto Cylinder Li | D59: SWAPNIL MEHTA | E59: BUY | F59: 600,000 | G59: 36.55 | H59: NSE
A60: 2018-12-18 | B60: GSS | C60: GSS Infotech Limited | D60: AGARWAL ARCHANA | E60: BUY | F60: 88,143 | G60: 121.61 | H60: NSE
A61: 2018-12-18 | B61: JETAIRWAYS | C61: Jet Airways (India) Ltd. | D61: TOWER RESEARCH CAPITAL MARKETS INDIA PRIVATE LIMITED | E61: BUY | F61: 793,469 | G61: 244.25 | H61: NSE
A62: 2018-12-18 | B62: KWALITY | C62: Kwality Limited | D62: MULTIPLIER S AND S ADV PVT LTD | E62: BUY | F62: 1,454,275 | G62: 8.14 | H62: NSE
A63: 2018-12-18 | B63: MUKANDENGG | C63: Mukand Engineers Ltd | D63: MUKUL MAHESHWARI HUF | E63: BUY | F63: 140,626 | G63: 25.44 | H63: NSE
A64: 2018-12-18 | B64: PCJEWELLER | C64: PC Jeweller Ltd | D64: CROSSLAND TRADING CO | E64: BUY | F64: 2,557,245 | G64: 86.09 | H64: NSE
A65: 2018-12-18 | B65: PCJEWELLER | C65: PC Jeweller Ltd | D65: TOWER RESEARCH CAPITAL MARKETS INDIA PRIVATE LIMITED | E65: BUY | F65: 2332983 | G65: 85.71 | H65: NSE
A66: 2018-12-18 | B66: RCOM | C66: Reliance Comm. Ltd. | D66: SKYVEIL TRADE SOLUTIONS LLP | E66: BUY | F66: 17423720 | G66: 15.8 | H66: NSE
A67: 2018-12-18 | B67: 8KMILES | C67: 8K Miles Soft Serv Ltd | D67: CHETAN RASIKLAL SHAH | E67: SELL | F67: 142700 | G67: 157.58 | H67: NSE
A68: 2018-12-18 | B68: AIFL | C68: Ashapura Inti Fashion Ltd | D68: ARCADIA SHARE & STOCK BROKERS PRIVATE LIMITED | E68: SELL | F68: 111003 | G68: 23.98 | H68: NSE
A69: 2018-12-18 | B69: AIFL | C69: Ashapura Inti Fashion Ltd | D69: ASHWIN STOCKS AND INVESTMENT PRIVATE LIMITED | E69: SELL | F69: 84622 | G69: 23.98 | H69: NSE
A70: 2018-12-18 | B70: AIFL | C70: Ashapura Inti Fashion Ltd | D70: CHETAN RASIKLAL SHAH | E70: SELL | F70: 200025 | G70: 24.49 | H70: NSE
A71: 2018-12-18 | B71: AIFL | C71: Ashapura Inti Fashion Ltd | D71: HEMA CHAPROT | E71: SELL | F71: 143000 | G71: 23.25 | H71: NSE
A72: 2018-12-18 | B72: AIFL | C72: Ashapura Inti Fashion Ltd | D72: NAVY RAMAVAT (HUF) | E72: SELL | F72: 99888 | G72: 24.07 | H72: NSE
A73: 2018-12-18 | B73: AIFL | C73: Ashapura Inti Fashion Ltd | D73: RAHUL DOSHI | E73: SELL | F73: 234000 | G73: 23.33 | H73: NSE
A74: 2018-12-18 | B74: AIFL | C74: Ashapura Inti Fashion Ltd | D74: SWAPNIL MEHTA | E74: SELL | F74: 20000 | G74: 24.45 | H74: NSE
A75: 2018-12-18 | B75: AIFL | C75: Ashapura Inti Fashion Ltd | D75: TRANSGLOBAL SECURITIES LTD. | E75: SELL | F75: 129727 | G75: 23.17 | H75: NSE
A76: 2018-12-18 | B76: AIFL | C76: Ashapura Inti Fashion Ltd | D76: VIJIT TRADING | E76: SELL | F76: 163985 | G76: 24.29 | H76: NSE
A77: 2018-12-18 | B77: BANG | C77: Bang Overseas Limited | D77: BHAVNABEN NAYANKUMAR SHARMA | E77: SELL | F77: 91681 | G77: 60.55 | H77: NSE
A78: 2018-12-18 | B78: BEML | C78: BEML Limited | D78: ALPHAGREP SECURITIES PRIVATE LIMITED | E78: SELL | F78: 378649 | G78: 855.21 | H78: NSE
A79: 2018-12-18 | B79: BEML | C79: BEML Limited | D79: GRAVITON RESEARCH CAPITAL LLP | E79: SELL | F79: 261237 | G79: 855.85 | H79: NSE
A80: 2018-12-18 | B80: BEML | C80: BEML Limited | D80: TOWER RESEARCH CAPITAL MARKETS INDIA PRIVATE LIMITED | E80: SELL | F80: 211230 | G80: 855.39 | H80: NSE
A81: 2018-12-18 | B81: DRSDILIP | C81: DRS Dilip Roadlines Ltd. | D81: BABULAL VADILAL SHAH | E81: SELL | F81: 104000 | G81: 75.5 | H81: NSE
A82: 2018-12-18 | B82: EKC | C82: Everest Kanto Cylinder Li | D82: SWAPNIL MEHTA | E82: SELL | F82: 400000 | G82: 36.56 | H82: NSE
A83: 2018-12-18 | B83: GODHA | C83: Godha Cabcon Insulat Ltd | D83: MARK CORPORATE ADVIOSRS PVT LTD | E83: SELL | F83: 72000 | G83: 30 | H83: NSE
A84: 2018-12-18 | B84: GSS | C84: GSS Infotech Limited | D84: AGARWAL ARCHANA | E84: SELL | F84: 88143 | G84: 124.53 | H84: NSE
A85: 2018-12-18 | B85: JETAIRWAYS | C85: Jet Airways (India) Ltd. | D85: TOWER RESEARCH CAPITAL MARKETS INDIA PRIVATE LIMITED | E85: SELL | F85: 793469 | G85: 244.28 | H85: NSE
A86: 2018-12-18 | B86: KWALITY | C86: Kwality Limited | D86: MULTIPLIER S AND S ADV PVT LTD | E86: SELL | F86: 1404225 | G86: 8.17 | H86: NSE
A87: 2018-12-18 | B87: MUKANDENGG | C87: Mukand Engineers Ltd | D87: MUKUL MAHESHWARI HUF | E87: SELL | F87: 125626 | G87: 25.65 | H87: NSE
A88: 2018-12-18 | B88: PCJEWELLER | C88: PC Jeweller Ltd | D88: CROSSLAND TRADING CO | E88: SELL | F88: 2557245 | G88: 86.08 | H88: NSE
A89: 2018-12-18 | B89: PCJEWELLER | C89: PC Jeweller Ltd | D89: TOWER RESEARCH CAPITAL MARKETS INDIA PRIVATE LIMITED | E89: SELL | F89: 2332983 | G89: 85.81 | H89: NSE
A90: 2018-12-18 | B90: RCOM | C90: Reliance Comm. Ltd. | D90: SKYVEIL TRADE SOLUTIONS LLP | E90: SELL | F90: 17619720 | G90: 15.82 | H90: NSE

Sheet Call Tracker (Equity & F&O)
M5: Back To Main Page
A6: Retail Research Technical Calls & Fundamental Performance Report for the month of December -2018
M7: =Main!B10 -> 2018-12-19
B8: Positional Call
A9: Sr.no | B9: Date | D9: Company | E9: Rec | F9: Rec Price | G9: Stop Loss*** | H9: Call Closed At | I9: Target | J9: Remark | K9: Profit / Loss per Share | L9: Gain / Loss % | M9: Status | N9: Closed Date | O9: NSE Closed Price
A10: 1 | B10: 2018-11-14 | D10: ASHOKLEY | E10: Buy | F10: 108 | G10: 100.7 | H10: 111.25 | I10: 122-125 | J10: Part Profit of Rs.3.25/- | K10: =H10-F10 -> 3.25 | L10: =K10/F10 -> 3.01% | M10: Successful | N10: 2018-11-30 | R10: R
A11: 2 | B11: 2018-11-21 | D11: ADANIPORTS | E11: Sell | F11: 359.5 | G11: 377.7 | H11: 349 | I11: 322-326 | J11: Profit of Rs.10.5/- | K11: =F11-H11 -> 10.5 | L11: 2.92% | M11: Successful | N11: 2018-12-11 | R11: R
A12: 3 | B12: 2018-11-29 | D12: JSWSTEEL | E12: Buy{} | F12: 312 | G12: 297.7 | H12: =(322+296)/2 -> 309 | I12: 344-350 | J12: Loss of Rs.3/- | K12: =H12-F12 -> -3 | L12: =K12/F12 -> -0.96% | M12: Unsuccessful | N12: 2018-12-07 | R12: R
A13: 4 | B13: 2018-11-30 | D13: RAYMOND | E13: Sell | F13: 820 | G13: 861.6 | H13: 789 | I13: 745-735 | J13: Profit of Rs.31/- | K13: =F13-H13 -> 31 | L13: 3.78% | M13: Successful | N13: 2018-12-07 | R13: R
A14: 5 | B14: 2018-11-30 | D14: INFY | E14: Buy | F14: 665 | G14: 628 | H14: 685 | I14: 725 | J14: Profit of Rs.20/- | K14: 20 | L14: =K14/F14 -> 3.01% | M14: Successful | N14: 2018-12-07 | R14: H
A15: 6 | B15: 2018-12-13 | D15: JSWSTEEL | E15: Buy | F15: 300-303 | G15: 289 | I15: 325-330 | J15: Open | R15: H
A16: 7 | B16: 2018-12-17 | D16: COALINDIA | E16: Buy | F16: 245.5 | G16: 233 | H16: 253 | I16: 260-265 | J16: Part Profit of Rs.7.5/- | K16: =H16-F16 -> 7.5 | L16: =K16/F16 -> 3.05% | M16: Successful | N16: 2018-12-17 | R16: H
A34: CLBS = Closing Basis *** | F34: Reinitiated $
A35: Dividend adjusted <> | F35: Revised stoploss #
A36: Part book {}
A37: Master Trade High Risk
A38: Sr.no | B38: Date | D38: Company | E38: Rec | F38: Rec Price | G38: Stop Loss | H38: Call Closed At | I38: Target | J38: Remark | K38: Profit / Loss per share | L38: Gain / Loss per Lot | M38: Lot | N38: Status | O38: Closed Date
A39: 1 | B39: 2018-11-30 | D39: KOTAKBANK DEC FUT | E39: Buy | F39: 1229.5 | G39: 1195 | H39: 1202.5 | I39: 1270-1290 | J39: Loss of Rs. 15.5 /- | K39: =H39-F39 -> -27 | L39: =-15.5*800 -> -12400 | M39: 800 | N39: Unsuccessful | O39: 2018-12-07 | R39: H
D40: KOTAKBANK DEC 1260 CE | E40: Sell | F40: 23.5 | H40: 12 | K40: =F40-H40 -> 11.5 | R40: H
A41: 2 | B41: 2018-12-03 | D41: ADANIPORTS DEC FUT | E41: Sell | F41: 373 | G41: 382.5 | H41: 370 | I41: 360 | J41: Profit of Rs. 3 /- | K41: 3 | L41: 7500 | M41: 2500 | N41: Successful | O41: 2018-12-07 | R41: H
D42: ADANIPORTS DEC 360 PE | E42: Sell | F42: 9 | H42: 9 | K42: 0 | R42: H
A43: 3 | B43: 2018-12-07 | D43: NIFTY DEC FUT | E43: Sell | F43: 10657.5 | G43: 10786 | H43: 10575 | I43: 10400 | J43: Profit of Rs. 62.50 /- | K43: =F43-H43 -> 82.5 | L43: =M43*62.5 -> 4687.5 | M43: 75 | N43: Successful | O43: 2018-12-10 | R43: H
D44: NIFTY DEC 10500 PE | E44: Sell | F44: 125 | H44: 145 | K44: =F44-H44 -> -20 | R44: H
A45: 4 | B45: 2018-12-17 | D45: ADANIPORTS DEC FUT | E45: Sell | F45: 375.5 | G45: 382.5 | H45: 371.5 | I45: 360 | J45: Profit of Rs. 3 /- | K45: =F45-H45 -> 4 | L45: 7500 | M45: 2500 | N45: Successful | O45: 2018-12-17 | R45: H
D46: ADANIPORTS DEC 370 PE | E46: Sell | F46: 6.5 | H46: 7.5 | K46: =F46-H46 -> -1 | R46: H
A47: 5 | B47: 2018-12-18 | D47: COLPAL DEC FUT | E47: Sell | F47: 1311-1313 | G47: 1335 | I47: 1260 | J47: Open | R47: H
D48: COLPAL DEC 1280 PE | E48: Sell | F48: 11.00-13.00 | R48: H
A57: Master Trade Medium Risk
A58: Sr.no | B58: Date | D58: Company | E58: Rec | F58: Rec Price | G58: Stop Loss | H58: Call Closed At | I58: Target | J58: Remark | K58: Profit/ Loss per lot | L58: Gain / Loss per Lot | M58: Lot | N58: Status | O58: Closed Date
A59: 1 | B59: 2018-12-03 | D59: Nifty DEC 10900 PE | E59: Buy | F59: 180 | H59: 222.5 | J59: Profit of Rs 18.5/- | K59: =H59-F59 -> 42.5 | L59: =75*20 -> 1500 | M59: 75 | N59: Successful | O59: 2018-12-05 | R59: H
D60: Nifty DEC 10700 PE | E60: Sell | F60: 115 | H60: 139 | K60: =F60-H60 -> -24 | R60: H
A61: 2 | B61: 2018-12-04 | D61: ITC DEC 285 CE | E61: Buy | F61: 5.5-6 | J61: Open | R61: H
D62: ITC DEC 290 CE | E62: Sell | F62: 4-4.5 | R62: H
B75: Smart Delivery Trade
A76: Sr.no | B76: Date | D76: Company | E76: Rec | F76: Rec Price | G76: Stop Loss*** | H76: Call Closed At | I76: Target | J76: Remark | K76: Profit / Loss per Share | L76: Gain / Loss % | M76: Status | N76: Closed Date | O76: NSE Closed Price
A77: 1 | B77: 2018-11-27 | D77: MGL | E77: Buy | F77: 818.5 | G77: 793.7 | H77: 847.5 | I77: 860-870 | J77: Profit of Rs.29/- | K77: =H77-F77 -> 29 | L77: =K77/F77 -> 3.54% | M77: Successful | N77: 2018-12-03 | R77: R
A78: 2 | B78: 2018-11-28 | D78: ESCORTS | E78: Buy | F78: 691 | G78: 669 | H78: 716.5 | I78: 725-735 | J78: Profit of Rs.25.5/- | K78: =H78-F78 -> 25.5 | L78: =K78/F78 -> 3.69% | M78: Successful | N78: 2018-12-03 | R78: R
A79: 3 | B79: 2018-11-28 | D79: RELIANCE | E79: Sell | F79: 1152.5 | G79: 1186 | H79: 1152.5 | I79: 1100-1090 | J79: Neutral | K79: =F79-H79 -> 0 | L79: 0.00% | M79: Neutral | N79: 2018-12-05 | R79: H
A80: 4 | B80: 2018-11-30 | D80: BAJAJ-AUTO | E80: Buy | F80: 2760 | G80: 2680 | H80: 2837 | I80: 2870-2900 | J80: Profit of Rs.77/- | K80: =H80-F80 -> 77 | L80: 2.79% | M80: Successful | N80: 2018-12-12 | R80: H
A81: 5 | B81: 2018-12-03 | D81: PVR | E81: Sell | F81: 1454 | G81: 1505 | H81: 1505 | I81: 1370-1350 | J81: Loss of Rs.51/- | K81: =F81-H81 -> -51 | L81: =K81/F81 -> -3.51% | M81: Unsuccessful | N81: 2018-12-03 | R81: H
A82: 6 | B82: 2018-12-07 | D82: TATASTEEL | E82: Buy | F82: 514-518 | G82: 495 | I82: 550 | J82: Open | O82: =VLOOKUP(D82,Sheet2!A66:M1561,6,0) -> 527 | R82: H
A83: 7 | B83: 2018-12-07 | D83: RAMCOCEM | E83: Buy | F83: 597.5 | G83: 580 | H83: 615 | I83: 635-640 | J83: Profit of Rs.17.5/- | K83: =H83-F83 -> 17.5 | L83: =K83/F83 -> 2.93% | M83: Successful | N83: 2018-12-12 | R83: R
A84: 8 | B84: 2018-12-10 | D84: CONCOR | E84: Buy | F84: 648 | G84: 627.7 | H84: 679 | I84: 680-690 | J84: Profit of Rs.31/- | K84: =H84-F84 -> 31 | L84: =K84/F84 -> 4.78% | M84: Successful | N84: 2018-12-10 | R84: R
A85: 9 | B85: 2018-12-12 | D85: LUPIN | E85: Buy | F85: 817.5 | G85: 788.7 | H85: 811 | I85: 865-875 | J85: Neutral | K85: -6.5 | L85: -0.80% | M85: Neutral | N85: 2018-12-13 | R85: R
A86: 10 | B86: 2018-12-17 | D86: TVSMOTOR | E86: Buy | F86: 572-576 | G86: 548 | I86: 600-610 | J86: Open | O86: =VLOOKUP(D86,Sheet2!A70:M1565,6,0) -> 574.5 | R86: H
A87: 11 | B87: 2018-12-18 | D87: BAJFINANCE | E87: Sell | F87: 2455 | G87: 2525.25 | H87: 2525.25 | I87: 2320-2300 | J87: Loss of Rs.70.25/- | K87: =F87-H87 -> -70.25 | L87: =K87/F87 -> -2.86% | M87: Unsuccessful | N87: 2018-12-18 | R87: R
A88: 12 | B88: 2018-12-18 | D88: BHEL | E88: Sell | F88: 69.60-70.10 | G88: 72 | I88: 66 | J88: Open | O88: =VLOOKUP(D88,Sheet2!A72:M1567,6,0) -> 69.9 | R88: H
A96: CLBS = Closing Basis *** | F96: Reinitiated $
A97: Dividend adjusted <> | F97: Revised stoploss #
B100: Momentum Call
A101: Sr.no | B101: Date | D101: Company | E101: Rec | F101: Rec Price | G101: Stop Loss | H101: Call Closed At | I101: Target | J101: Remark | K101: Profit / Loss per Share/Lot | L101: Gain / Loss % | M101: Gain / Loss per Lot | N101: Lot | O101: Status | P101: Closed Date
A102: 1 | B102: 2018-11-29 | D102: AMARAJABAT DEC FUT | E102: Buy | F102: 723.5 | G102: 705 | H102: 705 | I102: 750 | J102: Loss of Rs.18.5/- | K102: =H102-F102 -> -18.5 | M102: =N102*K102 -> -11100 | N102: 600 | O102: Unsuccessful | P102: 2018-12-03 | R102: N
A103: 2 | B103: 2018-11-30 | D103: TATASTEEL | E103: Buy | F103: 534 | G103: 517 | H103: 549.5 | I103: 555-560 | J103: Profit of Rs.15.5/- | K103: =H103-F103 -> 15.5 | L103: =K103/F103 -> 2.90% | O103: Successful | P103: 2018-12-03 | R103: H
A104: 3 | B104: 2018-11-30 | D104: PIDILITIND DEC FUT | E104: Sell | F104: 1171 | G104: 1195 | H104: 1156.5 | I104: 1140-1130 | J104: Profit of Rs.14.5/- | K104: =F104-H104 -> 14.5 | M104: =N104*K104 -> 7250 | N104: 500 | O104: Successful | P104: 2018-12-03 | R104: H
A105: 4 | B105: 2018-12-03 | D105: UPL | E105: Buy | F105: 749 | G105: 737 | H105: 739.5 | I105: 774 | J105: Loss of Rs.9.5/- | K105: =H105-F105 -> -9.5 | M105: -11400 | N105: 1200 | O105: Unsuccessful | P105: 2018-12-03 | R105: N
A106: 5 | B106: 2018-12-03 | D106: ICICIBANK DEC FUT | E106: Sell | F106: 357.25 | G106: 362 | H106: 356 | I106: 348-346 | J106: Profit of Rs.1.25/- | K106: =F106-H106 -> 1.25 | M106: 3437.5 | N106: 2750 | O106: Neutral | P106: 2018-12-05 | R106: H
A107: 6 | B107: 2018-12-04 | D107: DRREDDY DEC FUT | E107: Sell | F107: 2721 | G107: 2760 | H107: 2692 | I107: 2650 | J107: Profit of Rs.29/- | K107: =F107-H107 -> 29 | M107: =N107*K107 -> 7250 | N107: 250 | O107: Successful | P107: 2018-12-05 | R107: R
A108: 7 | B108: 2018-12-04 | D108: TCS DEC FUT | E108: Buy | F108: 2005 | G108: 1945 | H108: 2030 | I108: 2080-2100 | J108: Profit of Rs.25/- | K108: =H108-F108 -> 25 | M108: =N108*K108 -> 6250 | N108: 250 | O108: Successful | P108: 2018-12-13 | R108: H
A109: 8 | B109: 2018-12-04 | D109: TATACHEM DEC FUT | E109: Buy | F109: 688 | G109: 673 | H109: 673 | I109: 710 | J109: Loss of Rs.15/- | K109: =H109-F109 -> -15 | M109: =N109*K109 -> -11250 | N109: 750 | O109: Unsuccessful | P109: 2018-12-05 | R109: N
A110: 9 | B110: 2018-12-04 | D110: AUROPHARMA DEC FUT | E110: Buy | F110: 824.5 | G110: 813 | H110: 813 | I110: 845-850 | J110: Loss of Rs.11.5/- | K110: =H110-F110 -> -11.5 | M110: =N110*K110 -> -11500 | N110: 1000 | O110: Unsuccessful | P110: 2018-12-05 | R110: H
A111: 10 | B111: 2018-12-05 | D111: DIVISLAB DEC FUT | E111: Sell | F111: 1507.5 | G111: 1532 | H111: 1486.5 | I111: 1460 | J111: Profit of Rs.21/- | K111: =F111-H111 -> 21 | M111: =N111*K111 -> 8400 | N111: 400 | O111: Successful | P111: 2018-12-05 | R111: R
A112: 11 | B112: 2018-12-05 | D112: PIDILITIND DEC FUT | E112: Sell | F112: 1171.5 | G112: 1192 | H112: 1145 | I112: 1130 | J112: Profit of Rs.26.5/- | K112: 26.5 | M112: =N112*K112 -> 10600 | N112: 400 | O112: Successful | P112: 2018-12-05 | R112: R
A113: 12 | B113: 2018-12-07 | D113: DRREDDY DEC FUT | E113: Sell | F113: 2707.5 | G113: 2747 | H113: 2674.5 | I113: 2630 | J113: Profit of Rs.33/- | K113: 33 | M113: 8250 | N113: 250 | O113: Successful | P113: 2018-12-07 | R113: R
A114: 13 | B114: 2018-12-07 | D114: BATAINDIA DEC FUT | E114: Sell | F114: 1062 | G114: 1083 | H114: 1037.5 | I114: 1020 | J114: Profit of Rs.24.5/- | K114: 24.5 | M114: =N114*K114 -> 13475 | N114: 550 | O114: Successful | P114: 2018-12-10 | R114: R
A115: 14 | B115: 2018-12-13 | D115: NIFTY DEC FUT | E115: Sell | F115: 10835 | G115: 10930 | H115: 10785 | I115: 10750-10700 | J115: Profit of Rs.50/- | K115: 50 | M115: 3750 | N115: 75 | O115: Successful | P115: 2018-12-13 | R115: H
A116: 15 | B116: 2018-12-13 | D116: BANKNIFTY DEC FUT | E116: Sell | F116: 26980 | G116: 27250 | H116: 26880 | I116: 26400 | J116: Profit of Rs.100/- | K116: 100 | M116: =N116*K116 -> 2000 | N116: 20 | O116: Successful | P116: 2018-12-13 | R116: H
A117: 16 | B117: 2018-12-14 | D117: NIFTY DEC FUT | E117: Sell | F117: 10800 | G117: 10905 | H117: 10905 | I117: 10650 | J117: Loss of Rs.105/- | K117: =F117-H117 -> -105 | M117: -7875 | N117: 75 | O117: Unsuccessful | P117: 2018-12-17 | R117: H
A118: 17 | B118: 2018-12-14 | D118: BATAINDIA DEC FUT | E118: Sell | F118: 1079 | G118: 1102 | H118: 1102 | I118: 1050-1040 | J118: Loss of Rs.23/- | K118: =F118-H118 -> -23 | M118: =N118*K118 -> -12650 | N118: 550 | O118: Unsuccessful | P118: 2018-12-18 | R118: R
A119: 18 | B119: 2018-12-14 | D119: PEL DEC FUT | E119: Sell | F119: 2155 | G119: 2191.3 | H119: 2132.5 | I119: 2100 | J119: Profit of Rs.22.5/- | K119: =F119-H119 -> 22.5 | M119: =N119*K119 -> 6795 | N119: 302 | O119: Successful | P119: 2018-12-14 | R119: R
A120: 19 | B120: 2018-12-17 | D120: NIITTECH DEC FUT | E120: Buy | F120: 1129 | G120: 1113 | H120: 1140 | I120: 1160 | J120: Profit of Rs.11/- | K120: =H120-F120 -> 11 | M120: 8250 | N120: 750 | O120: Successful | P120: 2018-12-17 | R120: R
A121: 20 | B121: 2018-12-17 | D121: GODREJIND DEC FUT | E121: Buy | F121: 540-542 | G121: 533 | I121: 555 | J121: Open | R121: N
A122: 21 | B122: 2018-12-18 | D122: BALKRISIND DEC FUT | E122: Buy | F122: 938-940 | G122: 922 | I122: 968 | J122: Open | R122: R
A123: 22 | B123: 2018-12-18 | D123: HEROMOTOCO DEC FUT | E123: Sell | F123: 3265-3275 | G123: 3325.25 | I123: 3180-3160 | J123: Open | R123: R
A124: 23 | B124: 2018-12-18 | D124: AJANTPHARM DEC FUT | E124: Buy | F124: 1096.5 | G124: 1074 | H124: 1118.5 | I124: 1140 | J124: Profit of Rs.22/- | K124: =H124-F124 -> 22 | M124: =N124*K124 -> 11000 | N124: 500 | O124: Successful | P124: 2018-12-18 | R124: N
A125: 24 | B125: 2018-12-18 | D125: VOLTAS DEC FUT | E125: Sell | F125: 561-563 | G125: 574 | I125: 542 | J125: Open | R125: R
A128: CLBS = Closing Basis ***
A129: Dividend adjusted <> | F129: Reinitiated $
F130: Revised stoploss #
B131: Quick Pick Intraday
A132: Sr.no | B132: Date | D132: Company | E132: Rec | F132: Rec Price | G132: Stop Loss*** | H132: Call Closed At | I132: Target | J132: Remark | K132: Profit / Loss per Share | L132: Status | M132: Closed Date
A146: Techno -Funda (positional)
A147: Sr.no | B147: Date | D147: Company | E147: Rec | F147: Rec Price | G147: Stop Loss*** | H147: Call Closed At | I147: Target | J147: Remark | K147: Profit / Loss per Share | L147: Gain / Loss % | M147: Status | N147: Closed Date | O147: NSE Closed Price
A150: CLBS = Closing Basis *** | F150: Reinitiated $
A151: Dividend adjusted <> | F151: Revised stoploss #
B156: Investment Idea
A157: Sr.no | B157: Date | D157: Company | E157: Rec | F157: Rec Price | G157: Point of Review | H157: Close Rate | I157: Target | J157: Remark | K157: Profit / Loss per Share | L157: Gain / Loss % | M157: Status | N157: Closed Date
A158: 1 | B158: 2013-11-01 | D158: L&T Finance Holding | E158: Accu | F158: 82.00 | G158: - | H158: 100 | I158: 100.00 | J158: Target Achieved | K158: =H158-F158 -> 18.00 | L158: =K158/F158 -> 21.95% | M158: Successful | N158: 2016-10-14
A159: 2 | B159: 2014-06-04 | D159: Finolex Inds | E159: Buy | F159: 257.00 | G159: - | H159: 300 | I159: 300.00 | J159: Target Achieved | K159: =H159-F159 -> 43.00 | L159: 16.73% | M159: Successful | N159: 2014-07-02
A160: =1+A159 -> 3 | B160: 2014-07-08 | D160: JK Cement | E160: Buy | F160: 393.00 | G160: - | H160: 468 | I160: 468.00 | J160: Target Achieved | K160: =H160-F160 -> 75.00 | L160: 19.08% | M160: Successful | N160: 2014-08-12
A161: 4 | B161: 2014-08-06 | D161: Finolex Cables | E161: Buy | F161: 205.00 | G161: - | H161: 275 | I161: 250.00 | J161: Target Achieved | K161: 70.00 | L161: 34.15% | M161: Successful | N161: 2014-11-19
A162: 5 | B162: 2014-09-04 | D162: Exide Inds | E162: Buy | F162: 162.00 | G162: - | H162: 190 | I162: 190.00 | J162: Target Achieved | K162: 28.00 | L162: 17.28% | M162: Successful | N162: 2015-01-02
A163: 6 | B163: 2014-09-04 | D163: Deepak Nitrite | E163: Buy | F163: 75.00 | G163: - | H163: 91.5 | I163: 95-100 | J163: Profit of Rs.16.50/- | K163: 16.50 | L163: 22.00% | M163: Successful | N163: 2014-11-11
A164: 7 | B164: 2014-10-01 | D164: Mercks | E164: Buy | F164: 850.00 | G164: - | H164: 982.5 | I164: 1050.00 | J164: Profit of Rs.132.50/- | K164: 132.50 | L164: 15.59% | M164: Successful | N164: 2015-02-04
A165: 8 | B165: 2014-10-01 | D165: Grindwell Norton | E165: Buy | F165: 475.00 | G165: - | H165: 515 | I165: 600.00 | J165: Profit of Rs.40/- | K165: 40.00 | L165: 8.42% | M165: Successful | N165: 2014-10-27
A166: 9 | B166: 2014-10-01 | D166: Snowman Logistics | E166: Buy | F166: 86.00 | G166: - | H166: 99 | I166: 140.00 | J166: Profit of Rs.13.00/- | K166: 13.00 | L166: 15.12% | M166: Successful | N166: 2014-10-27
A167: 10 | B167: 2014-10-14 | D167: Birla Corp | E167: Buy | F167: 496.60 | G167: - | H167: 621 | I167: 580.00 | J167: Target Achieved | K167: 124.40 | L167: 25.05% | M167: Successful | N167: 2016-08-23
A168: 11 | B168: 2014-10-14 | D168: Ultratech Cem | E168: Buy | F168: 2481.90 | G168: - | H168: 2840 | I168: 2870.00 | J168: Profit of Rs.358.10/- | K168: 358.10 | L168: 14.43% | M168: Successful | N168: 2015-01-13
A169: =1+A166 -> 10 | B169: 2014-10-16 | D169: Sintex Inds | E169: Buy | F169: 84.50 | G169: - | H169: 93 | I169: 110.00 | J169: Profit of Rs.8.50/- | K169: 8.50 | L169: 10.06% | M169: Successful | N169: 2014-10-27
A170: =1+A169 -> 11 | B170: 2014-10-16 | D170: HSIL | E170: Buy | F170: 401.00 | G170: - | H170: 428 | I170: 450.00 | J170: Profit of Rs.27.00/- | K170: 27.00 | L170: 6.73% | M170: Successful | N170: 2015-01-16
A171: 12 | B171: 2014-10-16 | D171: Eveready Inds | E171: Buy | F171: 101.00 | G171: - | H171: 112 | I171: 120.00 | J171: Profit of Rs.11.00/- | K171: 11.00 | L171: 10.89% | M171: Successful | N171: 2014-10-27
A172: 13 | B172: 2014-11-11 | D172: Pennar Inds | E172: Buy | F172: 59.00 | G172: - | H172: 76 | I172: 76.00 | J172: Target Achieved | K172: 17.00 | L172: 28.81% | M172: Successful | N172: 2017-10-24
A173: 14 | B173: 2014-11-11 | D173: Snowman Logistics | E173: Buy | F173: 99.00 | G173: - | H173: 120 | I173: 120.00 | J173: Profit of Rs.21/- | K173: 21.00 | L173: 21.21% | M173: Successful | N173: 2014-11-17
A174: 15 | B174: 2014-11-13 | D174: Dharamsi Morarji Chem | E174: Buy | F174: 22.00 | G174: - | H174: 33.55 | I174: 32.00 | J174: Profit of Rs 11.55/- | K174: 11.55 | L174: 52.50% | M174: Successful | N174: 2015-07-03
A175: 16 | B175: 2014-12-03 | D175: Tatachem | E175: Buy | F175: 440.00 | G175: - | H175: 520 | I175: 520.00 | J175: Profit of Rs 80.00/- | K175: 80.00 | L175: 18.18% | M175: Successful | N175: 2015-07-23
A176: 17 | B176: 2014-12-03 | D176: Advanta | E176: Buy | F176: 360.00 | G176: - | H176: 427 | I176: 425.00 | J176: Profit of Rs.67.00/- | K176: 67.00 | L176: 18.61% | M176: Successful | N176: 2015-02-23
A177: 18 | B177: 2015-01-08 | D177: GDL | E177: Buy | F177: 360.00 | G177: - | H177: 455 | I177: 420.00 | J177: Profit of Rs.95.00/- | K177: 95.00 | L177: 26.39% | M177: Successful | N177: 2015-01-20
A178: 19 | B178: 2015-01-08 | D178: NRB Bearing | E178: Buy | F178: 130.00 | H178: 175.5 | I178: 165.00 | J178: Profit of Rs 45.50/- | K178: 45.50 | L178: 35.00% | M178: Successful | N178: 2017-12-19
A179: 20 | B179: 2015-02-05 | D179: GSFC | E179: Accu | F179: 98.00 | H179: 120 | I179: 120.00 | J179: Target Achieved | K179: 22.00 | L179: 22.45% | M179: Successful | N179: 2017-01-18
A180: 21 | B180: 2015-02-05 | D180: Sundrmfast | E180: Accu | F180: 196.00 | H180: 262 | I180: 255.00 | J180: Target Achieved | K180: 66.00 | L180: 33.67% | M180: Successful | N180: 2016-08-17
A181: 22 | B181: 2015-03-04 | D181: GPPL | E181: Accu | F181: 230-240 | I181: 280-285 | J181: Open
A182: 23 | B182: 2015-03-04 | D182: ORIENTCEM | E182: Accu | F182: 185.00 | H182: 224 | I182: 220-225 | J182: Target Achieved | K182: 39.00 | L182: =K182/F182 -> 21.08% | M182: Successful | N182: 2016-10-04
A183: 24 | B183: 2015-03-27 | D183: PFS | E183: Accu | F183: 49-50 | I183: 67.00 | J183: Open
A184: 25 | B184: 2015-03-30 | D184: Walchandnagar Ind Ltd | E184: Accu | F184: 183.50 | H184: 219 | I184: 218.00 | J184: Profit of Rs.35.50/- | K184: 35.50 | L184: =K184/F184 -> 19.35% | M184: Successful | N184: 2015-04-09
A185: 26 | B185: 2015-04-20 | D185: Kalpataru Power Transmission Ltd | E185: Accu | F185: =(227+237)/2 -> 232.00 | H185: 298 | I185: 298.00 | J185: Target Achieved | K185: 66.00 | L185: 28.45% | M185: Successful | N185: 2017-03-29
A186: 27 | B186: 2015-05-04 | D186: Mastek Ltd | E186: Buy | F186: 385.00 | H186: =212.5+331 -> 543.5 | I186: 510.00 | J186: Profit of Rs 158.50/- | K186: 158.50 | L186: 41.17% | M186: Successful | N186: 2015-08-19
A187: 28 | B187: 2015-05-04 | D187: Suprajit Eng | E187: Buy | F187: 115.50 | H187: 146 | I187: 142.00 | J187: Profit of Rs 30.50/- | K187: 30.50 | L187: 26.41% | M187: Successful | N187: 2015-07-17
A188: 29 | B188: 2015-05-27 | D188: TCI | E188: Buy | F188: 237.50 | H188: 279.5 | I188: 278.00 | J188: Target Achieved | K188: 42.00 | L188: 17.68% | M188: Successful | N188: 2015-08-06
A189: 30 | B189: 2015-06-19 | D189: HSIL | E189: Accu | F189: 340.00 | H189: 448 | I189: 448.00 | J189: Target Achieved | K189: 108.00 | L189: 31.76% | M189: Successful | N189: 2017-10-10
A190: 31 | B190: 2015-07-06 | D190: Capital First | E190: Accu | F190: 390.00 | H190: 460 | I190: 460.00 | J190: Target Achieved | K190: 70.00 | L190: 17.95% | M190: Successful | N190: 2016-04-18
A191: 32 | B191: 2015-07-10 | D191: Dolphin OffShore | E191: Accu | F191: 122.5 | H191: 61.00 | I191: 172.00 | J191: Loss of Rs.61.50/- | K191: -61.50 | L191: -50.20% | M191: Unsuccessful | N191: 2018-08-21
A192: 33 | B192: 2015-08-03 | D192: Allcargo logistics | E192: Accu | F192: 297.50 | H192: 350 | I192: 360.00 | J192: Profit of Rs 52.50/- | K192: 52.50 | L192: =K192/F192 -> 17.65% | M192: Successful | N192: 2015-08-16
A193: 34 | B193: 2015-08-03 | D193: Camline Fine | E193: Accu | F193: 115.50 | H193: 149 | I193: 140.00 | J193: Profit of Rs 33.50/- | K193: 33.50 | L193: 29.00% | M193: Successful | N193: 2017-01-05
A194: 35 | B194: 2015-09-04 | D194: TCI | E194: Accu | F194: 226.00 | H194: 292 | I194: 292.00 | J194: Target Achieved | K194: 66.00 | L194: 29.20% | M194: Successful | N194: 2015-10-09
A195: 36 | B195: 2015-09-07 | D195: Kalpataru Power Transmission Ltd | E195: Accu | F195: 232.50 | H195: 312.5 | I195: 310.00 | J195: Target Achieved | K195: 80.00 | L195: 34.41% | M195: Successful | N195: 2017-03-29
A196: 37 | B196: 2015-09-21 | D196: LLOYD ELECTRIC & ENG LTD | E196: Accu | F196: 196.50 | H196: 238 | I196: 238.00 | J196: Target Achieved | K196: 41.50 | L196: 21.12% | M196: Successful | N196: 2015-10-14
A197: 38 | B197: 2015-09-24 | D197: L&T Finance Holding | E197: Accu | F197: 65.00 | H197: 82 | I197: 82.00 | J197: Target Achieved | K197: 17.00 | L197: 26.15% | M197: Successful | N197: 2016-07-27
A198: 39 | B198: 2015-10-14 | D198: KEC International ltd | E198: Accu | F198: 144.00 | H198: 182.5 | I198: 181.00 | J198: Target Achieved | K198: 38.50 | L198: 26.74% | M198: Successful | N198: 2017-03-23
A199: 40 | B199: 2015-10-14 | D199: Gruh Finance | E199: Accu | F199: 264.00 | H199: 311 | I199: 311.00 | J199: Target Achieved | K199: 47.00 | L199: 17.80% | M199: Successful | N199: 2016-08-22
A200: 41 | B200: 2015-11-10 | D200: Pidilitind | E200: Buy | F200: 549.50 | H200: 630 | I200: 630.00 | J200: Target Achieved | K200: 80.50 | L200: 14.65% | M200: Successful | N200: 2016-02-19
A201: 42 | B201: 2015-12-04 | D201: Zensar Technology | E201: Accu | F201: 1027.50 | H201: 1315 | I201: 1250.00 | J201: Target Achieved | K201: =H201-F201 -> 287.50 | L201: 27.98% | M201: Successful | N201: 2018-05-24
A202: 43 | B202: 2015-12-29 | D202: Vinati Organics Ltd | E202: Accu | F202: 465.00 | H202: 540 | I202: 540.00 | J202: Target Achieved | K202: 75.00 | L202: =K202/F202 -> 16.13% | M202: Successful | N202: 2016-06-09
A203: 44 | B203: 2016-01-11 | D203: GSFC | E203: Buy | F203: 81.00 | H203: 110 | I203: 110.00 | J203: Target Achieved | K203: 29.00 | L203: 35.80% | M203: Successful | N203: 2017-01-10
A204: 45 | B204: 2016-01-13 | D204: SSWL | E204: Buy | F204: 417.50 | H204: 547 | I204: 535.00 | J204: Target Achieved | K204: 129.50 | L204: 31.02% | M204: Successful | N204: 2016-07-27
A205: 46 | B205: 2016-02-08 | D205: Persistent System Ltd | E205: Accu | F205: 650.00 | H205: 800 | I205: 800.00 | J205: Target Achieved | K205: 150.00 | L205: 23.08% | M205: Successful | N205: 2018-02-23
A206: 47 | B206: 2016-03-04 | D206: UPL | E206: Accu | F206: 437.50 | H206: 504.5 | I206: 522.00 | J206: Profit of Rs.67/- | K206: 67.00 | L206: 15.31% | M206: Successful | N206: 2016-04-20
A207: 48 | B207: 2016-03-09 | D207: Ashoka Buildcon Ltd | E207: Accu | F207: 189.50 | H207: 218 | I207: 218.00 | J207: Target Achieved | K207: 28.50 | L207: 15.04% | M207: Successful | N207: 2017-10-26
A208: 49 | B208: 2016-04-11 | D208: PTC INDIA FIN SERV LTD | E208: Accu | F208: 36-37 | I208: 60.00 | J208: Open
A209: 50 | B209: 2016-04-12 | D209: CAMLINFINE $ | E209: Accu | F209: 93.00 | H209: 149 | I209: 140.00 | J209: Profit of Rs 56/- | K209: 56.00 | L209: =K209/F209 -> 60.22% | M209: Successful | N209: 2017-01-05
A210: 51 | B210: 2016-04-12 | D210: Greaves Cotton Ltd. | E210: Accu | F210: 130.00 | H210: 150 | I210: 150-155 | J210: Target Achieved | K210: 20.00 | L210: 15.38% | M210: Successful | N210: 2016-07-13
A211: 52 | B211: 2016-04-13 | D211: DHFL | E211: Accu | F211: 196.00 | H211: 299 | I211: 299.00 | J211: Target Achieved | K211: 103.00 | L211: 52.55% | M211: Successful | N211: 2016-09-07
A212: 53 | B212: 2016-04-13 | D212: Magma | E212: Accu | F212: 88.00 | H212: 103 | I212: 103.00 | J212: Target Achieved | K212: 15.00 | L212: 17.05% | M212: Successful | N212: 2016-06-09
A213: 54 | B213: 2016-05-02 | D213: KEC International ltd $ | E213: Accu | F213: 127.50 | H213: 148 | I213: 148-150 | J213: Target Achieved | K213: 20.50 | L213: 16.08% | M213: Successful | N213: 2016-07-13
A214: 55 | B214: 2016-05-03 | D214: Mindtree | E214: Accu | F214: 675.00 | H214: 815 | I214: 790-800 | J214: Target Achieved | K214: 140.00 | L214: 20.74% | M214: Successful | N214: 2018-02-23
A215: 56 | B215: 2016-06-01 | D215: Atulauto | E215: Accu | F215: 495-505 | I215: 565-570 | J215: Open
A216: 57 | B216: 2016-06-06 | D216: TRITURBINE | E216: Accu | F216: 110.00 | H216: 126.5 | I216: 125.00 | J216: Profit of Rs.16.50/- | K216: 16.50 | L216: =K216/F216 -> 15.00% | M216: Successful | N216: 2016-07-01
A217: 58 | B217: 2016-06-17 | D217: Pennar Industries Ltd | E217: Accu | F217: 44.00 | H217: 69.5 | I217: 69.50 | J217: Profit of Rs.25.50/- | K217: 25.50 | L217: =K217/F217 -> 57.95% | M217: Successful | N217: 2017-08-30
A218: 59 | B218: 2016-06-28 | D218: EVEREADY INDS. IND. LTD. | E218: Accu | F218: 262.50 | H218: 340 | I218: 333.00 | J218: Profit of Rs.77.50/- | K218: 77.50 | L218: =K218/F218 -> 29.52% | M218: Successful | N218: 2017-10-09
A219: 60 | B219: 2016-06-28 | D219: FIEM INDUSTRIES LIMITED | E219: Accu | F219: 840.00 | H219: 1230 | I219: 1230.00 | J219: Target Achieved | K219: 390.00 | L219: =K219/F219 -> 46.43% | M219: Successful | N219: 2016-10-06
A220: 61 | B220: 2016-07-05 | D220: Bajaj Corp Ltd | E220: Accu | F220: 395 | H220: 468.50 | I220: 510.00 | J220: Part profit of Rs.73.50/- | K220: 73.50 | L220: =K220/F220 -> 19% | M220: Successful | N220: 2017-08-30
A221: 62 | B221: 2016-08-02 | D221: GPPL $ | E221: Buy | F221: 167-172 | I221: 198-200 | J221: Open
A222: 63 | B222: 2016-08-04 | D222: WONDERLA HOLIDAYS LTD | E222: Accu | F222: 395-405 | I222: 475.00 | J222: Open
A223: 64 | B223: 2016-08-11 | D223: CAMLINFINE | E223: Accu | F223: 86.50 | H223: 130 | I223: 130.00 | J223: Profit of Rs.43.50/- | K223: =H223-F223 -> 43.50 | L223: =K223/F223 -> 50.29% | M223: Successful | N223: 2017-12-22
A224: 65 | B224: 2016-08-18 | D224: GRANULES | E224: Accu | F224: 133.5 | H224: 126.50 | I224: 178.00 | J224: Exit | K224: -7.00 | L224: -5.24% | M224: Unsuccessful | N224: 2016-09-02
A225: 66 | B225: 2016-08-31 | D225: VA TECH WABAG | E225: Accu | F225: 560.00 | H225: 725 | I225: 725.00 | J225: Target Achieved | K225: 165.00 | L225: 29.46% | M225: Successful | N225: 2016-03-27
A226: 67 | B226: 2016-09-01 | D226: SKIPPER LIMITED | E226: Accu | F226: 160.50 | H226: 210 | I226: 210.00 | J226: Target Achieved | K226: 49.50 | L226: 30.84% | M226: Successful | N226: 2017-05-16
A227: 68 | B227: 2016-10-03 | D227: IFB Industries | E227: Accu | F227: 430.00 | H227: 596 | I227: 575.00 | J227: Profit of Rs.166/- | K227: 166.00 | L227: 38.60% | M227: Successful | N227: 2017-02-03
A228: 69 | B228: 2016-10-14 | D228: ASIANTILES | E228: Accu | F228: 280.00 | H228: 345 | I228: 345.00 | J228: Target Achieved | K228: 65.00 | L228: 23.21% | M228: Successful | N228: 2017-03-20
A229: 70 | B229: 2016-10-14 | D229: DEEPIND | E229: Accu | F229: 245.00 | H229: 325.5 | I229: 330.00 | J229: Profit of Rs.80.5/- | K229: 80.50 | L229: 32.86% | M229: Successful | N229: 2017-02-03
A230: 71 | B230: 2016-10-17 | D230: DCBBANK | E230: Accu | F230: 125.00 | H230: 160 | I230: 160.00 | J230: Target Achieved | K230: 35.00 | L230: 28.00% | M230: Successful | N230: 2017-03-09
A231: 72 | B231: 2016-10-17 | D231: ORIENTREF | E231: Accu | F231: 114.00 | H231: 145 | I231: 145.00 | J231: Target Achieved | K231: 31.00 | L231: =K231/F231 -> 27.19% | M231: Successful | N231: 2017-05-04
A232: 73 | B232: 2016-10-17 | D232: GANECOS | E232: Accu | F232: 212.00 | H232: 280 | I232: 276.00 | J232: Profit of Rs.68/- | K232: 68.00 | L232: =K232/F232 -> 32.08% | M232: Successful | N232: 2017-05-03
A233: 74 | B233: 2016-11-04 | D233: NBCC | E233: Accu | F233: 155.00 | H233: 210 | I233: 210.00 | J233: Profit of Rs.55/- | K233: 55.00 | L233: =K233/F233 -> 35.48% | M233: Successful | N233: 2017-07-28
A234: 75 | B234: 2016-12-06 | D234: PRECAM | E234: Accu | F234: 150.5 | H234: 72.50 | I234: 174.00 | J234: Loss of Rs.78/- | K234: -78.00 | L234: =K234/F234 -> -51.83% | M234: Unsuccessful | N234: 2018-08-21
A235: 76 | B235: 2016-12-08 | D235: INFRATEL | E235: Accu | F235: 380.00 | H235: 478 | I235: 468.00 | J235: Target Achieved | K235: 98.00 | L235: =K235/F235 -> 25.79% | M235: Successful | N235: 2017-10-17
A236: 77 | B236: 2016-12-30 | D236: GODREJPROP | E236: Accu | F236: 305.00 | H236: 375 | I236: 375.00 | J236: Target Achieved | K236: 70.00 | L236: 22.95% | M236: Successful | N236: 2017-02-02
A237: 78 | B237: 2017-01-04 | D237: DEEPAKNTR | E237: Accu | F237: 99.50 | H237: 158 | I237: 158.00 | J237: Target Achieved | K237: 58.50 | L237: 58.79% | M237: Successful | N237: 2017-06-12
A238: 79 | B238: 2017-02-20 | D238: SUBROS | E238: Accu | F238: 202.50 | H238: 234 | I238: 234.00 | J238: Target Achieved | K238: 31.50 | L238: 15.56% | M238: Successful | N238: 2017-04-11
A239: 80 | B239: 2017-02-20 | D239: RECLTD | E239: Accu | F239: 140.50 | H239: 220 | I239: 220.00 | J239: Target Achieved | K239: 79.50 | L239: 56.58% | M239: Successful | N239: 2017-05-09
A240: 81 | B240: 2017-03-24 | D240: VRLLOG | E240: Accu | F240: 300.50 | H240: 417.5 | I240: 420.00 | J240: Profit of Rs.117/- | K240: 117.00 | L240: 38.94% | M240: Successful | N240: 2017-12-01
A241: 82 | B241: 2017-03-24 | D241: FIEMIND | E241: Accu | F241: 850.00 | H241: 1042.5 | I241: 1023.00 | J241: Profit of Rs 192.50/- | K241: 192.50 | L241: 22.65% | M241: Successful | N241: 2017-04-05
A242: 83 | B242: 2017-04-05 | D242: RATNAMANI | E242: Accu | F242: 785.00 | H242: 930 | I242: 920.00 | J242: Profit of Rs.145/- | K242: 145.00 | L242: 18.47% | M242: Successful | N242: 2017-08-29
A243: 84 | B243: 2017-04-06 | D243: ZEEMEDIA | E243: Accu | F243: 39-41 | I243: 60.00 | J243: Open
A244: 85 | B244: 2017-04-12 | D244: DABUR | E244: Accu | F244: 289.50 | H244: 354 | I244: 360.00 | J244: Profit of Rs.64.5/- | K244: 64.50 | L244: =K244/F244 -> 22.28% | M244: Successful | N244: 2017-11-01
A245: 86 | B245: 2017-04-20 | D245: KPRMILL | E245: Accu | F245: 700.00 | H245: 840 | I245: 840.00 | J245: Profit of Rs.140/- | K245: 140.00 | L245: =K245/F245 -> 20.00% | M245: Successful | N245: 2017-06-07
A246: 87 | B246: 2017-05-22 | D246: GREAVESCOT | E246: Accu | F246: 153-158 | I246: 190.00 | J246: Open
A247: 88 | B247: 2017-06-01 | D247: ESSELPACK | E247: Accu | F247: 260 | H247: 311.00 | I247: 340.00 | J247: Part profit of Rs.51/- | K247: =H247-F247 -> 51.00 | L247: =K247/F247 -> 20% | M247: Successful | N247: 2017-11-17
A248: 89 | B248: 2017-06-15 | D248: KEI | E248: Accu | F248: 214.50 | H248: 262 | I248: 262.00 | J248: Profit of Rs.47.5/- | K248: =H248-F248 -> 47.50 | L248: 22.14% | M248: Successful | N248: 2017-08-30
A249: 90 | B249: 2017-07-17 | D249: MAYURUNIQ | E249: Accu | F249: 370.00 | H249: 447.5 | I249: 450.00 | J249: Target Achieved | K249: 77.50 | L249: 20.95% | M249: Successful | N249: 2017-10-27
A250: 91 | B250: 2017-07-27 | D250: RAMCOCEM | E250: Accu | F250: 657.50 | H250: 825 | I250: 820.00 | J250: Target Achieved | K250: 167.50 | L250: 25.48% | M250: Successful | N250: 2017-12-21
A251: 92 | B251: 2017-08-17 | D251: FINPIPE | E251: Accu | F251: 605.00 | H251: 750 | I251: 750.00 | J251: Profit of Rs.145/- | K251: 145.00 | L251: 23.97% | M251: Successful | N251: 2017-10-19
A252: 93 | B252: 2017-09-01 | D252: SHK | E252: Accu | F252: 255 | H252: 307.50 | I252: 320.00 | J252: Part profit of Rs.52.5/- | K252: 52.50 | L252: 21% | M252: Successful | N252: 2017-12-29
A253: 94 | B253: 2017-09-19 | D253: SKIPPER | E253: Accu | F253: 215.00 | H253: 258 | I253: 258.00 | J253: Target Achieved | K253: 43.00 | L253: 20.00% | M253: Successful | N253: 2017-11-01
A254: 95 | B254: 2017-09-20 | D254: CAMLINFINE | E254: Accu | F254: 75.00 | H254: 90 | I254: 90.00 | J254: Profit of Rs.15.00/- | K254: 15.00 | L254: 20.00% | M254: Successful | N254: 2017-10-11
A255: 96 | B255: 2017-10-03 | D255: GNA | E255: Accu | F255: 315.00 | H255: 392 | I255: 384.00 | J255: Profit of Rs.77/- | K255: 77.00 | L255: 24.44% | M255: Successful | N255: 2017-10-09
A256: 97 | B256: 2017-10-05 | D256: NOCIL | E256: Accu | F256: 145.00 | H256: 179 | I256: 180.00 | J256: Profit of Rs.34/- | K256: 34.00 | L256: 23.45% | M256: Successful | N256: 2017-10-17
A257: 98 | B257: 2017-10-06 | D257: CENTURYPLY | E257: Accu | F257: 256.00 | H257: 323 | I257: 320.00 | J257: Target Achieved | K257: 67.00 | L257: 26.17% | M257: Successful | N257: 2017-11-28
A258: 99 | B258: 2017-10-09 | D258: RECLTD | E258: Accu | F258: 152.5 | H258: 183.50 | I258: 210.00 | J258: Part Profit of Rs.31/- | K258: 31.00 | L258: 20% | M258: Successful | N258: 2017-11-03
A259: 100 | B259: 2017-10-09 | D259: EIHOTEL | E259: Accu | F259: 137.50 | H259: 184 | I259: 183.00 | J259: Profit of Rs.46.5/- | K259: 46.50 | L259: 33.82% | M259: Successful | N259: 2018-01-08
A260: 101 | B260: 2017-10-10 | D260: BOROSIL | E260: Accu | F260: 895.00 | H260: 1122.5 | I260: 1078.00 | J260: Profit of Rs.227.5/- | K260: 227.50 | L260: 25.42% | M260: Successful | N260: 2018-01-17
A261: 102 | B261: 2017-10-10 | D261: NRBBEARING | E261: Accu | F261: 125.50 | H261: 158 | I261: 155.00 | J261: Profit of Rs.32.5/- | K261: 32.50 | L261: 25.90% | M261: Successful | N261: 2017-11-28
A262: 103 | B262: 2017-10-12 | D262: CYIENT | E262: Accu | F262: 525.00 | H262: 629 | I262: 629.00 | J262: Target Achieved | K262: 104.00 | L262: 19.81% | M262: Successful | N262: 2018-01-19
A263: 104 | B263: 2017-11-07 | D263: HATSUN | E263: Accu | F263: 740.00 | H263: 892.5 | I263: 900.00 | J263: Profit of Rs.152.5/- | K263: 152.50 | L263: 20.61% | M263: Successful | N263: 2017-11-13
A264: 105 | B264: 2017-12-04 | D264: SANGHIIND | E264: Accu | F264: 118.50 | H264: 143.5 | I264: 145.00 | J264: Profit of Rs.25/- | K264: 25.00 | L264: 21.10% | M264: Successful | N264: 2017-12-28
A265: 106 | B265: 2017-12-05 | D265: ALLCARGO | E265: Accu | F265: 177.5 | H265: 215.00 | I265: 230.00 | J265: Part Profit of Rs.37.5/- | K265: 37.50 | L265: 21% | M265: Successful | N265: 2017-12-27
A266: 107 | B266: 2017-12-21 | D266: KAJARIACER | E266: Accu | F266: 710-720 | I266: 872.00 | J266: Open
A267: 108 | B267: 2017-12-29 | D267: GNA | E267: Accu | F267: 435.00 | H267: 542.5 | I267: 539.00 | J267: Target Achieved | K267: =H267-F267 -> 107.50 | L267: =K267/F267 -> 24.71% | M267: Successful | N267: 2018-04-16
A268: 109 | B268: 2017-12-29 | D268: ZENSARTECH | E268: Accu | F268: 885.00 | H268: 1090 | I268: 1084.00 | J268: Target Achieved | K268: 205.00 | L268: =K268/F268 -> 23.16% | M268: Successful | N268: 2018-04-23
A269: 110 | B269: 2018-02-07 | D269: GREAVESCOT | E269: Accu | F269: 130-132 | I269: 190.00 | J269: Open
A270: 111 | B270: 2018-02-27 | D270: MOLDTKPAC | E270: Accu | F270: 320-330 | I270: 398.00 | J270: Open
A271: 112 | B271: 2018-03-05 | D271: LICHSGFIN | E271: Accu | F271: 505-515 | I271: 672.00 | J271: Open
... 32 more rows

Sheet Sheet2 (hidden)
A1: SYMBOL | B1: SERIES | C1: OPEN | D1: HIGH | E1: LOW | F1: CLOSE | G1: LAST | H1: PREVCLOSE | I1: TOTTRDQTY | J1: TOTTRDVAL | K1: TIMESTAMP | L1: TOTALTRADES | M1: ISIN | N1: ISIN
A2: 20MICRONS | B2: EQ | C2: 42.75 | D2: 43 | E2: 42 | F2: 42.95 | G2: 43 | H2: 42.75 | I2: 17737 | J2: 759251.3 | K2: 2018-12-18 | L2: 248 | M2: INE144J01027
A3: 21STCENMGM | B3: EQ | C3: 23.75 | D3: 24.6 | E3: 23.75 | F3: 23.75 | G3: 23.75 | H3: 24.2 | I3: 293 | J3: 6963 | K3: 2018-12-18 | L3: 13 | M3: INE253B01015
A4: 3IINFOTECH | B4: EQ | C4: 3.6 | D4: 3.7 | E4: 3.55 | F4: 3.65 | G4: 3.65 | H4: 3.65 | I4: 854883 | J4: 3099212 | K4: 2018-12-18 | L4: 461 | M4: INE748C01020
A5: 3MINDIA | B5: EQ | C5: 22889.95 | D5: 23400 | E5: 22551 | F5: 22845.1 | G5: 22760 | H5: 22963.6 | I5: 1932 | J5: 44353028.4 | K5: 2018-12-18 | L5: 746 | M5: INE470A01017
A6: 3PLAND | B6: EQ | C6: 13 | D6: 13.05 | E6: 11.35 | F6: 13.05 | G6: 13.05 | H6: 11.05 | I6: 1615 | J6: 18877.5 | K6: 2018-12-18 | L6: 7 | M6: INE105C01023
A7: 5PAISA | B7: EQ | C7: 188.5 | D7: 200 | E7: 188.5 | F7: 195.2 | G7: 195.1 | H7: 196.75 | I7: 879 | J7: 171944.4 | K7: 2018-12-18 | L7: 100 | M7: INE618L01018
A8: 63MOONS | B8: EQ | C8: 93 | D8: 102.6 | E8: 92.5 | F8: 98.9 | G8: 99.1 | H8: 93.5 | I8: 1239210 | J8: 122634079.8 | K8: 2018-12-18 | L8: 12760 | M8: INE111B01023
A9: 8KMILES | B9: EQ | C9: 155 | D9: 164.9 | E9: 149.2 | F9: 164.9 | G9: 164.9 | H9: 157.05 | I9: 1752645 | J9: 275230280.6 | K9: 2018-12-18 | L9: 15334 | M9: INE650K01021
A10: A2ZINFRA | B10: EQ | C10: 12.75 | D10: 12.9 | E10: 12.35 | F10: 12.7 | G10: 12.75 | H10: 12.75 | I10: 206671 | J10: 2600208.2 | K10: 2018-12-18 | L10: 428 | M10: INE619I01012
A11: AARTIDRUGS | B11: EQ | C11: 565.55 | D11: 567.85 | E11: 560 | F11: 565.5 | G11: 565.15 | H11: 566.1 | I11: 10830 | J11: 6108000.85 | K11: 2018-12-18 | L11: 2298 | M11: INE767A01016
A12: AARTIIND | B12: EQ | C12: 1443.5 | D12: 1445 | E12: 1421 | F12: 1442.7 | G12: 1435 | H12: 1438.3 | I12: 31277 | J12: 44955034.4 | K12: 2018-12-18 | L12: 5720 | M12: INE769A01020
A13: AARVEEDEN | B13: EQ | C13: 24.75 | D13: 26.1 | E13: 24.5 | F13: 25.9 | G13: 26 | H13: 24.7 | I13: 16639 | J13: 428866.9 | K13: 2018-12-18 | L13: 83 | M13: INE273D01019
A14: AAVAS | B14: EQ | C14: 836.8 | D14: 844.8 | E14: 821 | F14: 835.7 | G14: 839.5 | H14: 839.95 | I14: 108114 | J14: 90722135.4 | K14: 2018-12-18 | L14: 7939 | M14: INE216P01012
A15: ABAN | B15: EQ | C15: 74.1 | D15: 74.3 | E15: 73 | F15: 73.75 | G15: 73.6 | H15: 73.8 | I15: 359235 | J15: 26427530.7 | K15: 2018-12-18 | L15: 3558 | M15: INE421A01028
A16: ABB | B16: EQ | C16: 1398.95 | D16: 1398.95 | E16: 1321.15 | F16: 1333.95 | G16: 1326.8 | H16: 1399.65 | I16: 546938 | J16: 746953526.9 | K16: 2018-12-18 | L16: 40475 | M16: INE117A01022
A17: ABBOTINDIA | B17: EQ | C17: 7648.8 | D17: 7650.05 | E17: 7490 | F17: 7504.5 | G17: 7500 | H17: 7580.9 | I17: 1470 | J17: 11045719.75 | K17: 2018-12-18 | L17: 597 | M17: INE358A01014
A18: ABCAPITAL | B18: EQ | C18: 99.25 | D18: 101.7 | E18: 98.65 | F18: 100.55 | G18: 100 | H18: 99.55 | I18: 2809829 | J18: 280696495.1 | K18: 2018-12-18 | L18: 12468 | M18: INE674K01013
A19: ABFRL | B19: EQ | C19: 199.9 | D19: 204.75 | E19: 199 | F19: 202.5 | G19: 202.6 | H19: 200 | I19: 1195739 | J19: 242511377.8 | K19: 2018-12-18 | L19: 20086 | M19: INE647O01011
A20: ACC | B20: EQ | C20: 1499.8 | D20: 1510 | E20: 1490.35 | F20: 1501.25 | G20: 1507.15 | H20: 1502 | I20: 360523 | J20: 541056582 | K20: 2018-12-18 | L20: 12176 | M20: INE012A01025
A21: ACCELYA | B21: EQ | C21: 959.15 | D21: 964 | E21: 950 | F21: 958.95 | G21: 952.9 | H21: 958.85 | I21: 887 | J21: 847899.95 | K21: 2018-12-18 | L21: 191 | M21: INE793A01012
A22: ACE | B22: EQ | C22: 92.95 | D22: 96.2 | E22: 91.75 | F22: 94.75 | G22: 94.25 | H22: 93.45 | I22: 128377 | J22: 12040213.1 | K22: 2018-12-18 | L22: 1961 | M22: INE731H01025
A23: ADANIENT | B23: EQ | C23: 157.7 | D23: 159.75 | E23: 156.2 | F23: 158.05 | G23: 158.1 | H23: 157.95 | I23: 1689582 | J23: 267182426.2 | K23: 2018-12-18 | L23: 10488 | M23: INE423A01024
A24: ADANIGAS | B24: EQ | C24: 99.1 | D24: 108.4 | E24: 98.4 | F24: 106.25 | G24: 106.55 | H24: 99.7 | I24: 3127798 | J24: 328743388.6 | K24: 2018-12-18 | L24: 22919 | M24: INE399L01023
A25: ADANIGREEN | B25: EQ | C25: 44.9 | D25: 46.8 | E25: 43.9 | F25: 44.25 | G25: 44.35 | H25: 44.65 | I25: 1217941 | J25: 54695701.85 | K25: 2018-12-18 | L25: 4547 | M25: INE364U01010
A26: ADANIPORTS | B26: EQ | C26: 369 | D26: 374.35 | E26: 365 | F26: 372.9 | G26: 374.35 | H26: 371.4 | I26: 2687027 | J26: 991619031.4 | K26: 2018-12-18 | L26: 42607 | M26: INE742F01042
A27: ADANIPOWER | B27: EQ | C27: 52.05 | D27: 53.2 | E27: 51.85 | F27: 52.8 | G27: 53.1 | H27: 52.9 | I27: 6914284 | J27: 362810529.1 | K27: 2018-12-18 | L27: 13766 | M27: INE814H01011
A28: ADANITRANS | B28: EQ | C28: 216.4 | D28: 223.25 | E28: 214.3 | F28: 218 | G28: 218.45 | H28: 216.2 | I28: 445988 | J28: 97784356.5 | K28: 2018-12-18 | L28: 9241 | M28: INE931S01010
A29: ADFFOODS | B29: EQ | C29: 272.95 | D29: 282.5 | E29: 269.05 | F29: 280.15 | G29: 279.4 | H29: 272 | I29: 129977 | J29: 36209890.05 | K29: 2018-12-18 | L29: 2953 | M29: INE982B01019
A30: ADHUNIK | B30: EQ | C30: 2.45 | D30: 2.45 | E30: 2.3 | F30: 2.35 | G30: 2.35 | H30: 2.4 | I30: 24334 | J30: 57256.7 | K30: 2018-12-18 | L30: 41 | M30: INE400H01019
A31: ADHUNIKIND | B31: EQ | C31: 50 | D31: 53 | E31: 45.8 | F31: 46.2 | G31: 46 | H31: 49.4 | I31: 44864 | J31: 2128386.4 | K31: 2018-12-18 | L31: 430 | M31: INE452L01012
A32: ADLABS | B32: EQ | C32: 11.1 | D32: 11.45 | E32: 11.05 | F32: 11.2 | G32: 11.15 | H32: 11.15 | I32: 89169 | J32: 1000205.35 | K32: 2018-12-18 | L32: 275 | M32: INE172N01012
A33: ADORWELD | B33: EQ | C33: 375 | D33: 444.8 | E33: 373.95 | F33: 412.5 | G33: 410 | H33: 376.95 | I33: 329907 | J33: 136453054.8 | K33: 2018-12-18 | L33: 11038 | M33: INE045A01017
A34: ADROITINFO | B34: EQ | C34: 18 | D34: 18.4 | E34: 17 | F34: 17.8 | G34: 17.8 | H34: 18 | I34: 4528 | J34: 80011.4 | K34: 2018-12-18 | L34: 33 | M34: INE737B01033
A35: ADSL | B35: EQ | C35: 14.25 | D35: 15.05 | E35: 14.2 | F35: 14.7 | G35: 14.55 | H35: 14.45 | I35: 14131 | J35: 207808.65 | K35: 2018-12-18 | L35: 73 | M35: INE102I01027
A36: ADVANIHOTR | B36: EQ | C36: 62.1 | D36: 68.85 | E36: 61.4 | F36: 65.45 | G36: 65.1 | H36: 62.1 | I36: 53467 | J36: 3490054.55 | K36: 2018-12-18 | L36: 700 | M36: INE199C01026
A37: ADVENZYMES | B37: EQ | C37: 177.05 | D37: 178.7 | E37: 176 | F37: 177.8 | G37: 177.5 | H37: 177.15 | I37: 16520 | J37: 2932623.65 | K37: 2018-12-18 | L37: 435 | M37: INE837H01020
A38: AEGISCHEM | B38: EQ | C38: 192.9 | D38: 194.5 | E38: 190.1 | F38: 190.3 | G38: 190.55 | H38: 194.25 | I38: 78172 | J38: 14988763.45 | K38: 2018-12-18 | L38: 3738 | M38: INE208C01025
A39: AGARIND | B39: EQ | C39: 175.85 | D39: 182.85 | E39: 175.8 | F39: 180.9 | G39: 182 | H39: 173.85 | I39: 1056 | J39: 189187 | K39: 2018-12-18 | L39: 72 | M39: INE204E01012
A40: AGCNET | B40: EQ | C40: 70.05 | D40: 71.95 | E40: 67.1 | F40: 69.7 | G40: 69.7 | H40: 71.05 | I40: 919 | J40: 63478.55 | K40: 2018-12-18 | L40: 53 | M40: INE676A01019
A41: AGLSL | B41: EQ | C41: 69.5 | D41: 70.15 | E41: 67.2 | F41: 68.4 | G41: 68 | H41: 67.35 | I41: 2298 | J41: 158469.95 | K41: 2018-12-18 | L41: 45 | M41: INE517U01013
A42: AGRITECH | B42: BE | C42: 62.05 | D42: 65.55 | E42: 62.05 | F42: 64.35 | G42: 64 | H42: 64.8 | I42: 3416 | J42: 219045.85 | K42: 2018-12-18 | L42: 80 | M42: INE449G01018
A43: AHLEAST | B43: EQ | C43: 248.35 | D43: 260 | E43: 241.05 | F43: 248.1 | G43: 249 | H43: 246 | I43: 1164 | J43: 289036.55 | K43: 2018-12-18 | L43: 262 | M43: INE926K01017
A44: AHLUCONT | B44: EQ | C44: 301.55 | D44: 323.8 | E44: 299.25 | F44: 317.35 | G44: 322.8 | H44: 296.65 | I44: 17338 | J44: 5388967.8 | K44: 2018-12-18 | L44: 835 | M44: INE758C01029
A45: AHLWEST | B45: EQ | C45: 308 | D45: 315 | E45: 295 | F45: 298.95 | G45: 296.6 | H45: 301.2 | I45: 1020 | J45: 312832.3 | K45: 2018-12-18 | L45: 51 | M45: INE915K01010
A46: AIAENG | B46: EQ | C46: 1621.6 | D46: 1640 | E46: 1606 | F46: 1638.5 | G46: 1630 | H46: 1621.6 | I46: 28199 | J46: 45715333.1 | K46: 2018-12-18 | L46: 2143 | M46: INE212H01026
A47: AIFL | B47: EQ | C47: 23.25 | D47: 24.55 | E47: 22.55 | F47: 24.55 | G47: 24.55 | H47: 23.4 | I47: 2780332 | J47: 66504672.25 | K47: 2018-12-18 | L47: 2242 | M47: INE428O01016
A48: AIONJSW | B48: EQ | C48: 35.75 | D48: 36.45 | E48: 35.75 | F48: 36.35 | G48: 36.4 | H48: 36.4 | I48: 34999 | J48: 1268291.9 | K48: 2018-12-18 | L48: 127 | M48: INE743C01021
A49: AJANTPHARM | B49: EQ | C49: 1103.6 | D49: 1122 | E49: 1080 | F49: 1117.9 | G49: 1115.75 | H49: 1111.2 | I49: 418309 | J49: 460898082 | K49: 2018-12-18 | L49: 16027 | M49: INE031B01049
A50: AJMERA | B50: EQ | C50: 142.7 | D50: 145.05 | E50: 140 | F50: 143.7 | G50: 144 | H50: 142.65 | I50: 28186 | J50: 4024121.7 | K50: 2018-12-18 | L50: 1354 | M50: INE298G01027
A51: AKSHARCHEM | B51: EQ | C51: 444.75 | D51: 447.4 | E51: 438.1 | F51: 438.95 | G51: 447.4 | H51: 441.35 | I51: 2140 | J51: 941309.35 | K51: 2018-12-18 | L51: 80 | M51: INE542B01011
A52: AKSHOPTFBR | B52: EQ | C52: 24.95 | D52: 25.8 | E52: 24.8 | F52: 25.2 | G52: 25.15 | H52: 25 | I52: 925128 | J52: 23347468.05 | K52: 2018-12-18 | L52: 2431 | M52: INE523B01011
A53: AKZOINDIA | B53: EQ | C53: 1594.2 | D53: 1597.45 | E53: 1580 | F53: 1591.85 | G53: 1594 | H53: 1596.85 | I53: 1569 | J53: 2496086.55 | K53: 2018-12-18 | L53: 206 | M53: INE133A01011
A54: ALANKIT | B54: EQ | C54: 25.65 | D54: 25.65 | E54: 23.75 | F54: 23.85 | G54: 23.8 | H54: 25.4 | I54: 395999 | J54: 9753723.15 | K54: 2018-12-18 | L54: 1590 | M54: INE914E01040
A55: ALBERTDAVD | B55: EQ | C55: 422.8 | D55: 424.25 | E55: 407.05 | F55: 424.25 | G55: 424.25 | H55: 404.05 | I55: 16819 | J55: 7023151.8 | K55: 2018-12-18 | L55: 620 | M55: INE155C01010
A56: ALBK | B56: EQ | C56: 45.5 | D56: 47.3 | E56: 45.2 | F56: 46.4 | G56: 46.35 | H56: 45.8 | I56: 4535097 | J56: 210611222.2 | K56: 2018-12-18 | L56: 14843 | M56: INE428A01015
A57: ALCHEM | B57: BE | C57: 1.85 | D57: 1.9 | E57: 1.85 | F57: 1.9 | G57: 1.9 | H57: 1.85 | I57: 4301 | J57: 8171.85 | K57: 2018-12-18 | L57: 18 | M57: INE964B01033
A58: ALEMBICLTD | B58: EQ | C58: 43.4 | D58: 45.65 | E58: 42.9 | F58: 44.9 | G58: 44.75 | H58: 43.3 | I58: 373385 | J58: 16693245.25 | K58: 2018-12-18 | L58: 2736 | M58: INE426A01027
A59: ALICON | B59: EQ | C59: 630.05 | D59: 635.75 | E59: 615 | F59: 632.75 | G59: 634 | H59: 632.1 | I59: 1839 | J59: 1159870.25 | K59: 2018-12-18 | L59: 120 | M59: INE062D01024
A60: ALKALI | B60: EQ | C60: 55.15 | D60: 57 | E60: 55.15 | F60: 56.2 | G60: 57 | H60: 56.35 | I60: 1202 | J60: 67687.2 | K60: 2018-12-18 | L60: 38 | M60: INE773I01017
A61: ALKEM | B61: EQ | C61: 1878.2 | D61: 1890 | E61: 1866 | F61: 1873 | G61: 1873.9 | H61: 1877.3 | I61: 34460 | J61: 64525890.75 | K61: 2018-12-18 | L61: 3609 | M61: INE540L01014
A62: ALKYLAMINE | B62: EQ | C62: 735.35 | D62: 746 | E62: 723.6 | F62: 745.5 | G62: 745.9 | H62: 744.2 | I62: 1275 | J62: 941953.7 | K62: 2018-12-18 | L62: 196 | M62: INE150B01021
A63: ALLCARGO | B63: EQ | C63: 107.2 | D63: 107.8 | E63: 105.95 | F63: 107.5 | G63: 107.5 | H63: 107.15 | I63: 48895 | J63: 5246348.3 | K63: 2018-12-18 | L63: 665 | M63: INE418H01029
A64: ALLSEC | B64: EQ | C64: 201.35 | D64: 206 | E64: 201.35 | F64: 203 | G64: 202.8 | H64: 203.7 | I64: 4922 | J64: 997208.95 | K64: 2018-12-18 | L64: 270 | M64: INE835G01018
A65: ALMONDZ | B65: EQ | C65: 23.45 | D65: 24.6 | E65: 22.35 | F65: 22.65 | G65: 22.5 | H65: 23.45 | I65: 2187 | J65: 50460 | K65: 2018-12-18 | L65: 50 | M65: INE326B01027
A66: ALOKTEXT | B66: EQ | C66: 3.4 | D66: 3.5 | E66: 3.4 | F66: 3.5 | G66: 3.45 | H66: 3.5 | I66: 2147133 | J66: 7420908.8 | K66: 2018-12-18 | L66: 627 | M66: INE270A01011
A67: ALPA | B67: EQ | C67: 25.4 | D67: 25.75 | E67: 24.25 | F67: 24.6 | G67: 24.45 | H67: 25 | I67: 9490 | J67: 234841.05 | K67: 2018-12-18 | L67: 81 | M67: INE385I01010
A68: ALPHAGEO | B68: EQ | C68: 484.25 | D68: 485 | E68: 468 | F68: 471.5 | G68: 470.55 | H68: 484.2 | I68: 2384 | J68: 1130246.65 | K68: 2018-12-18 | L68: 252 | M68: INE137C01018
A69: AMARAJABAT | B69: EQ | C69: 736 | D69: 748 | E69: 730.6 | F69: 734.15 | G69: 734.65 | H69: 737.6 | I69: 330220 | J69: 244433963 | K69: 2018-12-18 | L69: 10375 | M69: INE885A01032
A70: AMBER | B70: EQ | C70: 886.05 | D70: 892.95 | E70: 877.2 | F70: 880.45 | G70: 881 | H70: 885 | I70: 2668 | J70: 2357825.85 | K70: 2018-12-18 | L70: 193 | M70: INE371P01015
A71: AMBIKCO | B71: EQ | C71: 1195.8 | D71: 1199.9 | E71: 1184 | F71: 1194.05 | G71: 1185.55 | H71: 1195.25 | I71: 823 | J71: 981307.15 | K71: 2018-12-18 | L71: 159 | M71: INE540G01014
A72: AMBUJACEM | B72: EQ | C72: 219.25 | D72: 220.95 | E72: 218 | F72: 219.65 | G72: 220.5 | H72: 218.75 | I72: 1565567 | J72: 343185235.4 | K72: 2018-12-18 | L72: 14868 | M72: INE079A01024
A73: AMDIND | B73: EQ | C73: 20.65 | D73: 22.5 | E73: 20.5 | F73: 21.7 | G73: 22.15 | H73: 20.65 | I73: 26176 | J73: 571433.5 | K73: 2018-12-18 | L73: 99 | M73: INE005I01014
A74: AMJLAND | B74: EQ | C74: 20.85 | D74: 20.9 | E74: 20.35 | F74: 20.75 | G74: 20.35 | H74: 21.05 | I74: 5016 | J74: 104213.3 | K74: 2018-12-18 | L74: 50 | M74: INE606A01024
A75: AMRUTANJAN | B75: EQ | C75: 246.05 | D75: 248.45 | E75: 244.3 | F75: 247.55 | G75: 247.2 | H75: 245.45 | I75: 4627 | J75: 1141059.2 | K75: 2018-12-18 | L75: 223 | M75: INE098F01031
A76: ANANTRAJ | B76: EQ | C76: 34.2 | D76: 34.7 | E76: 33.9 | F76: 34.35 | G76: 34.3 | H76: 34.2 | I76: 241075 | J76: 8281190 | K76: 2018-12-18 | L76: 1268 | M76: INE242C01024
A77: ANDHRABANK | B77: EQ | C77: 28.45 | D77: 29.2 | E77: 28.15 | F77: 28.55 | G77: 28.45 | H77: 28.45 | I77: 1039168 | J77: 29880231.35 | K77: 2018-12-18 | L77: 3277 | M77: INE434A01013
A78: ANDHRACEMT | B78: EQ | C78: 6.1 | D78: 6.2 | E78: 5.95 | F78: 6.2 | G78: 6.2 | H78: 6 | I78: 39833 | J78: 242967.85 | K78: 2018-12-18 | L78: 95 | M78: INE666E01012
A79: ANDHRSUGAR | B79: EQ | C79: 331.05 | D79: 338 | E79: 322.3 | F79: 331.65 | G79: 333.9 | H79: 332.9 | I79: 25698 | J79: 8504084.25 | K79: 2018-12-18 | L79: 1123 | M79: INE715B01013
A80: ANGIND | B80: BE | C80: 1.35 | D80: 1.4 | E80: 1.3 | F80: 1.4 | G80: 1.4 | H80: 1.35 | I80: 11484 | J80: 15347.95 | K80: 2018-12-18 | L80: 38 | M80: INE017D01010
A81: ANIKINDS | B81: EQ | C81: 23.65 | D81: 24.6 | E81: 23.5 | F81: 23.95 | G81: 24 | H81: 23.7 | I81: 7860 | J81: 188364 | K81: 2018-12-18 | L81: 70 | M81: INE087B01017
A82: ANKITMETAL | B82: BE | C82: 0.5 | D82: 0.5 | E82: 0.45 | F82: 0.45 | G82: 0.5 | H82: 0.5 | I82: 9660 | J82: 4505.5 | K82: 2018-12-18 | L82: 19 | M82: INE106I01010
A83: ANSALAPI | B83: EQ | C83: 10.75 | D83: 11 | E83: 10.6 | F83: 10.8 | G83: 10.7 | H83: 10.8 | I83: 22066 | J83: 238904.55 | K83: 2018-12-18 | L83: 95 | M83: INE436A01026
A84: ANSALHSG | B84: EQ | C84: 10.6 | D84: 10.95 | E84: 10.4 | F84: 10.8 | G84: 10.85 | H84: 10.75 | I84: 14598 | J84: 157289.9 | K84: 2018-12-18 | L84: 127 | M84: INE880B01015
A85: ANTGRAPHIC | B85: BE | C85: 0.5 | D85: 0.5 | E85: 0.45 | F85: 0.5 | G85: 0.5 | H85: 0.5 | I85: 7959 | J85: 3793.5 | K85: 2018-12-18 | L85: 18 | M85: INE414B01021
A86: APARINDS | B86: EQ | C86: 638.95 | D86: 644.8 | E86: 620 | F86: 636.9 | G86: 638.75 | H86: 640.1 | I86: 15571 | J86: 9897111.75 | K86: 2018-12-18 | L86: 900 | M86: INE372A01015
A87: APCL | B87: EQ | C87: 124 | D87: 126.5 | E87: 123 | F87: 124.7 | G87: 125.5 | H87: 125.6 | I87: 870 | J87: 108261.05 | K87: 2018-12-18 | L87: 41 | M87: INE071F01012
A88: APCOTEXIND | B88: EQ | C88: 545.6 | D88: 545.6 | E88: 532.75 | F88: 535.25 | G88: 535 | H88: 541.35 | I88: 1003 | J88: 538126.5 | K88: 2018-12-18 | L88: 109 | M88: INE116A01024
A89: APEX | B89: EQ | C89: 371.9 | D89: 379.15 | E89: 364.2 | F89: 371.9 | G89: 372.8 | H89: 370.15 | I89: 93907 | J89: 34919012.5 | K89: 2018-12-18 | L89: 2846 | M89: INE346W01013
A90: APLAPOLLO | B90: EQ | C90: 1261 | D90: 1270 | E90: 1216.05 | F90: 1225.25 | G90: 1239 | H90: 1261.95 | I90: 10796 | J90: 13386055.15 | K90: 2018-12-18 | L90: 989 | M90: INE702C01019
A91: APLLTD | B91: EQ | C91: 600 | D91: 612.05 | E91: 596.55 | F91: 599.15 | G91: 596.6 | H91: 604.8 | I91: 13621 | J91: 8205888.3 | K91: 2018-12-18 | L91: 1075 | M91: INE901L01018
A92: APOLLO | B92: EQ | C92: 125.05 | D92: 129 | E92: 124.7 | F92: 126.3 | G92: 126.95 | H92: 125.95 | I92: 10269 | J92: 1305674 | K92: 2018-12-18 | L92: 354 | M92: INE713T01010
A93: APOLLOHOSP | B93: EQ | C93: 1219 | D93: 1228 | E93: 1200 | F93: 1226.1 | G93: 1225.5 | H93: 1217.05 | I93: 454828 | J93: 552298617 | K93: 2018-12-18 | L93: 27764 | M93: INE437A01024
A94: APOLLOTYRE | B94: EQ | C94: 234.7 | D94: 242.3 | E94: 233.2 | F94: 235.55 | G94: 235.4 | H94: 234.8 | I94: 4136850 | J94: 980595333.3 | K94: 2018-12-18 | L94: 36824 | M94: INE438A01022
A95: APOLSINHOT | B95: EQ | C95: 785.05 | D95: 820 | E95: 761.1 | F95: 799.4 | G95: 795.1 | H95: 788.8 | I95: 1009 | J95: 814268.15 | K95: 2018-12-18 | L95: 116 | M95: INE451F01024
A96: APTECHT | B96: EQ | C96: 181.75 | D96: 186.6 | E96: 181 | F96: 184.7 | G96: 184.95 | H96: 183.2 | I96: 256176 | J96: 47053296.2 | K96: 2018-12-18 | L96: 4585 | M96: INE266F01018
A97: ARCHIDPLY | B97: EQ | C97: 39.95 | D97: 40.45 | E97: 39 | F97: 39.45 | G97: 39.35 | H97: 39.3 | I97: 16709 | J97: 659278 | K97: 2018-12-18 | L97: 206 | M97: INE877I01016
A98: ARCHIES | B98: EQ | C98: 32.45 | D98: 35.4 | E98: 31.8 | F98: 34.2 | G98: 34.4 | H98: 32.55 | I98: 307390 | J98: 10357661.3 | K98: 2018-12-18 | L98: 1518 | M98: INE731A01020
A99: ARCOTECH | B99: EQ | C99: 7.1 | D99: 7.4 | E99: 7.05 | F99: 7.35 | G99: 7.4 | H99: 7.05 | I99: 86166 | J99: 630712.45 | K99: 2018-12-18 | L99: 272 | M99: INE574I01035
A100: ARENTERP | B100: BE | C100: 13.3 | D100: 13.3 | E100: 13.3 | F100: 13.3 | G100: 13.3 | H100: 14 | I100: 4 | J100: 53.2 | K100: 2018-12-18 | L100: 1 | M100: INE610C01014
A101: ARIES | B101: EQ | C101: 98.4 | D101: 99.5 | E101: 95.05 | F101: 98.45 | G101: 98.45 | H101: 97.55 | I101: 20352 | J101: 1984918.35 | K101: 2018-12-18 | L101: 445 | M101: INE298I01015
A102: ARIHANT | B102: EQ | C102: 32.4 | D102: 33.95 | E102: 30.3 | F102: 31.5 | G102: 31.5 | H102: 32 | I102: 2576 | J102: 81302.55 | K102: 2018-12-18 | L102: 52 | M102: INE413D01011
A103: ARIHANTSUP | B103: EQ | C103: 59.7 | D103: 59.7 | E103: 54.6 | F103: 57.9 | G103: 58.2 | H103: 57.25 | I103: 21220 | J103: 1228617.25 | K103: 2018-12-18 | L103: 441 | M103: INE643K01018
A104: ARMANFIN | B104: EQ | C104: 394.85 | D104: 394.85 | E104: 383 | F104: 387.55 | G104: 387.5 | H104: 394 | I104: 1105 | J104: 430733.45 | K104: 2018-12-18 | L104: 59 | M104: INE109C01017
A105: AROGRANITE | B105: EQ | C105: 52.5 | D105: 54 | E105: 52.05 | F105: 52.55 | G105: 52.55 | H105: 53.35 | I105: 2761 | J105: 145548.05 | K105: 2018-12-18 | L105: 69 | M105: INE210C01013
A106: ARROWGREEN | B106: EQ | C106: 83.85 | D106: 88.5 | E106: 83.8 | F106: 86.15 | G106: 87 | H106: 84.25 | I106: 12248 | J106: 1060006.9 | K106: 2018-12-18 | L106: 324 | M106: INE570D01018
A107: ARROWTEX | B107: EQ | C107: 23.8 | D107: 24.9 | E107: 23.55 | F107: 23.75 | G107: 23.75 | H107: 23.85 | I107: 4429 | J107: 105178.85 | K107: 2018-12-18 | L107: 67 | M107: INE933J01015
A108: ARSHIYA | B108: EQ | C108: 31.95 | D108: 31.95 | E108: 28.4 | F108: 29.25 | G108: 29.2 | H108: 31.95 | I108: 153497 | J108: 4576172.2 | K108: 2018-12-18 | L108: 951 | M108: INE968D01022
A109: ARSSINFRA | B109: BE | C109: 27.65 | D109: 28.5 | E109: 26.9 | F109: 28.15 | G109: 28.15 | H109: 27.65 | I109: 3612 | J109: 98156.35 | K109: 2018-12-18 | L109: 24 | M109: INE267I01010
A110: ARVIND | B110: EQ | C110: 99 | D110: 100.05 | E110: 97.5 | F110: 98.25 | G110: 98.4 | H110: 98.95 | I110: 4257935 | J110: 419392438.9 | K110: 2018-12-18 | L110: 25165 | M110: INE034A01011
A111: ARVSMART | B111: EQ | C111: 108.35 | D111: 111.9 | E111: 106.5 | F111: 109.05 | G111: 109.75 | H111: 107.2 | I111: 7462 | J111: 819330.65 | K111: 2018-12-18 | L111: 426 | M111: INE034S01021
A112: ASAHIINDIA | B112: EQ | C112: 249.15 | D112: 254 | E112: 247.55 | F112: 250.2 | G112: 250 | H112: 248.7 | I112: 33398 | J112: 8360606.75 | K112: 2018-12-18 | L112: 524 | M112: INE439A01020
A113: ASAHISONG | B113: EQ | C113: 217 | D113: 217.95 | E113: 213 | F113: 216.4 | G113: 216.6 | H113: 214.05 | I113: 1089 | J113: 234876.25 | K113: 2018-12-18 | L113: 60 | M113: INE228I01012
A114: ASAL | B114: EQ | C114: 55.9 | D114: 61.6 | E114: 55.7 | F114: 60.1 | G114: 60 | H114: 56.05 | I114: 20097 | J114: 1184973.45 | K114: 2018-12-18 | L114: 224 | M114: INE900C01027
A115: ASHAPURMIN | B115: EQ | C115: 30.9 | D115: 32.2 | E115: 29.8 | F115: 31.9 | G115: 31.8 | H115: 30.65 | I115: 141033 | J115: 4443129.15 | K115: 2018-12-18 | L115: 1242 | M115: INE348A01023
A116: ASHIANA | B116: EQ | C116: 118 | D116: 119.9 | E116: 116.6 | F116: 117.3 | G116: 116.6 | H116: 117.9 | I116: 17540 | J116: 2071434.65 | K116: 2018-12-18 | L116: 350 | M116: INE365D01021
A117: ASHIMASYN | B117: EQ | C117: 14.15 | D117: 15.05 | E117: 14.1 | F117: 14.55 | G117: 14.6 | H117: 14.35 | I117: 107816 | J117: 1581676.05 | K117: 2018-12-18 | L117: 575 | M117: INE440A01010
A118: ASHOKA | B118: EQ | C118: 134.35 | D118: 137.95 | E118: 130.8 | F118: 131.6 | G118: 131.1 | H118: 127.6 | I118: 1029211 | J118: 137065895.8 | K118: 2018-12-18 | L118: 18990 | M118: INE442H01029
A119: ASHOKLEY | B119: EQ | C119: 105.4 | D119: 105.8 | E119: 104 | F119: 104.8 | G119: 104.75 | H119: 106 | I119: 10904597 | J119: 1142982530 | K119: 2018-12-18 | L119: 41378 | M119: INE208A01029
A120: ASIANHOTNR | B120: EQ | C120: 150.95 | D120: 154 | E120: 144.2 | F120: 149.3 | G120: 149.3 | H120: 148.25 | I120: 786 | J120: 116955.9 | K120: 2018-12-18 | L120: 30 | M120: INE363A01022
A121: ASIANPAINT | B121: EQ | C121: 1338.45 | D121: 1361 | E121: 1327.55 | F121: 1355.7 | G121: 1360.4 | H121: 1335.85 | I121: 1581385 | J121: 2124233940 | K121: 2018-12-18 | L121: 41443 | M121: INE021A01026
A122: ASIANTILES | B122: EQ | C122: 187 | D122: 189 | E122: 182.6 | F122: 187.55 | G122: 186.3 | H122: 187.15 | I122: 60393 | J122: 11274274.85 | K122: 2018-12-18 | L122: 4942 | M122: INE022I01019
A123: ASPINWALL | B123: EQ | C123: 176 | D123: 176 | E123: 172.1 | F123: 173.3 | G123: 172.1 | H123: 177.95 | I123: 83 | J123: 14533.8 | K123: 2018-12-18 | L123: 14 | M123: INE991I01015
A124: ASSAMCO | B124: BE | C124: 2.35 | D124: 2.45 | E124: 2.3 | F124: 2.3 | G124: 2.3 | H124: 2.4 | I124: 178397 | J124: 415642.75 | K124: 2018-12-18 | L124: 184 | M124: INE442A01024
A125: ASTEC | B125: EQ | C125: 520.55 | D125: 523.05 | E125: 516.85 | F125: 519.85 | G125: 518.85 | H125: 518.7 | I125: 5626 | J125: 2923828.05 | K125: 2018-12-18 | L125: 331 | M125: INE563J01010
A126: ASTERDM | B126: EQ | C126: 153.5 | D126: 154.65 | E126: 149 | F126: 149.8 | G126: 149.85 | H126: 151.6 | I126: 138772 | J126: 21008882.15 | K126: 2018-12-18 | L126: 1483 | M126: INE914M01019
A127: ASTRAL | B127: EQ | C127: 1055 | D127: 1070 | E127: 1047.05 | F127: 1067.45 | G127: 1062.65 | H127: 1060.5 | I127: 17889 | J127: 18966541.3 | K127: 2018-12-18 | L127: 2070 | M127: INE006I01046
A128: ASTRAMICRO | B128: EQ | C128: 79 | D128: 79.15 | E128: 77.8 | F128: 78.05 | G128: 77.8 | H128: 78.45 | I128: 109600 | J128: 8588428.85 | K128: 2018-12-18 | L128: 1054 | M128: INE386C01029
A129: ASTRAZEN | B129: EQ | C129: 1391.7 | D129: 1458 | E129: 1390 | F129: 1448.85 | G129: 1450 | H129: 1400.25 | I129: 15102 | J129: 21643051 | K129: 2018-12-18 | L129: 1066 | M129: INE203A01020
A130: ASTRON | B130: EQ | C130: 109.55 | D130: 110.85 | E130: 109.5 | F130: 110.2 | G130: 110.85 | H130: 110.55 | I130: 28004 | J130: 3086652.6 | K130: 2018-12-18 | L130: 352 | M130: INE646X01014
A131: ATFL | B131: EQ | C131: 590.05 | D131: 605.85 | E131: 577.55 | F131: 592.5 | G131: 590.15 | H131: 592.25 | I131: 5876 | J131: 3480289.45 | K131: 2018-12-18 | L131: 567 | M131: INE209A01019
A132: ATLANTA | B132: EQ | C132: 23.75 | D132: 24.4 | E132: 23.15 | F132: 23.75 | G132: 23.75 | H132: 23.75 | I132: 142794 | J132: 3360434.25 | K132: 2018-12-18 | L132: 5058 | M132: INE285H01022
A133: ATLASCYCLE | B133: BE | C133: 78.55 | D133: 82.5 | E133: 78.55 | F133: 81.9 | G133: 82.5 | H133: 80.75 | I133: 3096 | J133: 248413.3 | K133: 2018-12-18 | L133: 58 | M133: INE446A01025
A134: ATUL | B134: EQ | C134: 3415 | D134: 3415 | E134: 3372.65 | F134: 3399.4 | G134: 3400 | H134: 3369.85 | I134: 5470 | J134: 18553707.95 | K134: 2018-12-18 | L134: 928 | M134: INE100A01010
A135: ATULAUTO | B135: EQ | C135: 303.05 | D135: 304 | E135: 297.5 | F135: 298.8 | G135: 298.9 | H135: 302.65 | I135: 12163 | J135: 3662364 | K135: 2018-12-18 | L135: 971 | M135: INE951D01028
A136: AUBANK | B136: EQ | C136: 639.95 | D136: 652.9 | E136: 633.7 | F136: 640.4 | G136: 638.65 | H136: 639.2 | I136: 468250 | J136: 301866602.6 | K136: 2018-12-18 | L136: 32166 | M136: INE949L01017
A137: AURIONPRO | B137: EQ | C137: 126.7 | D137: 131.3 | E137: 125 | F137: 127.05 | G137: 129.35 | H137: 125.25 | I137: 41502 | J137: 5330315.75 | K137: 2018-12-18 | L137: 1012 | M137: INE132H01018
A138: AUROPHARMA | B138: EQ | C138: 740 | D138: 741.5 | E138: 729.4 | F138: 735.7 | G138: 735 | H138: 745.65 | I138: 2089344 | J138: 1537069584 | K138: 2018-12-18 | L138: 54106 | M138: INE406A01037
A139: AUSOMENT | B139: EQ | C139: 44.95 | D139: 44.95 | E139: 42.3 | F139: 42.6 | G139: 42.55 | H139: 43.15 | I139: 3566 | J139: 154210.95 | K139: 2018-12-18 | L139: 115 | M139: INE218C01016
A140: AUTOAXLES | B140: EQ | C140: 1374 | D140: 1392 | E140: 1341.1 | F140: 1384.9 | G140: 1382 | H140: 1371.65 | I140: 13689 | J140: 18722117.4 | K140: 2018-12-18 | L140: 1279 | M140: INE449A01011
A141: AUTOIND | B141: EQ | C141: 62.85 | D141: 62.9 | E141: 60.1 | F141: 60.5 | G141: 60.5 | H141: 61.15 | I141: 12204 | J141: 748058 | K141: 2018-12-18 | L141: 194 | M141: INE718H01014
A142: AUTOLITIND | B142: EQ | C142: 41.45 | D142: 42.5 | E142: 41.35 | F142: 42.1 | G142: 42.1 | H142: 41.45 | I142: 3378 | J142: 142294.4 | K142: 2018-12-18 | L142: 57 | M142: INE448A01013
A143: AVADHSUGAR | B143: EQ | C143: 381.9 | D143: 384 | E143: 375.55 | F143: 378 | G143: 379.5 | H143: 381.4 | I143: 6925 | J143: 2626927.5 | K143: 2018-12-18 | L143: 439 | M143: INE349W01017
A144: AVANTIFEED | B144: EQ | C144: 386 | D144: 399.75 | E144: 380.05 | F144: 391.5 | G144: 391.5 | H144: 386.1 | I144: 727358 | J144: 285857922.7 | K144: 2018-12-18 | L144: 18541 | M144: INE871C01038
A145: AVTNPL | B145: EQ | C145: 27.4 | D145: 28 | E145: 26.2 | F145: 26.65 | G145: 26.7 | H145: 27.2 | I145: 41638 | J145: 1118135.75 | K145: 2018-12-18 | L145: 245 | M145: INE488D01021
A146: AXISBANK | B146: EQ | C146: 617.65 | D146: 621.8 | E146: 613.85 | F146: 619.4 | G146: 618.8 | H146: 617.15 | I146: 8492688 | J146: 5251635398 | K146: 2018-12-18 | L146: 102617 | M146: INE238A01034
A147: AXISCADES | B147: EQ | C147: 86.4 | D147: 91.6 | E147: 86 | F147: 89.8 | G147: 89.95 | H147: 86.75 | I147: 236537 | J147: 21237277.55 | K147: 2018-12-18 | L147: 3761 | M147: INE555B01013
A148: AXISGOLD | B148: EQ | C148: 2785 | D148: 2785 | E148: 2745.5 | F148: 2755 | G148: 2755 | H148: 2750 | I148: 64 | J148: 176264.35 | K148: 2018-12-18 | L148: 18 | M148: INF846K01347
A149: AXISNIFTY | B149: EQ | C149: 1107.24 | D149: 1107.24 | E149: 1099.85 | F149: 1100.35 | G149: 1100.35 | H149: 1103.55 | I149: 184 | J149: 202392.79 | K149: 2018-12-18 | L149: 3 | M149: INF846K01ZL0
A150: AYMSYNTEX | B150: EQ | C150: 40.25 | D150: 42.35 | E150: 39.6 | F150: 41 | G150: 41 | H150: 40.85 | I150: 20080 | J150: 817589.6 | K150: 2018-12-18 | L150: 216 | M150: INE193B01039
A151: BAFNAPHARM | B151: EQ | C151: 12.35 | D151: 12.8 | E151: 12 | F151: 12.5 | G151: 12.5 | H151: 12.55 | I151: 5229 | J151: 64885.1 | K151: 2018-12-18 | L151: 48 | M151: INE878I01014
A152: BAGFILMS | B152: EQ | C152: 5 | D152: 5 | E152: 4.9 | F152: 4.95 | G152: 5 | H152: 4.95 | I152: 64147 | J152: 317592.1 | K152: 2018-12-18 | L152: 132 | M152: INE116D01028
A153: BAJAJ-AUTO | B153: EQ | C153: 2840 | D153: 2873.8 | E153: 2822.05 | F153: 2840.9 | G153: 2835.8 | H153: 2840.95 | I153: 443162 | J153: 1260805584 | K153: 2018-12-18 | L153: 38467 | M153: INE917I01010
A154: BAJAJCORP | B154: EQ | C154: 361.55 | D154: 363 | E154: 359.05 | F154: 362.7 | G154: 362.85 | H154: 362.85 | I154: 7693 | J154: 2783689.6 | K154: 2018-12-18 | L154: 396 | M154: INE933K01021
A155: BAJAJELEC | B155: EQ | C155: 508.8 | D155: 515.95 | E155: 502.15 | F155: 509.8 | G155: 508.5 | H155: 509.4 | I155: 130090 | J155: 66381057.95 | K155: 2018-12-18 | L155: 5613 | M155: INE193E01025
A156: BAJAJFINSV | B156: EQ | C156: 6090 | D156: 6165 | E156: 6076.7 | F156: 6152.65 | G156: 6138.5 | H156: 6087.8 | I156: 151411 | J156: 928790780.2 | K156: 2018-12-18 | L156: 16173 | M156: INE918I01018
A157: BAJAJHIND | B157: EQ | C157: 9.1 | D157: 9.15 | E157: 8.95 | F157: 9 | G157: 9 | H157: 9.15 | I157: 1935172 | J157: 17465110.55 | K157: 2018-12-18 | L157: 2192 | M157: INE306A01021
A158: BAJAJHLDNG | B158: EQ | C158: 2949.95 | D158: 2949.95 | E158: 2911 | F158: 2919.9 | G158: 2923.95 | H158: 2959.75 | I158: 10883 | J158: 31804297.9 | K158: 2018-12-18 | L158: 1833 | M158: INE118A01012
A159: BAJFINANCE | B159: EQ | C159: 2469.7 | D159: 2538.2 | E159: 2446.6 | F159: 2532.2 | G159: 2533 | H159: 2474.4 | I159: 1653107 | J159: 4133359893 | K159: 2018-12-18 | L159: 69881 | M159: INE296A01024
A160: BALAJITELE | B160: EQ | C160: 91.95 | D160: 92.3 | E160: 90.35 | F160: 91.15 | G160: 91.45 | H160: 91.95 | I160: 16372 | J160: 1494872.1 | K160: 2018-12-18 | L160: 992 | M160: INE794B01026
A161: BALAMINES | B161: EQ | C161: 445.35 | D161: 459 | E161: 445.35 | F161: 457.25 | G161: 459 | H161: 448.05 | I161: 7802 | J161: 3552793.6 | K161: 2018-12-18 | L161: 537 | M161: INE050E01027
A162: BALKRISHNA | B162: EQ | C162: 52.7 | D162: 52.75 | E162: 50.6 | F162: 51.5 | G162: 51.1 | H162: 51.75 | I162: 4328 | J162: 223499.95 | K162: 2018-12-18 | L162: 217 | M162: INE875R01011
A163: BALKRISIND | B163: EQ | C163: 931.5 | D163: 941.2 | E163: 923.1 | F163: 927.55 | G163: 926 | H163: 931.5 | I163: 507105 | J163: 472938404.4 | K163: 2018-12-18 | L163: 12459 | M163: INE787D01026
A164: BALLARPUR | B164: EQ | C164: 5.4 | D164: 5.55 | E164: 5.25 | F164: 5.45 | G164: 5.5 | H164: 5.4 | I164: 278600 | J164: 1514652.1 | K164: 2018-12-18 | L164: 332 | M164: INE294A01037
A165: BALMLAWRIE | B165: EQ | C165: 205.7 | D165: 207.7 | E165: 201 | F165: 202.7 | G165: 202.85 | H165: 208.5 | I165: 156673 | J165: 32011556.15 | K165: 2018-12-18 | L165: 3495 | M165: INE164A01016
A166: BALPHARMA | B166: EQ | C166: 80.15 | D166: 81 | E166: 80 | F166: 80.25 | G166: 80.35 | H166: 80.95 | I166: 7489 | J166: 602105.75 | K166: 2018-12-18 | L166: 182 | M166: INE083D01012
A167: BALRAMCHIN | B167: EQ | C167: 105 | D167: 105.75 | E167: 102.6 | F167: 103.2 | G167: 103 | H167: 105.75 | I167: 1082339 | J167: 112143374 | K167: 2018-12-18 | L167: 7503 | M167: INE119A01028
A168: BANARBEADS | B168: EQ | C168: 45.05 | D168: 46.4 | E168: 45.05 | F168: 45.4 | G168: 45.4 | H168: 44.65 | I168: 645 | J168: 29253.5 | K168: 2018-12-18 | L168: 9 | M168: INE655B01011
A169: BANARISUG | B169: EQ | C169: 1525 | D169: 1525 | E169: 1487 | F169: 1491.1 | G169: 1487 | H169: 1519.65 | I169: 212 | J169: 319599.15 | K169: 2018-12-18 | L169: 81 | M169: INE459A01010
A170: BANCOINDIA | B170: EQ | C170: 171.55 | D170: 176.95 | E170: 171 | F170: 174.8 | G170: 176.45 | H170: 171.9 | I170: 26448 | J170: 4583962.4 | K170: 2018-12-18 | L170: 722 | M170: INE213C01025
A171: BANDHANBNK | B171: EQ | C171: 568 | D171: 583.7 | E171: 560 | F171: 571.5 | G171: 568.05 | H171: 564.45 | I171: 1701394 | J171: 974645316.8 | K171: 2018-12-18 | L171: 48599 | M171: INE545U01014
A172: BANG | B172: EQ | C172: 56.9 | D172: 63.4 | E172: 56.85 | F172: 59.05 | G172: 57.95 | H172: 57.65 | I172: 348480 | J172: 21051445 | K172: 2018-12-18 | L172: 2331 | M172: INE863I01016
A173: BANKBARODA | B173: EQ | C173: 111.1 | D173: 113.9 | E173: 110 | F173: 112.45 | G173: 112.35 | H173: 111.8 | I173: 10915321 | J173: 1230336670 | K173: 2018-12-18 | L173: 39107 | M173: INE028A01039
A174: BANKBEES | B174: EQ | C174: 2732.5 | D174: 2765 | E174: 2732.5 | F174: 2759.52 | G174: 2764.1 | H174: 2744.76 | I174: 2053 | J174: 5653051.28 | K174: 2018-12-18 | L174: 234 | M174: INF732E01078
A175: BANKINDIA | B175: EQ | C175: 87.75 | D175: 92.1 | E175: 87.7 | F175: 91.45 | G175: 91.4 | H175: 88.45 | I175: 13811770 | J175: 1255289579 | K175: 2018-12-18 | L175: 42264 | M175: INE084A01016
A176: BANSWRAS | B176: EQ | C176: 83.3 | D176: 83.4 | E176: 82 | F176: 82.05 | G176: 82 | H176: 83.3 | I176: 3024 | J176: 248555.7 | K176: 2018-12-18 | L176: 27 | M176: INE629D01012
A177: BARTRONICS | B177: EQ | C177: 7.3 | D177: 7.4 | E177: 7.25 | F177: 7.3 | G177: 7.25 | H177: 7.25 | I177: 4591 | J177: 33605.85 | K177: 2018-12-18 | L177: 31 | M177: INE855F01034
A178: BASF | B178: EQ | C178: 1568.9 | D178: 1605 | E178: 1555.05 | F178: 1589.2 | G178: 1602 | H178: 1568.7 | I178: 4919 | J178: 7779145.45 | K178: 2018-12-18 | L178: 747 | M178: INE373A01013
A179: BASML | B179: EQ | C179: 203.2 | D179: 203.25 | E179: 200 | F179: 202 | G179: 200 | H179: 209.6 | I179: 237 | J179: 47968.5 | K179: 2018-12-18 | L179: 15 | M179: INE186H01014
A180: BATAINDIA | B180: EQ | C180: 1082.25 | D180: 1102.7 | E180: 1082.25 | F180: 1098.15 | G180: 1096.4 | H180: 1092.4 | I180: 638077 | J180: 696948985.8 | K180: 2018-12-18 | L180: 23214 | M180: INE176A01028
A181: BAYERCROP | B181: EQ | C181: 4183.65 | D181: 4287.9 | E181: 4120 | F181: 4241.6 | G181: 4278 | H181: 4212.8 | I181: 4886 | J181: 20543840.3 | K181: 2018-12-18 | L181: 1697 | M181: INE462A01022
A182: BBL | B182: EQ | C182: 1136.45 | D182: 1164 | E182: 1136.4 | F182: 1160.1 | G182: 1153.1 | H182: 1140.3 | I182: 4987 | J182: 5750648.05 | K182: 2018-12-18 | L182: 609 | M182: INE464A01028
A183: BBTC | B183: EQ | C183: 1332 | D183: 1375 | E183: 1321.15 | F183: 1362.9 | G183: 1365 | H183: 1337.35 | I183: 87895 | J183: 118597621.2 | K183: 2018-12-18 | L183: 4905 | M183: INE050A01025
A184: BCG | B184: EQ | C184: 3 | D184: 3.05 | E184: 2.9 | F184: 2.9 | G184: 2.9 | H184: 2.95 | I184: 683217 | J184: 2023273.05 | K184: 2018-12-18 | L184: 399 | M184: INE425B01027
A185: BDL | B185: EQ | C185: 284 | D185: 284.65 | E185: 279 | F185: 282.7 | G185: 281.75 | H185: 282.15 | I185: 8608 | J185: 2423054.1 | K185: 2018-12-18 | L185: 1122 | M185: INE171Z01018
A186: BEARDSELL | B186: EQ | C186: 24.5 | D186: 24.95 | E186: 23.5 | F186: 23.85 | G186: 23.5 | H186: 24.65 | I186: 4467 | J186: 107530.85 | K186: 2018-12-18 | L186: 36 | M186: INE520H01022
A187: BEDMUTHA | B187: BE | C187: 20.25 | D187: 21.25 | E187: 20.25 | F187: 21 | G187: 21 | H187: 20.95 | I187: 1287 | J187: 26392.45 | K187: 2018-12-18 | L187: 8 | M187: INE844K01012
A188: BEL | B188: EQ | C188: 83.3 | D188: 84.6 | E188: 82.85 | F188: 84.35 | G188: 84.25 | H188: 83.75 | I188: 8960701 | J188: 750842403.1 | K188: 2018-12-18 | L188: 40360 | M188: INE263A01024
A189: BEML | B189: EQ | C189: 846.8 | D189: 864 | E189: 837.85 | F189: 855.55 | G189: 852 | H189: 846.4 | I189: 5419050 | J189: 4634730104 | K189: 2018-12-18 | L189: 90786 | M189: INE258A01016
A190: BEPL | B190: EQ | C190: 70.9 | D190: 74.6 | E190: 70.1 | F190: 73.65 | G190: 73.9 | H190: 71.25 | I190: 406541 | J190: 29524642.9 | K190: 2018-12-18 | L190: 4567 | M190: INE922A01025
A191: BERGEPAINT | B191: EQ | C191: 323 | D191: 329.6 | E191: 320.25 | F191: 328.5 | G191: 328.55 | H191: 323.05 | I191: 1620170 | J191: 528263705.1 | K191: 2018-12-18 | L191: 32206 | M191: INE463A01038
A192: BFINVEST | B192: EQ | C192: 249.4 | D192: 256 | E192: 249.4 | F192: 251.45 | G192: 250.55 | H192: 246.6 | I192: 136199 | J192: 34363442.9 | K192: 2018-12-18 | L192: 3190 | M192: INE878K01010
A193: BFUTILITIE | B193: EQ | C193: 212.1 | D193: 217.5 | E193: 210.55 | F193: 213.7 | G193: 213.25 | H193: 208.7 | I193: 476100 | J193: 101845469.3 | K193: 2018-12-18 | L193: 8376 | M193: INE243D01012
A194: BGLOBAL | B194: BE | C194: 2.7 | D194: 2.8 | E194: 2.65 | F194: 2.8 | G194: 2.8 | H194: 2.7 | I194: 7892 | J194: 22055.5 | K194: 2018-12-18 | L194: 14 | M194: INE224M01013
A195: BGRENERGY | B195: EQ | C195: 62.3 | D195: 63.5 | E195: 61.2 | F195: 62.15 | G195: 62.05 | H195: 62.35 | I195: 117479 | J195: 7325644.55 | K195: 2018-12-18 | L195: 1293 | M195: INE661I01014
A196: BHAGERIA | B196: EQ | C196: 293.8 | D196: 293.8 | E196: 282.3 | F196: 291.9 | G196: 293 | H196: 290.25 | I196: 2236 | J196: 645757.25 | K196: 2018-12-18 | L196: 205 | M196: INE354C01027
A197: BHAGYANGR | B197: EQ | C197: 30.55 | D197: 30.55 | E197: 28.4 | F197: 28.95 | G197: 28.9 | H197: 28.8 | I197: 2677 | J197: 77473.3 | K197: 2018-12-18 | L197: 61 | M197: INE458B01036
A198: BHAGYAPROP | B198: EQ | C198: 30 | D198: 30 | E198: 27.3 | F198: 28.65 | G198: 28.65 | H198: 28.05 | I198: 1001 | J198: 28051.95 | K198: 2018-12-18 | L198: 16 | M198: INE363W01018
A199: BHANDARI | B199: EQ | C199: 1.95 | D199: 1.95 | E199: 1.9 | F199: 1.95 | G199: 1.95 | H199: 1.9 | I199: 76756 | J199: 147694.65 | K199: 2018-12-18 | L199: 45 | M199: INE474E01029
A200: BHARATFIN | B200: EQ | C200: 1031 | D200: 1038.9 | E200: 1016.25 | F200: 1035.4 | G200: 1035.8 | H200: 1035.35 | I200: 528633 | J200: 543654268.5 | K200: 2018-12-18 | L200: 31623 | M200: INE180K01011
... 1433 more rows

Sheet Sheet1 (hidden)
